{"text_format":"1","workbook":"xlsx","n_sheets":4,"sheets":["Datos","TD","Menu","INFORME"],"not_rendered":{"charts":0,"images":31,"macros":1,"external_links":0,"defined_names":3,"comments":0,"pivot_tables":2},"unopened":[],"bounds":{"document_bytes":16777216,"sheet_cells":100000,"rows_first":2000,"rows_last":500,"rows_between":2000,"halvings":0,"cell_chars":16384,"cell_head_chars":4096},"cells_cut":0,"cells_raw":0,"read":"whole","date_system":"1900"}

{"sheet":"Datos","index":0,"n_rows":438,"n_cols":36,"rows_kept":438,"cut":false,"hidden":true,"merged":[]}
[]
[]
[]
[]
[]
[]
[]
[]
[null,"ANO",null,"MESES",null,"COD_RED","DESC_RED","RED",null,"COD_RED","COD_MIC","DESC_MICRO","MICROREDES",null,"COD_ESTAB","DESC_ESTAB","COD_RED","COD_MIC","COD_PROV","COD_DIST","REDMIC","CONCATENAR",null,"COD_PROV","DESC_PROV","CONCATENAR",null,"COD_PROV","COD_DIST","DESC_DIST","PROVDIST","CONCATENAR",null,"UE"]
[null,2024,null,"01-Enero",null,"01","CUSCO SUR",{"$f":"CONCATENATE(F10,\" - \",G10)","v":"01 - CUSCO SUR"},null,"00","00","NO PERTENECE A NINGUNA MICRORED                                                                     ",{"$f":"CONCATENATE(J10,K10,\" - \",L10)","v":"0000 - NO PERTENECE A NINGUNA MICRORED                                                                     "},null,"000000000","(All)","07","00",null,null,{"$f":"CONCATENATE(Q10,R10)","v":"0700"},{"$f":"CONCATENATE(O10,\" - \",P10)","v":"000000000 - (All)"},null,"00","(All)",{"$f":"CONCATENATE(X10,\" - \",Y10)","v":"00 - (All)"},null,"01","00","(All)",{"$f":"CONCATENATE(AB10,AC10)","v":"0100"},{"$f":"CONCATENATE(AB10,AC10,\" - \",AD10)","v":"0100 - (All)"},null,"COD_RED","DESC_RED","CONCATENAR"]
[null,null,null,"02-Febrero",null,"02","CUSCO NORTE","02 - CUSCO NORTE",null,"00","99","(All)",{"$f":"CONCATENATE(J11,K11,\" - \",L11)","v":"0099 - (All)"},null,"000002289","HOSPITAL REGIONAL CUSCO","07","00","01","01",{"$f":"CONCATENATE(Q11,R11)","v":"0700"},{"$f":"CONCATENATE(O11,\" - \",P11)","v":"000002289 - HOSPITAL REGIONAL CUSCO"},null,"01","CUSCO",{"$f":"CONCATENATE(X11,\" - \",Y11)","v":"01 - CUSCO"},null,"01","01","CUSCO",{"$f":"CONCATENATE(AB11,AC11)","v":"0101"},{"$f":"CONCATENATE(AB11,AC11,\" - \",AD11)","v":"0101 - CUSCO"},null,1129,"UE - SALUD CANAS - CANCHIS - ESPINAR",{"$f":"CONCATENATE(AH11,\" - \",AI11)","v":"1129 - UE - SALUD CANAS - CANCHIS - ESPINAR"}]
[null,null,null,"03-Marzo",null,"03","LA CONVENCION","03 - LA CONVENCION",null,"01","00","HOSPITAL","0100 - HOSPITAL",null,"000002305","HOSPITAL ANTONIO LORENA","07","00","01","06",{"$f":"CONCATENATE(Q12,R12)","v":"0700"},"000002305 - HOSPITAL ANTONIO LORENA",null,"02","ACOMAYO",{"$f":"CONCATENATE(X12,\" - \",Y12)","v":"02 - ACOMAYO"},null,"01","02","CCORCA","0102","0102 - CCORCA",null,1130,"UE - HOSPITAL REGIONAL CUSCO",{"$f":"CONCATENATE(AH12,\" - \",AI12)","v":"1130 - UE - HOSPITAL REGIONAL CUSCO"}]
[null,null,null,"04-Abril",null,"04","CANAS-CANCHIS-ESPINAR","04 - CANAS-CANCHIS-ESPINAR",null,"01","03","PARURO                                                                                              ","0103 - PARURO                                                                                              ",null,"999999999","(All)","07","99",null,null,{"$f":"CONCATENATE(Q13,R13)","v":"0799"},"999999999 - (All)",null,"03","ANTA","03 - ANTA",null,"01","03","POROY","0103","0103 - POROY",null,1169,"UE - HOSPITAL ANTONIO LORENA","1169 - UE - HOSPITAL ANTONIO LORENA"]
[null,null,null,"05-Mayo",null,"05","KIMBIRI PICHARI","05 - KIMBIRI PICHARI",null,"01","06","PAUCARTAMBO                                                                                         ","0106 - PAUCARTAMBO                                                                                         ",null,"000025210","TUPAC AMARU","01","00","01","05","0100","000025210 - TUPAC AMARU",null,"04","CALCA","04 - CALCA",null,"01","04","SAN JERONIMO","0104","0104 - SAN JERONIMO",null,1170,"UE - SALUD LA CONVENCION","1170 - UE - SALUD LA CONVENCION"]
[null,null,null,"06-Junio",null,"06","CHUMBIVILCAS","06 - CHUMBIVILCAS",null,"01","12","URCOS                                                                                               ","0112 - URCOS                                                                                               ",null,"000000000","(All)","01","16",null,null,{"$f":"CONCATENATE(Q15,R15)","v":"0116"},{"$f":"CONCATENATE(O15,\" - \",P15)","v":"000000000 - (All)"},null,"05","CANAS","05 - CANAS",null,"01","05","SAN SEBASTIAN","0105","0105 - SAN SEBASTIAN",null,1322,"UE - SALUD CUSCO SUR","1322 - UE - SALUD CUSCO SUR"]
[null,null,null,"07-Julio",null,"07","HOSPITALES III",{"$f":"CONCATENATE(F16,\" - \",G16)","v":"07 - HOSPITALES III"},null,"01","13","ACOMAYO                                                                                             ","0113 - ACOMAYO                                                                                             ",null,"000002300","SAN JERONIMO                                                                                        ","01","16","01","04","0116","000002300 - SAN JERONIMO                                                                                        ",null,"06","CANCHIS","06 - CANCHIS",null,"01","06","SANTIAGO","0106","0106 - SANTIAGO",null,1347,"UE - SALUD KIMBIRI PICHARI","1347 - UE - SALUD KIMBIRI PICHARI"]
[null,null,null,"08-Agosto",null,"99","(All)",{"$f":"CONCATENATE(F17,\" - \",G17)","v":"99 - (All)"},null,"01","15","OCONGATE                                                                                            ","0115 - OCONGATE                                                                                            ",null,"000002301","SAN SEBASTIAN                                                                                       ","01","16","01","05","0116","000002301 - SAN SEBASTIAN                                                                                       ",null,"07","CHUMBIVILCAS","07 - CHUMBIVILCAS",null,"01","07","SAYLLA","0107","0107 - SAYLLA",null,1348,"UE - SALUD CUSCO NORTE","1348 - UE - SALUD CUSCO NORTE"]
[null,null,null,"09-Setiembre",null,null,null,null,null,"01","16","CUSCO","0116 - CUSCO",null,"000002303","SANTA ROSA                                                                                          ","01","16","01","05","0116","000002303 - SANTA ROSA                                                                                          ",null,"08","ESPINAR","08 - ESPINAR",null,"01","08","WANCHAQ","0108","0108 - WANCHAQ",null,1547,"UE - HOSPITAL ESPINAR","1547 - UE - HOSPITAL ESPINAR"]
[null,null,null,"10-Octubre",null,null,null,null,null,"01","99","(All)","0199 - (All)",null,"000002314","SAYLLA                                                                                              ","01","16","01","07","0116","000002314 - SAYLLA                                                                                              ",null,"09","LA CONVENCION","09 - LA CONVENCION",null,"02","00","(All)","0200","0200 - (All)",null,1625,"UE - HOSPITAL SICUANI","1625 - UE - HOSPITAL SICUANI"]
[null,null,null,"11-Noviembre",null,null,null,null,null,"02","01","BELEMPAMPA                                                                                          ","0201 - BELEMPAMPA                                                                                          ",null,"000002323","RONDOCAN                                                                                            ","01","16","02","06","0116","000002323 - RONDOCAN                                                                                            ",null,"10","PARURO","10 - PARURO",null,"02","01","ACOMAYO","0201","0201 - ACOMAYO",null,1626,"UE - HOSPITAL QUILLABAMBA","1626 - UE - HOSPITAL QUILLABAMBA"]
[null,null,null,"12-Diciembre",null,null,null,null,null,"02","02","WANCHAQ                                                                                             ","0202 - WANCHAQ                                                                                             ",null,"000007699","CONCHACALLE                                                                                         ","01","16","01","04","0116","000007699 - CONCHACALLE                                                                                         ",null,"11","PAUCARTAMBO","11 - PAUCARTAMBO",null,"02","02","ACOPIA","0202","0202 - ACOPIA",null,1666,"UE - SALUD CHUMBIVILCAS","1666 - UE - SALUD CHUMBIVILCAS"]
[null,null,null,null,null,null,null,null,null,"02","03","ANTA                                                                                                ","0203 - ANTA                                                                                                ",null,"000010065","ESSALUD-SAN SEBASTIAN","01","16","01","05","0116","000010065 - ESSALUD-SAN SEBASTIAN",null,"12","QUISPICANCHI","12 - QUISPICANCHI",null,"02","03","ACOS","0203","0203 - ACOS",null,"7777","(All)",{"$f":"CONCATENATE(AH22,\" - \",AI22)","v":"7777 - (All)"}]
[null,null,null,null,null,null,null,null,null,"02","04","LIMATAMBO                                                                                           ","0204 - LIMATAMBO                                                                                           ",null,"000011743","SANIDAD-SANTA ROSA PNP","01","16","01","05","0116","000011743 - SANIDAD-SANTA ROSA PNP",null,"13","URUBAMBA","13 - URUBAMBA",null,"02","04","MOSOC LLACTA","0204","0204 - MOSOC LLACTA"]
[null,null,null,null,null,null,null,null,null,"02","05","PISAC                                                                                               ","0205 - PISAC                                                                                               ",null,"000026181","MENTAL SAN SEBASTIAN","01","16","01","05","0116","000026181 - MENTAL SAN SEBASTIAN",null,null,null,null,null,"02","05","POMACANCHI","0205","0205 - POMACANCHI"]
[null,null,null,null,null,null,null,null,null,"02","06","CALCA                                                                                               ","0206 - CALCA                                                                                               ",null,"000030727","PATRÓN SAN SEBASTIAN","01","16","01","04",{"$f":"CONCATENATE(Q25,R25)","v":"0116"},"000030727 - PATRÓN SAN SEBASTIAN",null,null,null,null,null,"02","06","RONDOCAN","0206","0206 - RONDOCAN"]
[null,null,null,null,null,null,null,null,null,"02","07","URUBAMBA                                                                                            ","0207 - URUBAMBA                                                                                            ",null,"000000000","(All)","01","03",null,null,{"$f":"CONCATENATE(Q26,R26)","v":"0103"},"000000000 - (All)",null,null,null,null,null,"02","07","SANGARARA","0207","0207 - SANGARARA"]
[null,null,null,null,null,null,null,null,null,"02","08","YANATILE                                                                                            ","0208 - YANATILE                                                                                            ",null,"000002499","PARURO                                                                                              ","01","03",10,"01","0103","000002499 - PARURO                                                                                              ",null,null,null,null,null,"03","00","(All)","0300","0300 - (All)"]
[null,null,null,null,null,null,null,null,null,"02","09","SIETE CUARTONES                                                                                     ","0209 - SIETE CUARTONES                                                                                     ",null,"000002500","ACCHA                                                                                               ","01","03",10,"02","0103","000002500 - ACCHA                                                                                               ",null,null,null,null,null,"03","01","ANTA","0301","0301 - ANTA"]
[null,null,null,null,null,null,null,null,null,"02","99","(All)","0299 - (All)",null,"000002501","CCAPI                                                                                               ","01","03",10,"03","0103","000002501 - CCAPI                                                                                               ",null,null,null,null,null,"03","02","ANCAHUASI","0302","0302 - ANCAHUASI"]
[null,null,null,null,null,null,null,null,null,"03","00","HOSPITAL","0300 - HOSPITAL",null,"000002502","CCOYABAMBA                                                                                          ","01","03",10,"03","0103","000002502 - CCOYABAMBA                                                                                          ",null,null,null,null,null,"03","03","CACHIMAYO","0303","0303 - CACHIMAYO"]
[null,null,null,null,null,null,null,null,null,"03","01","SANTA ANA                                                                                           ","0301 - SANTA ANA                                                                                           ",null,"000002503","COLCHA                                                                                              ","01","03",10,"04","0103","000002503 - COLCHA                                                                                              ",null,null,null,null,null,"03","04","CHINCHAYPUJIO","0304","0304 - CHINCHAYPUJIO"]
[null,null,null,null,null,null,null,null,null,"03","02","MARANURA                                                                                            ","0302 - MARANURA                                                                                            ",null,"000002504","HUANOQUITE                                                                                          ","01","03",10,"05","0103","000002504 - HUANOQUITE                                                                                          ",null,null,null,null,null,"03","05","HUAROCONDO","0305","0305 - HUAROCONDO"]
[null,null,null,null,null,null,null,null,null,"03","03","QUELLOUNO                                                                                           ","0303 - QUELLOUNO                                                                                           ",null,"000002505","OMACHA                                                                                              ","01","03",10,"06","0103","000002505 - OMACHA                                                                                              ",null,null,null,null,null,"03","06","LIMATAMBO","0306","0306 - LIMATAMBO"]
[null,null,null,null,null,null,null,null,null,"03","04","KITENI                                                                                              ","0304 - KITENI                                                                                              ",null,"000002506","ANTAPALLPA                                                                                          ","01","03",10,"06","0103","000002506 - ANTAPALLPA                                                                                          ",null,null,null,null,null,"03","07","MOLLEPATA","0307","0307 - MOLLEPATA"]
[null,null,null,null,null,null,null,null,null,"03","05","KAMISEA                                                                                             ","0305 - KAMISEA                                                                                             ",null,"000002507","PACCARECTAMBO                                                                                       ","01","03",10,"07","0103","000002507 - PACCARECTAMBO                                                                                       ",null,null,null,null,null,"03","08","PUCYURA","0308","0308 - PUCYURA"]
[null,null,null,null,null,null,null,null,null,"03","06","PUCYURA                                                                                             ","0306 - PUCYURA                                                                                             ",null,"000002509","YAURISQUE                                                                                           ","01","03",10,"09","0103","000002509 - YAURISQUE                                                                                           ",null,null,null,null,null,"03","09","ZURITE","0309","0309 - ZURITE"]
[null,null,null,null,null,null,null,null,null,"03","99","(All)","0399 - (All)",null,"000006978","CCOCHIRIHUAY                                                                                        ","01","03",10,"04","0103","000006978 - CCOCHIRIHUAY                                                                                        ",null,null,null,null,null,"04","00","(All)","0400","0400 - (All)"]
[null,null,null,null,null,null,null,null,null,"04","00","HOSPITAL","0400 - HOSPITAL",null,"000007147","HUASQUILLAY                                                                                         ","01","03",10,"06","0103","000007147 - HUASQUILLAY                                                                                         ",null,null,null,null,null,"04","01","CALCA","0401","0401 - CALCA"]
[null,null,null,null,null,null,null,null,null,"04","01","YANAOCA                                                                                             ","0401 - YANAOCA                                                                                             ",null,"000012924","SAHUA SAHUA                                                                                         ","01","03",10,"06","0103","000012924 - SAHUA SAHUA                                                                                         ",null,null,null,null,null,"04","02","COYA","0402","0402 - COYA"]
[null,null,null,null,null,null,null,null,null,"04","02","EL DESCANSO                                                                                         ","0402 - EL DESCANSO                                                                                         ",null,"000000000","(All)","01","06",null,null,"0106","000000000 - (All)",null,null,null,null,null,"04","03","LAMAY","0403","0403 - LAMAY"]
[null,null,null,null,null,null,null,null,null,"04","03","COMBAPATA                                                                                           ","0403 - COMBAPATA                                                                                           ",null,"000002510","PAUCARTAMBO                                                                                         ","01","06",11,"01","0106","000002510 - PAUCARTAMBO                                                                                         ",null,null,null,null,null,"04","04","LARES","0404","0404 - LARES"]
[null,null,null,null,null,null,null,null,null,"04","04","TECHO OBRERO                                                                                        ","0404 - TECHO OBRERO                                                                                        ",null,"000002511","MOLLOMARCA                                                                                          ","01","06",11,"01","0106","000002511 - MOLLOMARCA                                                                                          ",null,null,null,null,null,"04","05","PISAC","0405","0405 - PISAC"]
[null,null,null,null,null,null,null,null,null,"04","05","PAMPAPHALLA                                                                                         ","0405 - PAMPAPHALLA                                                                                         ",null,"000002512","CAICAY                                                                                              ","01","06",11,"02","0106","000002512 - CAICAY                                                                                              ",null,null,null,null,null,"04","06","SAN SALVADOR","0406","0406 - SAN SALVADOR"]
[null,null,null,null,null,null,null,null,null,"04","06","YAURI                                                                                               ","0406 - YAURI                                                                                               ",null,"000002513","HUASAC                                                                                              ","01","06",11,"02","0106","000002513 - HUASAC                                                                                              ",null,null,null,null,null,"04","07","TARAY","0407","0407 - TARAY"]
[null,null,null,null,null,null,null,null,null,"04","99","(All)","0499 - (All)",null,"000002514","CHALLABAMBA                                                                                         ","01","06",11,"03","0106","000002514 - CHALLABAMBA                                                                                         ",null,null,null,null,null,"04","08","YANATILE","0408","0408 - YANATILE"]
[null,null,null,null,null,null,null,null,null,"05","00","HOSPITAL","0500 - HOSPITAL",null,"000002516","COLQUEPATA                                                                                          ","01","06",11,"04","0106","000002516 - COLQUEPATA                                                                                          ",null,null,null,null,null,"05","00","(All)","0500","0500 - (All)"]
[null,null,null,null,null,null,null,null,null,"05","01","KIMBIRI                                                                                             ","0501 - KIMBIRI                                                                                             ",null,"000002517","PICHIHUA COLQUEPATA                                                                                 ","01","06",11,"04","0106","000002517 - PICHIHUA COLQUEPATA                                                                                 ",null,null,null,null,null,"05","01","YANAOCA","0501","0501 - YANAOCA"]
[null,null,null,null,null,null,null,null,null,"05","02","PICHARI                                                                                             ","0502 - PICHARI                                                                                             ",null,"000002518","VIZCOCHONI                                                                                          ","01","06",11,"04","0106","000002518 - VIZCOCHONI                                                                                          ",null,null,null,null,null,"05","02","CHECCA","0502","0502 - CHECCA"]
[null,null,null,null,null,null,null,null,null,"05","99","(All)","0599 - (All)",null,"000002519","AYRE                                                                                                ","01","06",11,"04","0106","000002519 - AYRE                                                                                                ",null,null,null,null,null,"05","03","KUNTURKANKI","0503","0503 - KUNTURKANKI"]
[null,null,null,null,null,null,null,null,null,"06","00","HOSPITAL","0600 - HOSPITAL",null,"000002520","HUANCARANI                                                                                          ","01","06",11,"05","0106","000002520 - HUANCARANI                                                                                          ",null,null,null,null,null,"05","04","LANGUI","0504","0504 - LANGUI"]
[null,null,null,null,null,null,null,null,null,"06","09","SANTO TOMAS                                                                                         ","0609 - SANTO TOMAS                                                                                         ",null,"000002521","PILCOPATA                                                                                           ","01","06",11,"06","0106","000002521 - PILCOPATA                                                                                           ",null,null,null,null,null,"05","05","LAYO","0505","0505 - LAYO"]
[null,null,null,null,null,null,null,null,null,"06","01","LIVITACA                                                                                            ","0601 - LIVITACA                                                                                            ",null,"000002522","PATRIA                                                                                              ","01","06",11,"06","0106","000002522 - PATRIA                                                                                              ",null,null,null,null,null,"05","06","PAMPAMARCA","0506","0506 - PAMPAMARCA"]
[null,null,null,null,null,null,null,null,null,"06","99","(All)","0699 - (All)",null,"000006979","TOCRA                                                                                               ","01","06",11,"04","0106","000006979 - TOCRA                                                                                               ",null,null,null,null,null,"05","07","QUEHUE","0507","0507 - QUEHUE"]
[null,null,null,null,null,null,null,null,null,"07","00","HOSPITAL","0700 - HOSPITAL",null,"000010077","ESSALUD-PAUCARTAMBO","01","06",11,"01","0106","000010077 - ESSALUD-PAUCARTAMBO",null,null,null,null,null,"05","08","TUPAC AMARU","0508","0508 - TUPAC AMARU"]
[null,null,null,null,null,null,null,null,null,"99","99","(All)",{"$f":"CONCATENATE(J55,K55,\" - \",L55)","v":"9999 - (All)"},null,"000033777","MENTAL COMUNITARIO VIRGEN DEL ROSARIO","01","06",11,"01","0106","000033777 - MENTAL COMUNITARIO VIRGEN DEL ROSARIO",null,null,null,null,null,"06","00","(All)","0600","0600 - (All)"]
[null,null,null,null,null,null,null,null,null,null,null,null,null,null,"000000000","(All)","01","12",null,null,"0112","000000000 - (All)",null,null,null,null,null,"06","01","SICUANI","0601","0601 - SICUANI"]
[null,null,null,null,null,null,null,null,null,null,null,null,null,null,"000002523","URCOS                                                                                               ","01","12",12,"01","0112","000002523 - URCOS                                                                                               ",null,null,null,null,null,"06","02","CHECACUPE","0602","0602 - CHECACUPE"]
[null,null,null,null,null,null,null,null,null,null,null,null,null,null,"000002525","ANDAHUAYLILLAS                                                                                      ","01","12",12,"02","0112","000002525 - ANDAHUAYLILLAS                                                                                      ",null,null,null,null,null,"06","03","COMBAPATA","0603","0603 - COMBAPATA"]
[null,null,null,null,null,null,null,null,null,null,null,null,null,null,"000002530","CUSIPATA                                                                                            ","01","12",12,"06","0112","000002530 - CUSIPATA                                                                                            ",null,null,null,null,null,"06","04","MARANGANI","0604","0604 - MARANGANI"]
[null,null,null,null,null,null,null,null,null,null,null,null,null,null,"000002532","HUARO                                                                                               ","01","12",12,"07","0112","000002532 - HUARO                                                                                               ",null,null,null,null,null,"06","05","PITUMARCA","0605","0605 - PITUMARCA"]
[null,null,null,null,null,null,null,null,null,null,null,null,null,null,"000002533","URPAY                                                                                               ","01","12",12,"07","0112","000002533 - URPAY                                                                                               ",null,null,null,null,null,"06","06","SAN PABLO","0606","0606 - SAN PABLO"]
[null,null,null,null,null,null,null,null,null,null,null,null,null,null,"000002534","LUCRE                                                                                               ","01","12",12,"08","0112","000002534 - LUCRE                                                                                               ",null,null,null,null,null,"06","07","SAN PEDRO","0607","0607 - SAN PEDRO"]
[null,null,null,null,null,null,null,null,null,null,null,null,null,null,"000002537","OROPESA                                                                                             ","01","12",12,11,"0112","000002537 - OROPESA                                                                                             ",null,null,null,null,null,"06","08","TINTA","0608","0608 - TINTA"]
[null,null,null,null,null,null,null,null,null,null,null,null,null,null,"000002538","QUIQUIJANA                                                                                          ","01","12",12,12,"0112","000002538 - QUIQUIJANA                                                                                          ",null,null,null,null,null,"07","00","(All)","0700","0700 - (All)"]
[null,null,null,null,null,null,null,null,null,null,null,null,null,null,"000002539","CCOLCA","01","12",12,12,"0112","000002539 - CCOLCA",null,null,null,null,null,"07","01","SANTO TOMAS","0701","0701 - SANTO TOMAS"]
[null,null,null,null,null,null,null,null,null,null,null,null,null,null,"000006980","CHILLIHUANI                                                                                         ","01","12",12,"06","0112","000006980 - CHILLIHUANI                                                                                         ",null,null,null,null,null,"07","02","CAPACMARCA","0702","0702 - CAPACMARCA"]
[null,null,null,null,null,null,null,null,null,null,null,null,null,null,"000008911","HUARA HUARA                                                                                         ","01","12",12,"05","0112","000008911 - HUARA HUARA                                                                                         ",null,null,null,null,null,"07","03","CHAMACA","0703","0703 - CHAMACA"]
[null,null,null,null,null,null,null,null,null,null,null,null,null,null,"000011747","SANIDAD-PUCUTO PNP","01","12",12,"07","0112","000011747 - SANIDAD-PUCUTO PNP",null,null,null,null,null,"07","04","COLQUEMARCA","0704","0704 - COLQUEMARCA"]
[null,null,null,null,null,null,null,null,null,null,null,null,null,null,"000026385","ESSALUD-URCOS","01","12",12,"01","0112","000026385 - ESSALUD-URCOS",null,null,null,null,null,"07","05","LIVITACA","0705","0705 - LIVITACA"]
[null,null,null,null,null,null,null,null,null,null,null,null,null,null,"000030708","MENTAL COMUNITARIO HUARO","01","12",12,"07","0112","000030708 - MENTAL COMUNITARIO HUARO",null,null,null,null,null,"07","06","LLUSCO","0706","0706 - LLUSCO"]
[null,null,null,null,null,null,null,null,null,null,null,null,null,null,"000000000","(All)","01","13",null,null,"0113","000000000 - (All)",null,null,null,null,null,"07","07","QUIÑOTA","0707","0707 - QUIÑOTA"]
[null,null,null,null,null,null,null,null,null,null,null,null,null,null,"000002317","ACOMAYO                                                                                             ","01","13","02","01","0113","000002317 - ACOMAYO                                                                                             ",null,null,null,null,null,"07","08","VELILLE","0708","0708 - VELILLE"]
[null,null,null,null,null,null,null,null,null,null,null,null,null,null,"000002318","ACOPIA                                                                                              ","01","13","02","02","0113","000002318 - ACOPIA                                                                                              ",null,null,null,null,null,"08","00","(All)","0800","0800 - (All)"]
[null,null,null,null,null,null,null,null,null,null,null,null,null,null,"000002319","ACOS                                                                                                ","01","13","02","03","0113","000002319 - ACOS                                                                                                ",null,null,null,null,null,"08","01","ESPINAR","0801","0801 - ESPINAR"]
[null,null,null,null,null,null,null,null,null,null,null,null,null,null,"000002321","CENTRO DE SALUD POMACANCHI","01","13","02","05","0113",{"$f":"CONCATENATE(O75,\" - \",P75)","v":"000002321 - CENTRO DE SALUD POMACANCHI"},null,null,null,null,null,"08","02","CONDOROMA",{"$f":"CONCATENATE(AB75,AC75)","v":"0802"},{"$f":"CONCATENATE(AB75,AC75,\" - \",AD75)","v":"0802 - CONDOROMA"}]
[null,null,null,null,null,null,null,null,null,null,null,null,null,null,"000002322","SAN JUAN DE POMACANCHI                                                                              ","01","13","02","05","0113","000002322 - SAN JUAN DE POMACANCHI                                                                              ",null,null,null,null,null,"08","03","COPORAQUE","0803","0803 - COPORAQUE"]
[null,null,null,null,null,null,null,null,null,null,null,null,null,null,"000002324","PUESTO DE SALUD SANGARARA","01","13","02","07","0113","000002324 - PUESTO DE SALUD SANGARARA",null,null,null,null,null,"08","04","OCORURO","0804","0804 - OCORURO"]
[null,null,null,null,null,null,null,null,null,null,null,null,null,null,"000002325","PUESTO DE SALUD MARCACONGA","01","13","02","07","0113","000002325 - PUESTO DE SALUD MARCACONGA",null,null,null,null,null,"08","05","PALLPATA","0805","0805 - PALLPATA"]
[null,null,null,null,null,null,null,null,null,null,null,null,null,null,"000002508","PILLPINTO                                                                                           ","01","13",10,"08","0113","000002508 - PILLPINTO                                                                                           ",null,null,null,null,null,"08","06","PICHIGUA","0806","0806 - PICHIGUA"]
[null,null,null,null,null,null,null,null,null,null,null,null,null,null,"000010076","ESSALUD-ACOMAYO","01","13","02","01","0113","000010076 - ESSALUD-ACOMAYO",null,null,null,null,null,"08","07","SUYCKUTAMBO","0807","0807 - SUYCKUTAMBO"]
[null,null,null,null,null,null,null,null,null,null,null,null,null,null,"000012926","SANTA  LUCIA                                                                                        ","01","13","02","05","0113","000012926 - SANTA  LUCIA                                                                                        ",null,null,null,null,null,"08","08","ALTO PICHIGUA","0808","0808 - ALTO PICHIGUA"]
[null,null,null,null,null,null,null,null,null,null,null,null,null,null,"000000000","(All)","01","15",null,null,"0115","000000000 - (All)",null,null,null,null,null,"09","00","(All)","0900","0900 - (All)"]
[null,null,null,null,null,null,null,null,null,null,null,null,null,null,"000002524","PAMPACAMARA                                                                                         ","01","15",12,"05","0115","000002524 - PAMPACAMARA                                                                                         ",null,null,null,null,null,"09","01","SANTA ANA","0901","0901 - SANTA ANA"]
[null,null,null,null,null,null,null,null,null,null,null,null,null,null,"000002526","QUINCE MIL","01","15",12,"03","0115","000002526 - QUINCE MIL",null,null,null,null,null,"09","02","ECHARATE","0902","0902 - ECHARATE"]
[null,null,null,null,null,null,null,null,null,null,null,null,null,null,"000002527","CCARHUAYO","01","15",12,"04","0115","000002527 - CCARHUAYO",null,null,null,null,null,"09","03","HUAYOPATA","0903","0903 - HUAYOPATA"]
[null,null,null,null,null,null,null,null,null,null,null,null,null,null,"000002528","CCATCCA                                                                                             ","01","15",12,"05","0115","000002528 - CCATCCA                                                                                             ",null,null,null,null,null,"09","04","MARANURA","0904","0904 - MARANURA"]
[null,null,null,null,null,null,null,null,null,null,null,null,null,null,"000002529","KCAURY                                                                                              ","01","15",12,"05","0115","000002529 - KCAURY                                                                                              ",null,null,null,null,null,"09","05","OCOBAMBA","0905","0905 - OCOBAMBA"]
[null,null,null,null,null,null,null,null,null,null,null,null,null,null,"000002535","MARCAPATA                                                                                           ","01","15",12,"09","0115","000002535 - MARCAPATA                                                                                           ",null,null,null,null,null,"09","06","QUELLOUNO","0906","0906 - QUELLOUNO"]
[null,null,null,null,null,null,null,null,null,null,null,null,null,null,"000002536","OCONGATE                                                                                            ","01","15",12,10,"0115","000002536 - OCONGATE                                                                                            ",null,null,null,null,null,"09","07","KIMBIRI","0907","0907 - KIMBIRI"]
[null,null,null,null,null,null,null,null,null,null,null,null,null,null,"000006977","TINKI                                                                                               ","01","15",12,10,{"$f":"CONCATENATE(Q90,R90)","v":"0115"},"000006977 - TINKI                                                                                               ",null,null,null,null,null,"09","08","SANTA TERESA","0908","0908 - SANTA TERESA"]
[null,null,null,null,null,null,null,null,null,null,null,null,null,null,"000007110","INCACANCHA                                                                                          ","01","15",12,"09","0115","000007110 - INCACANCHA                                                                                          ",null,null,null,null,null,"09","09","VILCABAMBA","0909","0909 - VILCABAMBA"]
[null,null,null,null,null,null,null,null,null,null,null,null,null,null,"000012931","CHICHINA                                                                                            ","01","15",12,"05","0115","000012931 - CHICHINA                                                                                            ",null,null,null,null,null,"09","10","PICHARI","0910","0910 - PICHARI"]
[null,null,null,null,null,null,null,null,null,null,null,null,null,null,"000016335","CCAPANA                                                                                             ","01","15",12,"05","0115","000016335 - CCAPANA                                                                                             ",null,null,null,null,null,"09","11","INKAWASI                                ","0911","0911 - INKAWASI                                "]
[null,null,null,null,null,null,null,null,null,null,null,null,null,null,"999999999","(All)","01","99",null,null,"0199","999999999 - (All)",null,null,null,null,null,"09","12","VILLA VIRGEN","0912","0912 - VILLA VIRGEN"]
[null,null,null,null,null,null,null,null,null,null,null,null,null,null,"000000000","(All)","02","01",null,null,"0201","000000000 - (All)",null,null,null,null,null,"09","13","VILLA KINTIARINA","0913","0913 - VILLA KINTIARINA"]
[null,null,null,null,null,null,null,null,null,null,null,null,null,null,"000002292","INDEPENDENCIA                                                                                       ","02","01","01","01","0201","000002292 - INDEPENDENCIA                                                                                       ",null,null,null,null,null,"09","14","MEGANTONI","0914","0914 - MEGANTONI"]
[null,null,null,null,null,null,null,null,null,null,null,null,null,null,"000002297","CCORCCA                                                                                             ","02","01","01","02","0201","000002297 - CCORCCA                                                                                             ",null,null,null,null,null,"09","15","KUMPIRUSHIATO","0915","0915 - KUMPIRUSHIATO"]
[null,null,null,null,null,null,null,null,null,null,null,null,null,null,"000002306","BELEMPAMPA                                                                                          ","02","01","01","06","0201","000002306 - BELEMPAMPA                                                                                          ",null,null,null,null,null,"09","16","CIELO PUNCO","0916","0916 - CIELO PUNCO"]
[null,null,null,null,null,null,null,null,null,null,null,null,null,null,"000002308","ZARZUELA ALTA                                                                                       ","02","01","01","06","0201","000002308 - ZARZUELA ALTA                                                                                       ",null,null,null,null,null,"09","17","MANITEA","0917","0917 - MANITEA"]
[null,null,null,null,null,null,null,null,null,null,null,null,null,null,"000002309","DIGNIDAD NACIONAL                                                                                   ","02","01","01","06","0201","000002309 - DIGNIDAD NACIONAL                                                                                   ",null,null,null,null,null,"09","18","UNION ASHANINKA","0918","0918 - UNION ASHANINKA"]
[null,null,null,null,null,null,null,null,null,null,null,null,null,null,"000002313","OCCOPATA                                                                                            ","02","01","01","06","0201","000002313 - OCCOPATA                                                                                            ",null,null,null,null,null,"10","00","(All)","1000","1000 - (All)"]
[null,null,null,null,null,null,null,null,null,null,null,null,null,null,"000010067","ESSALUD-SANTIAGO","02","01","01","06","0201","000010067 - ESSALUD-SANTIAGO",null,null,null,null,null,"10","01","PARURO","1001","1001 - PARURO"]
[null,null,null,null,null,null,null,null,null,null,null,null,null,null,"000010920","EJERCITO-QUINTA BRIGADA DE MONTAÑA","02","01","01","06","0201","000010920 - EJERCITO-QUINTA BRIGADA DE MONTAÑA",null,null,null,null,null,"10","02","ACCHA","1002","1002 - ACCHA"]
[null,null,null,null,null,null,null,null,null,null,null,null,null,null,"000026182","MENTAL SANTIAGO","02","01","01","06","0201","000026182 - MENTAL SANTIAGO",null,null,null,null,null,"10","03","CCAPI","1003","1003 - CCAPI"]
[null,null,null,null,null,null,null,null,null,null,null,null,null,null,"000000000","(All)","02","02",null,null,"0202","000000000 - (All)",null,null,null,null,null,"10","04","COLCHA","1004","1004 - COLCHA"]
[null,null,null,null,null,null,null,null,null,null,null,null,null,null,"000002302","CCORAO                                                                                              ","02","02","01","05","0202","000002302 - CCORAO                                                                                              ",null,null,null,null,null,"10","05","HUANOQUITE","1005","1005 - HUANOQUITE"]
[null,null,null,null,null,null,null,null,null,null,null,null,null,null,"000002307","MANCO CAPAC","02","02","01","06","0202","000002307 - MANCO CAPAC",null,null,null,null,null,"10","06","OMACHA","1006","1006 - OMACHA"]
[null,null,null,null,null,null,null,null,null,null,null,null,null,null,"000002310","CHOCCO                                                                                              ","02","02","01","06","0202","000002310 - CHOCCO                                                                                              ",null,null,null,null,null,"10","07","PACCARITAMBO","1007","1007 - PACCARITAMBO"]
[null,null,null,null,null,null,null,null,null,null,null,null,null,null,"000002315","WANCHAQ                                                                                             ","02","02","01","08","0202","000002315 - WANCHAQ                                                                                             ",null,null,null,null,null,"10","08","PILLPINTO","1008","1008 - PILLPINTO"]
[null,null,null,null,null,null,null,null,null,null,null,null,null,null,"000002316","TTIO                                                                                                ","02","02","01","08","0202","000002316 - TTIO                                                                                                ",null,null,null,null,null,"10","09","YAURISQUE","1009","1009 - YAURISQUE"]
[null,null,null,null,null,null,null,null,null,null,null,null,null,null,"000010041","ESSALUD-ADOLFO GUEVARA V.","02","02","01","08","0202","000010041 - ESSALUD-ADOLFO GUEVARA V.",null,null,null,null,null,"11","00","(All)","1100","1100 - (All)"]
[null,null,null,null,null,null,null,null,null,null,null,null,null,null,"000026183","ESSALUD-METROPOLITANO","02","02","01","08","0202","000026183 - ESSALUD-METROPOLITANO",null,null,null,null,null,"11","01","PAUCARTAMBO","1101","1101 - PAUCARTAMBO"]
[null,null,null,null,null,null,null,null,null,null,null,null,null,null,"000030730","PATRON SANTIAGO","02","02","01","08","0202","000030730 - PATRON SANTIAGO",null,null,null,null,null,"11","02","CAICAY","1102","1102 - CAICAY"]
[null,null,null,null,null,null,null,null,null,null,null,null,null,null,"000034419","MENTAL COMUNITARIO CUSCO","02","02","01","08","0202","000034419 - MENTAL COMUNITARIO CUSCO",null,null,null,null,null,"11","03","CHALLABAMBA","1103","1103 - CHALLABAMBA"]
[null,null,null,null,null,null,null,null,null,null,null,null,null,null,"000000000","(All)","02","03",null,null,"0203","000000000 - (All)",null,null,null,null,null,"11","04","COLQUEPATA","1104","1104 - COLQUEPATA"]
[null,null,null,null,null,null,null,null,null,null,null,null,null,null,"000002326","ANTA                                                                                                ","02","03","03","01","0203","000002326 - ANTA                                                                                                ",null,null,null,null,null,"11","05","HUANCARANI","1105","1105 - HUANCARANI"]
[null,null,null,null,null,null,null,null,null,null,null,null,null,null,"000002327","CHACAN                                                                                              ","02","03","03","01","0203","000002327 - CHACAN                                                                                              ",null,null,null,null,null,"11","06","KOSÑIPATA","1106","1106 - KOSÑIPATA"]
[null,null,null,null,null,null,null,null,null,null,null,null,null,null,"000002328","COMPONE                                                                                             ","02","03","03","01","0203","000002328 - COMPONE                                                                                             ",null,null,null,null,null,"12","00","(All)","1200","1200 - (All)"]
[null,null,null,null,null,null,null,null,null,null,null,null,null,null,"000002329","CONCHACALLA                                                                                         ","02","03","03","01","0203","000002329 - CONCHACALLA                                                                                         ",null,null,null,null,null,"12","01","URCOS","1201","1201 - URCOS"]
[null,null,null,null,null,null,null,null,null,null,null,null,null,null,"000002330","ANCAHUASI                                                                                           ","02","03","03","02","0203","000002330 - ANCAHUASI                                                                                           ",null,null,null,null,null,"12","02","ANDAHUAYLILLAS","1202","1202 - ANDAHUAYLILLAS"]
[null,null,null,null,null,null,null,null,null,null,null,null,null,null,"000002331","CACHIMAYO                                                                                           ","02","03","03","03","0203","000002331 - CACHIMAYO                                                                                           ",null,null,null,null,null,"12","03","CAMANTI","1203","1203 - CAMANTI"]
[null,null,null,null,null,null,null,null,null,null,null,null,null,null,"000002332","CHINCHAYPUJIO                                                                                       ","02","03","03","04","0203","000002332 - CHINCHAYPUJIO                                                                                       ",null,null,null,null,null,"12","04","CCARHUAYO","1204","1204 - CCARHUAYO"]
[null,null,null,null,null,null,null,null,null,null,null,null,null,null,"000002333","HUAROCONDO                                                                                          ","02","03","03","05","0203","000002333 - HUAROCONDO                                                                                          ",null,null,null,null,null,"12","05","CCATCA","1205","1205 - CCATCA"]
[null,null,null,null,null,null,null,null,null,null,null,null,null,null,"000002334","HUAYLLACOCHA                                                                                        ","02","03","03","05","0203","000002334 - HUAYLLACOCHA                                                                                        ",null,null,null,null,null,"12","06","CUSIPATA","1206","1206 - CUSIPATA"]
[null,null,null,null,null,null,null,null,null,null,null,null,null,null,"000002339","PUCYURA ANTA                                                                                        ","02","03","03","08","0203","000002339 - PUCYURA ANTA                                                                                        ",null,null,null,null,null,"12","07","HUARO","1207","1207 - HUARO"]
[null,null,null,null,null,null,null,null,null,null,null,null,null,null,"000002340","ZURITE                                                                                              ","02","03","03","09","0203","000002340 - ZURITE                                                                                              ",null,null,null,null,null,"12","08","LUCRE","1208","1208 - LUCRE"]
[null,null,null,null,null,null,null,null,null,null,null,null,null,null,"000006972","PANTIPATA                                                                                           ","02","03","03","04","0203","000006972 - PANTIPATA                                                                                           ",null,null,null,null,null,"12","09","MARCAPATA","1209","1209 - MARCAPATA"]
[null,null,null,null,null,null,null,null,null,null,null,null,null,null,"000027790","MENTAL COMUNITARIO ANTA","02","03","03","01","0203","000027790 - MENTAL COMUNITARIO ANTA",null,null,null,null,null,"12","10","OCONGATE","1210","1210 - OCONGATE"]
[null,null,null,null,null,null,null,null,null,null,null,null,null,null,"000000000","(All)","02","04",null,null,"0204","000000000 - (All)",null,null,null,null,null,"12","11","OROPESA","1211","1211 - OROPESA"]
[null,null,null,null,null,null,null,null,null,null,null,null,null,null,"000002336","LIMATAMBO                                                                                           ","02","04","03","06","0204","000002336 - LIMATAMBO                                                                                           ",null,null,null,null,null,"12","12","QUIQUIJANA","1212","1212 - QUIQUIJANA"]
[null,null,null,null,null,null,null,null,null,null,null,null,null,null,"000002337","PAMPACONGA                                                                                          ","02","04","03","06","0204","000002337 - PAMPACONGA                                                                                          ",null,null,null,null,null,"13","00","(All)","1300","1300 - (All)"]
[null,null,null,null,null,null,null,null,null,null,null,null,null,null,"000002338","MOLLEPATA                                                                                           ","02","04","03","07","0204","000002338 - MOLLEPATA                                                                                           ",null,null,null,null,null,"13","01","URUBAMBA","1301","1301 - URUBAMBA"]
[null,null,null,null,null,null,null,null,null,null,null,null,null,null,"000010761","URATARI                                                                                             ","02","04","03","06","0204","000010761 - URATARI                                                                                             ",null,null,null,null,null,"13","02","CHINCHERO","1302","1302 - CHINCHERO"]
[null,null,null,null,null,null,null,null,null,null,null,null,null,null,"000021061","HUAMANPATA                                                                                          ","02","04","03","07","0204","000021061 - HUAMANPATA                                                                                          ",null,null,null,null,null,"13","03","HUAYLLABAMBA","1303","1303 - HUAYLLABAMBA"]
[null,null,null,null,null,null,null,null,null,null,null,null,null,null,"000000000","(All)","02","05",null,null,"0205","000000000 - (All)",null,null,null,null,null,"13","04","MACHUPICCHU","1304","1304 - MACHUPICCHU"]
[null,null,null,null,null,null,null,null,null,null,null,null,null,null,"000002343","COYA                                                                                                ","02","05","04","02","0205","000002343 - COYA                                                                                                ",null,null,null,null,null,"13","05","MARAS","1305","1305 - MARAS"]
[null,null,null,null,null,null,null,null,null,null,null,null,null,null,"000002344","LAMAY                                                                                               ","02","05","04","03","0205","000002344 - LAMAY                                                                                               ",null,null,null,null,null,"13","06","OLLANTAYTAMBO","1306","1306 - OLLANTAYTAMBO"]
[null,null,null,null,null,null,null,null,null,null,null,null,null,null,"000002348","PISAC                                                                                               ","02","05","04","05","0205","000002348 - PISAC                                                                                               ",null,null,null,null,null,"13","07","YUCAY","1307","1307 - YUCAY"]
[null,null,null,null,null,null,null,null,null,null,null,null,null,null,"000002349","CUYO CHICO                                                                                          ","02","05","04","05","0205",{"$f":"CONCATENATE(O139,\" - \",P139)","v":"000002349 - CUYO CHICO                                                                                          "},null,null,null,null,null,"00","00","(All)",{"$f":"CONCATENATE(AB139,AC139)","v":"0000"},{"$f":"CONCATENATE(AB139,AC139,\" - \",AD139)","v":"0000 - (All)"}]
[null,null,null,null,null,null,null,null,null,null,null,null,null,null,"000002350","CUYO GRANDE                                                                                         ","02","05","04","05","0205","000002350 - CUYO GRANDE                                                                                         "]
[null,null,null,null,null,null,null,null,null,null,null,null,null,null,"000002351","QUELLO QUELLO                                                                                       ","02","05","04","05","0205","000002351 - QUELLO QUELLO                                                                                       "]
[null,null,null,null,null,null,null,null,null,null,null,null,null,null,"000002352","SAN SALVADOR                                                                                        ","02","05","04","06","0205","000002352 - SAN SALVADOR                                                                                        "]
[null,null,null,null,null,null,null,null,null,null,null,null,null,null,"000002353","TARAY                                                                                               ","02","05","04","07","0205","000002353 - TARAY                                                                                               "]
[null,null,null,null,null,null,null,null,null,null,null,null,null,null,"000002354","HUANCALLE                                                                                           ","02","05","04","07","0205","000002354 - HUANCALLE                                                                                           "]
[null,null,null,null,null,null,null,null,null,null,null,null,null,null,"000006970","TIRACANCHA                                                                                          ","02","05","04","06","0205","000006970 - TIRACANCHA                                                                                          "]
[null,null,null,null,null,null,null,null,null,null,null,null,null,null,"000006975","SAYLLAFAYA                                                                                          ","02","05","04","03","0205","000006975 - SAYLLAFAYA                                                                                          "]
[null,null,null,null,null,null,null,null,null,null,null,null,null,null,"000007145","HUAMA                                                                                               ","02","05","04","03","0205","000007145 - HUAMA                                                                                               "]
[null,null,null,null,null,null,null,null,null,null,null,null,null,null,"000007146","POQUES                                                                                              ","02","05","04","03","0205","000007146 - POQUES                                                                                              "]
[null,null,null,null,null,null,null,null,null,null,null,null,null,null,"000025368","HUARQUI","02","05","04","03","0205","000025368 - HUARQUI"]
[null,null,null,null,null,null,null,null,null,null,null,null,null,null,"000000000","(All)","02","06",null,null,"0206","000000000 - (All)"]
[null,null,null,null,null,null,null,null,null,null,null,null,null,null,"000002341","CALCA                                                                                               ","02","06","04","01","0206","000002341 - CALCA                                                                                               "]
[null,null,null,null,null,null,null,null,null,null,null,null,null,null,"000002342","AMPARAES                                                                                            ","02","06","04","04","0206","000002342 - AMPARAES                                                                                            "]
[null,null,null,null,null,null,null,null,null,null,null,null,null,null,"000002345","CCACHIN                                                                                             ","02","06","04","04","0206","000002345 - CCACHIN                                                                                             "]
[null,null,null,null,null,null,null,null,null,null,null,null,null,null,"000002346","CHOQUECANCHA                                                                                        ","02","06","04","04",{"$f":"CONCATENATE(Q154,R154)","v":"0206"},"000002346 - CHOQUECANCHA                                                                                        "]
[null,null,null,null,null,null,null,null,null,null,null,null,null,null,"000002347","LARES                                                                                               ","02","06","04","04","0206","000002347 - LARES                                                                                               "]
[null,null,null,null,null,null,null,null,null,null,null,null,null,null,"000002361","SUYO                                                                                                ","02","06","04","04","0206","000002361 - SUYO                                                                                                "]
[null,null,null,null,null,null,null,null,null,null,null,null,null,null,"000002515","PAROBAMBA                                                                                           ","02","06",11,"03","0206","000002515 - PAROBAMBA                                                                                           "]
[null,null,null,null,null,null,null,null,null,null,null,null,null,null,"000007143","OTOCANI                                                                                             ","02","06",11,"03","0206","000007143 - OTOCANI                                                                                             "]
[null,null,null,null,null,null,null,null,null,null,null,null,null,null,"000007144","PATABAMBA                                                                                           ","02","06","04","07","0206","000007144 - PATABAMBA                                                                                           "]
[null,null,null,null,null,null,null,null,null,null,null,null,null,null,"000010069","ESSALUD-CALCA","02","06","04","01","0206","000010069 - ESSALUD-CALCA"]
[null,null,null,null,null,null,null,null,null,null,null,null,null,null,"000010759","HUARAN                                                                                              ","02","06","04","01","0206","000010759 - HUARAN                                                                                              "]
[null,null,null,null,null,null,null,null,null,null,null,null,null,null,"000010762","ACCHA ALTA - PAMPALLACTA                                                                            ","02","06","04","01","0206","000010762 - ACCHA ALTA - PAMPALLACTA                                                                            "]
[null,null,null,null,null,null,null,null,null,null,null,null,null,null,"000026273","MENTAL COMUNITARIO CALCA","02","06","04","01","0206","000026273 - MENTAL COMUNITARIO CALCA"]
[null,null,null,null,null,null,null,null,null,null,null,null,null,null,"000000000","(All)","02","07",null,null,"0207","000000000 - (All)"]
[null,null,null,null,null,null,null,null,null,null,null,null,null,null,"000002540","URUBAMBA                                                                                            ","02","07",13,"01","0207","000002540 - URUBAMBA                                                                                            "]
[null,null,null,null,null,null,null,null,null,null,null,null,null,null,"000002541","YANAHUARA                                                                                           ","02","07",13,"01","0207","000002541 - YANAHUARA                                                                                           "]
[null,null,null,null,null,null,null,null,null,null,null,null,null,null,"000002543","CHINCHERO                                                                                           ","02","07",13,"02","0207","000002543 - CHINCHERO                                                                                           "]
[null,null,null,null,null,null,null,null,null,null,null,null,null,null,"000002544","OCCOTUAN                                                                                            ","02","07",13,"02","0207","000002544 - OCCOTUAN                                                                                            "]
[null,null,null,null,null,null,null,null,null,null,null,null,null,null,"000002545","HUAYLLABAMBA                                                                                        ","02","07",13,"03","0207","000002545 - HUAYLLABAMBA                                                                                        "]
[null,null,null,null,null,null,null,null,null,null,null,null,null,null,"000002546","MACHUPICCHU                                                                                         ","02","07",13,"04","0207","000002546 - MACHUPICCHU                                                                                         "]
[null,null,null,null,null,null,null,null,null,null,null,null,null,null,"000002547","COLLPANI                                                                                            ","02","07",13,"04","0207","000002547 - COLLPANI                                                                                            "]
[null,null,null,null,null,null,null,null,null,null,null,null,null,null,"000002548","MARAS                                                                                               ","02","07",13,"05","0207","000002548 - MARAS                                                                                               "]
[null,null,null,null,null,null,null,null,null,null,null,null,null,null,"000002549","OLLANTAYTAMBO                                                                                       ","02","07",13,"06","0207","000002549 - OLLANTAYTAMBO                                                                                       "]
[null,null,null,null,null,null,null,null,null,null,null,null,null,null,"000002550","CHILLCA                                                                                            ","02","07",13,"06","0207","000002550 - CHILLCA                                                                                            "]
[null,null,null,null,null,null,null,null,null,null,null,null,null,null,"000002551","YUCAY                                                                                               ","02","07",13,"07","0207","000002551 - YUCAY                                                                                               "]
[null,null,null,null,null,null,null,null,null,null,null,null,null,null,"000006974","CAMINO INCA HUAYLLABAMBA                                                                            ","02","07",13,"04","0207","000006974 - CAMINO INCA HUAYLLABAMBA                                                                            "]
[null,null,null,null,null,null,null,null,null,null,null,null,null,null,"000010060","ESSALUD-URUBAMBA","02","07",13,"01","0207","000010060 - ESSALUD-URUBAMBA"]
[null,null,null,null,null,null,null,null,null,null,null,null,null,null,"000010073","ESSALUD-MACHU PICCHU","02","07",13,"04","0207","000010073 - ESSALUD-MACHU PICCHU"]
[null,null,null,null,null,null,null,null,null,null,null,null,null,null,"000010758","CRUZPATA                                                                                            ","02","07",13,"05","0207","000010758 - CRUZPATA                                                                                            "]
[null,null,null,null,null,null,null,null,null,null,null,null,null,null,"000010760","PATACANCHA                                                                                          ","02","07",13,"06","0207","000010760 - PATACANCHA                                                                                          "]
[null,null,null,null,null,null,null,null,null,null,null,null,null,null,"000030666","MENTAL COMUNITARIO URUBAMBA","02","07",13,"01","0207","000030666 - MENTAL COMUNITARIO URUBAMBA"]
[null,null,null,null,null,null,null,null,null,null,null,null,null,null,"000000000","(All)","02","08",null,null,"0208","000000000 - (All)"]
[null,null,null,null,null,null,null,null,null,null,null,null,null,null,"000002355","LA QUEBRADA                                                                                         ","02","08","04","08","0208","000002355 - LA QUEBRADA                                                                                         "]
[null,null,null,null,null,null,null,null,null,null,null,null,null,null,"000002356","CCORIMAYO                                                                                           ","02","08","04","08","0208","000002356 - CCORIMAYO                                                                                           "]
[null,null,null,null,null,null,null,null,null,null,null,null,null,null,"000002357","COLCCA YANATILE                                                                                     ","02","08","04","08","0208","000002357 - COLCCA YANATILE                                                                                     "]
[null,null,null,null,null,null,null,null,null,null,null,null,null,null,"000002358","MUYUPAY                                                                                             ","02","08","04","08","0208","000002358 - MUYUPAY                                                                                             "]
[null,null,null,null,null,null,null,null,null,null,null,null,null,null,"000002359","PUTUCUSI                                                                                            ","02","08","04","08","0208","000002359 - PUTUCUSI                                                                                            "]
[null,null,null,null,null,null,null,null,null,null,null,null,null,null,"000002360","QUESQUENTO                                                                                          ","02","08","04","08","0208","000002360 - QUESQUENTO                                                                                          "]
[null,null,null,null,null,null,null,null,null,null,null,null,null,null,"000002362","HUACHIBAMBA                                                                                         ","02","08","04","08","0208","000002362 - HUACHIBAMBA                                                                                         "]
[null,null,null,null,null,null,null,null,null,null,null,null,null,null,"000002464","VERSALLES                                                                                           ","02","08","09","05","0208","000002464 - VERSALLES                                                                                           "]
[null,null,null,null,null,null,null,null,null,null,null,null,null,null,"000002467","PUENTE SANTIAGO                                                                                     ","02","08","09","06","0208","000002467 - PUENTE SANTIAGO                                                                                     "]
[null,null,null,null,null,null,null,null,null,null,null,null,null,null,"000006971","COMBAPATA YANATILE                                                                                  ","02","08","04","08","0208","000006971 - COMBAPATA YANATILE                                                                                  "]
[null,null,null,null,null,null,null,null,null,null,null,null,null,null,"000006973","BELLAVISTA                                                                                          ","02","08","04","08","0208","000006973 - BELLAVISTA                                                                                          "]
[null,null,null,null,null,null,null,null,null,null,null,null,null,null,"000007142","CHANCAMAYO                                                                                          ","02","08","04","08","0208","000007142 - CHANCAMAYO                                                                                          "]
[null,null,null,null,null,null,null,null,null,null,null,null,null,null,"000000000","(All)","02","09",null,null,"0209","000000000 - (All)"]
[null,null,null,null,null,null,null,null,null,null,null,null,null,null,"000002290","SAN PEDRO CUSCO                                                                                     ","02","09","01","01","0209","000002290 - SAN PEDRO CUSCO                                                                                     "]
[null,null,null,null,null,null,null,null,null,null,null,null,null,null,"000002291","SIETE CUARTONES                                                                                     ","02","09","01","01","0209","000002291 - SIETE CUARTONES                                                                                     "]
[null,null,null,null,null,null,null,null,null,null,null,null,null,null,"000002293","MIRAFLORES                                                                                          ","02","09","01","01","0209","000002293 - MIRAFLORES                                                                                          "]
[null,null,null,null,null,null,null,null,null,null,null,null,null,null,"000002294","PICCHU LA RINCONADA                                                                                 ","02","09","01","01","0209","000002294 - PICCHU LA RINCONADA                                                                                 "]
[null,null,null,null,null,null,null,null,null,null,null,null,null,null,"000002295","BUENA VISTA                                                                                         ","02","09","01","01","0209","000002295 - BUENA VISTA                                                                                         "]
[null,null,null,null,null,null,null,null,null,null,null,null,null,null,"000002299","POROY                                                                                               ","02","09","01","03","0209","000002299 - POROY                                                                                               "]
[null,null,null,null,null,null,null,null,null,null,null,null,null,null,"999999999","(All)","02","99",null,null,"0299","999999999 - (All)"]
[null,null,null,null,null,null,null,null,null,null,null,null,null,null,"000002421","HOSPITAL QUILLABAMBA","03","00","09","01",{"$f":"CONCATENATE(Q203,R203)","v":"0300"},{"$f":"CONCATENATE(O203,\" - \",P203)","v":"000002421 - HOSPITAL QUILLABAMBA"}]
[null,null,null,null,null,null,null,null,null,null,null,null,null,null,"000000000","(All)","03","01",null,null,{"$f":"CONCATENATE(Q204,R204)","v":"0301"},{"$f":"CONCATENATE(O204,\" - \",P204)","v":"000000000 - (All)"}]
[null,null,null,null,null,null,null,null,null,null,null,null,null,null,"000002422","HUAYANAY                                                                                            ","03","01","09","01",{"$f":"CONCATENATE(Q205,R205)","v":"0301"},{"$f":"CONCATENATE(O205,\" - \",P205)","v":"000002422 - HUAYANAY                                                                                            "}]
[null,null,null,null,null,null,null,null,null,null,null,null,null,null,"000002423","IDMA                                                                                                ","03","01","09","01","0301",{"$f":"CONCATENATE(O206,\" - \",P206)","v":"000002423 - IDMA                                                                                                "}]
[null,null,null,null,null,null,null,null,null,null,null,null,null,null,"000002424","POTRERO                                                                                             ","03","01","09","01","0301",{"$f":"CONCATENATE(O207,\" - \",P207)","v":"000002424 - POTRERO                                                                                             "}]
[null,null,null,null,null,null,null,null,null,null,null,null,null,null,"000002425","ECHARATE                                                                                            ","03","01","09","02","0301","000002425 - ECHARATE                                                                                            "]
[null,null,null,null,null,null,null,null,null,null,null,null,null,null,"000002429","CIRIALO                                                                                             ","03","01","09","02","0301","000002429 - CIRIALO                                                                                             "]
[null,null,null,null,null,null,null,null,null,null,null,null,null,null,"000002430","PAMPA CONCEPCION                                                                                    ","03","01","09","02","0301","000002430 - PAMPA CONCEPCION                                                                                    "]
[null,null,null,null,null,null,null,null,null,null,null,null,null,null,"000002433","KORIBENI                                                                                            ","03","01","09","02","0301","000002433 - KORIBENI                                                                                            "]
[null,null,null,null,null,null,null,null,null,null,null,null,null,null,"000002439","PALMA REAL                                                                                          ","03","01","09","02","0301","000002439 - PALMA REAL                                                                                          "]
[null,null,null,null,null,null,null,null,null,null,null,null,null,null,"000002446","CHACCO                                                                                              ","03","01","09","02","0301","000002446 - CHACCO                                                                                              "]
[null,null,null,null,null,null,null,null,null,null,null,null,null,null,"000002449","ICHIQUIATO                                                                                          ","03","01","09","02","0301","000002449 - ICHIQUIATO                                                                                          "]
[null,null,null,null,null,null,null,null,null,null,null,null,null,null,"000002450","SAN ANTONIO                                                                                         ","03","01","09","02","0301","000002450 - SAN ANTONIO                                                                                         "]
[null,null,null,null,null,null,null,null,null,null,null,null,null,null,"000002451","CHAHUARES                                                                                           ","03","01","09","02","0301","000002451 - CHAHUARES                                                                                           "]
[null,null,null,null,null,null,null,null,null,null,null,null,null,null,"000008910","SANTA ANA                                                                                           ","03","01","09","01","0301","000008910 - SANTA ANA                                                                                           "]
[null,null,null,null,null,null,null,null,null,null,null,null,null,null,"000010062","ESSALUD-QUILLABAMBA","03","01","09","01","0301","000010062 - ESSALUD-QUILLABAMBA"]
[null,null,null,null,null,null,null,null,null,null,null,null,null,null,"000011744","SANIDAD-QUILLABAMBA PNP","03","01","09","01","0301","000011744 - SANIDAD-QUILLABAMBA PNP"]
[null,null,null,null,null,null,null,null,null,null,null,null,null,null,"000015842","PAVAYOC                                                                                             ","03","01","09","01","0301","000015842 - PAVAYOC                                                                                             "]
[null,null,null,null,null,null,null,null,null,null,null,null,null,null,"000023721","EJERCITO-PERUANO","03","01","09","01","0301","000023721 - EJERCITO-PERUANO"]
[null,null,null,null,null,null,null,null,null,null,null,null,null,null,"000026386","MENTAL QUILLABAMBA","03","01","09","01","0301","000026386 - MENTAL QUILLABAMBA"]
[null,null,null,null,null,null,null,null,null,null,null,null,null,null,"000033273","SAN ISIDRO LABRADOR - ECHARATI","03","01","09","02","0301","000033273 - SAN ISIDRO LABRADOR - ECHARATI"]
[null,null,null,null,null,null,null,null,null,null,null,null,null,null,"000000000","(All)","03","02",null,null,"0302","000000000 - (All)"]
[null,null,null,null,null,null,null,null,null,null,null,null,null,null,"000002453","HUYRO                                                                                               ","03","02","09","03","0302","000002453 - HUYRO                                                                                               "]
[null,null,null,null,null,null,null,null,null,null,null,null,null,null,"000002454","ALFAMAYO                                                                                            ","03","02","09","03","0302","000002454 - ALFAMAYO                                                                                            "]
[null,null,null,null,null,null,null,null,null,null,null,null,null,null,"000002455","HUAYOPATA                                                                                           ","03","02","09","03","0302","000002455 - HUAYOPATA                                                                                           "]
[null,null,null,null,null,null,null,null,null,null,null,null,null,null,"000002456","AMAYBAMBA                                                                                           ","03","02","09","03","0302","000002456 - AMAYBAMBA                                                                                           "]
[null,null,null,null,null,null,null,null,null,null,null,null,null,null,"000002457","SAN PABLO HUAYOPATA                                                                                 ","03","02","09","03","0302","000002457 - SAN PABLO HUAYOPATA                                                                                 "]
[null,null,null,null,null,null,null,null,null,null,null,null,null,null,"000002458","MARANURA                                                                                            ","03","02","09","04","0302","000002458 - MARANURA                                                                                            "]
[null,null,null,null,null,null,null,null,null,null,null,null,null,null,"000002460","SANTA MARIA                                                                                         ","03","02","09","04","0302","000002460 - SANTA MARIA                                                                                         "]
[null,null,null,null,null,null,null,null,null,null,null,null,null,null,"000002461","UCHUMAYO                                                                                            ","03","02","09","04","0302","000002461 - UCHUMAYO                                                                                            "]
[null,null,null,null,null,null,null,null,null,null,null,null,null,null,"000002476","SANTA TERESA                                                                                        ","03","02","09","08","0302","000002476 - SANTA TERESA                                                                                        "]
[null,null,null,null,null,null,null,null,null,null,null,null,null,null,"000002477","SULLUCUYOC                                                                                          ","03","02","09","08","0302","000002477 - SULLUCUYOC                                                                                          "]
[null,null,null,null,null,null,null,null,null,null,null,null,null,null,"000002478","TOTORA                                                                                              ","03","02","09","08","0302","000002478 - TOTORA                                                                                              "]
[null,null,null,null,null,null,null,null,null,null,null,null,null,null,"000010075","ESSALUD-HUYRO","03","02","09","03","0302","000010075 - ESSALUD-HUYRO"]
[null,null,null,null,null,null,null,null,null,null,null,null,null,null,"000000000","(All)","03","03",null,null,"0303","000000000 - (All)"]
[null,null,null,null,null,null,null,null,null,null,null,null,null,null,"000002363","TUPAC AMARU QUELLOUNO                                                                               ","03","03","04","08","0303","000002363 - TUPAC AMARU QUELLOUNO                                                                               "]
[null,null,null,null,null,null,null,null,null,null,null,null,null,null,"000002462","OCCOBAMBA LACONVENCION                                                                              ","03","03","09","05","0303","000002462 - OCCOBAMBA LACONVENCION                                                                              "]
[null,null,null,null,null,null,null,null,null,null,null,null,null,null,"000002463","CHINGANILLA                                                                                         ","03","03","09","05","0303","000002463 - CHINGANILLA                                                                                         "]
[null,null,null,null,null,null,null,null,null,null,null,null,null,null,"000002465","QUELLOUNO                                                                                           ","03","03","09","06","0303","000002465 - QUELLOUNO                                                                                           "]
[null,null,null,null,null,null,null,null,null,null,null,null,null,null,"000002466","HUILLCAPAMPA                                                                                        ","03","03","09","06","0303","000002466 - HUILLCAPAMPA                                                                                        "]
[null,null,null,null,null,null,null,null,null,null,null,null,null,null,"000002468","SAN MARTIN                                                                                          ","03","03","09","06","0303","000002468 - SAN MARTIN                                                                                          "]
[null,null,null,null,null,null,null,null,null,null,null,null,null,null,"000008906","ESTRELLA                                                                                            ","03","03","09","06","0303","000008906 - ESTRELLA                                                                                            "]
[null,null,null,null,null,null,null,null,null,null,null,null,null,null,"000008907","MATORIATO                                                                                           ","03","03","09","06","0303","000008907 - MATORIATO                                                                                           "]
[null,null,null,null,null,null,null,null,null,null,null,null,null,null,"000008908","CHIRUMBIA                                                                                           ","03","03","09","06","0303","000008908 - CHIRUMBIA                                                                                           "]
[null,null,null,null,null,null,null,null,null,null,null,null,null,null,"000008909","CHAPO BOYERO                                                                                        ","03","03","09","06","0303","000008909 - CHAPO BOYERO                                                                                        "]
[null,null,null,null,null,null,null,null,null,null,null,null,null,null,"000000000","(All)","03","04",null,null,"0304","000000000 - (All)"]
[null,null,null,null,null,null,null,null,null,null,null,null,null,null,"000002427","KITENI                                                                                              ","03","04","09","02","0304","000002427 - KITENI                                                                                              "]
[null,null,null,null,null,null,null,null,null,null,null,null,null,null,"000002431","IVOCHOTE                                                                                            ","03","04","09","02","0304","000002431 - IVOCHOTE                                                                                            "]
[null,null,null,null,null,null,null,null,null,null,null,null,null,null,"000002432","KEPASHIATO                                                                                          ","03","04","09","15","0304","000002432 - KEPASHIATO                                                                                          "]
[null,null,null,null,null,null,null,null,null,null,null,null,null,null,"000002434","MATERIATO                                                                                           ","03","04","09","15","0304","000002434 - MATERIATO                                                                                           "]
[null,null,null,null,null,null,null,null,null,null,null,null,null,null,"000002438","PACHIRI                                                                                             ","03","04","09","02","0304","000002438 - PACHIRI                                                                                             "]
[null,null,null,null,null,null,null,null,null,null,null,null,null,null,"000002440","PANGOA                                                                                              ","03","04","09","02","0304","000002440 - PANGOA                                                                                              "]
[null,null,null,null,null,null,null,null,null,null,null,null,null,null,"000002443","SANIRIATO                                                                                           ","03","04","09","02","0304","000002443 - SANIRIATO                                                                                           "]
[null,null,null,null,null,null,null,null,null,null,null,null,null,null,"000002447","KAMANQUIRIATO                                                                                       ","03","04","09","02","0304","000002447 - KAMANQUIRIATO                                                                                       "]
[null,null,null,null,null,null,null,null,null,null,null,null,null,null,"000002489","YUVENI                                                                                              ","03","04","09","09","0304","000002489 - YUVENI                                                                                              "]
[null,null,null,null,null,null,null,null,null,null,null,null,null,null,"000002493","SELVA ALEGRE                                                                                        ","03","04","09","09","0304","000002493 - SELVA ALEGRE                                                                                        "]
[null,null,null,null,null,null,null,null,null,null,null,null,null,null,"000006976","CHONTABAMBA                                                                                         ","03","04","09","09","0304","000006976 - CHONTABAMBA                                                                                         "]
[null,null,null,null,null,null,null,null,null,null,null,null,null,null,"000013068","TRIO RIO                                                                                            ","03","04","09","15","0304","000013068 - TRIO RIO                                                                                            "]
[null,null,null,null,null,null,null,null,null,null,null,null,null,null,"000013069","PUGUIENTIMARI                                                                                       ","03","04","09","15","0304","000013069 - PUGUIENTIMARI                                                                                       "]
[null,null,null,null,null,null,null,null,null,null,null,null,null,null,"000014531","ESSALUD-ECHARATE/KITENI","03","04","09","02","0304","000014531 - ESSALUD-ECHARATE/KITENI"]
[null,null,null,null,null,null,null,null,null,null,null,null,null,null,"000024583","EJERCITO-KEPASHIATO 314","03","04","09","02","0304","000024583 - EJERCITO-KEPASHIATO 314"]
[null,null,null,null,null,null,null,null,null,null,null,null,null,null,"000024296","EJERCITO-MIARIA 334","03","04","09","02","0304","000024296 - EJERCITO-MIARIA 334"]
[null,null,null,null,null,null,null,null,null,null,null,null,null,null,"000000000","(All)","03","05",null,null,"0305","000000000 - (All)"]
[null,null,null,null,null,null,null,null,null,null,null,null,null,null,"000002426","KIRIGUETI                                                                                           ","03","05","09","14","0305","000002426 - KIRIGUETI                                                                                           "]
[null,null,null,null,null,null,null,null,null,null,null,null,null,null,"000002428","CHOCORIARI                                                                                          ","03","05","09","14","0305","000002428 - CHOCORIARI                                                                                          "]
[null,null,null,null,null,null,null,null,null,null,null,null,null,null,"000002435","MIARIA                                                                                              ","03","05","09","14","0305","000002435 - MIARIA                                                                                              "]
[null,null,null,null,null,null,null,null,null,null,null,null,null,null,"000002436","NUEVA LUZ                                                                                           ","03","05","09","14",{"$f":"CONCATENATE(Q269,R269)","v":"0305"},"000002436 - NUEVA LUZ                                                                                           "]
[null,null,null,null,null,null,null,null,null,null,null,null,null,null,"000002437","NUEVO MUNDO                                                                                         ","03","05","09","14","0305","000002437 - NUEVO MUNDO                                                                                         "]
[null,null,null,null,null,null,null,null,null,null,null,null,null,null,"000002441","PUERTO HUALLANA                                                                                     ","03","05","09","14","0305",{"$f":"CONCATENATE(O271,\" - \",P271)","v":"000002441 - PUERTO HUALLANA                                                                                     "}]
[null,null,null,null,null,null,null,null,null,null,null,null,null,null,"000002442","PUERTO RICO                                                                                         ","03","05","09","14","0305","000002442 - PUERTO RICO                                                                                         "]
[null,null,null,null,null,null,null,null,null,null,null,null,null,null,"000002444","SENSA                                                                                               ","03","05","09","14","0305","000002444 - SENSA                                                                                               "]
[null,null,null,null,null,null,null,null,null,null,null,null,null,null,"000002445","TIMPIA                                                                                              ","03","05","09","14","0305","000002445 - TIMPIA                                                                                              "]
[null,null,null,null,null,null,null,null,null,null,null,null,null,null,"000002448","KAMISEA                                                                                             ","03","05","09","14","0305","000002448 - KAMISEA                                                                                             "]
[null,null,null,null,null,null,null,null,null,null,null,null,null,null,"000002452","SHIVANKORENI                                                                                        ","03","05","09","14","0305","000002452 - SHIVANKORENI                                                                                        "]
[null,null,null,null,null,null,null,null,null,null,null,null,null,null,"000013066","MONTETONI                                                                                           ","03","05","09","14","0305","000013066 - MONTETONI                                                                                           "]
[null,null,null,null,null,null,null,null,null,null,null,null,null,null,"000013067","TANGOSHIARI                                                                                         ","03","05","09","14","0305","000013067 - TANGOSHIARI                                                                                         "]
[null,null,null,null,null,null,null,null,null,null,null,null,null,null,"000015235","NUEVA VIDA                                                                                          ","03","05","09","14","0305","000015235 - NUEVA VIDA                                                                                          "]
[null,null,null,null,null,null,null,null,null,null,null,null,null,null,"000015843","CASHIRIARI                                                                                          ","03","05","09","14","0305","000015843 - CASHIRIARI                                                                                          "]
[null,null,null,null,null,null,null,null,null,null,null,null,null,null,"000015844","CAMANA                                                                                              ","03","05","09","14","0305","000015844 - CAMANA                                                                                              "]
[null,null,null,null,null,null,null,null,null,null,null,null,null,null,"000000000","(All)","03","06",null,null,"0306","000000000 - (All)"]
[null,null,null,null,null,null,null,null,null,null,null,null,null,null,"000002480","PUCYURA                                                                                             ","03","06","09","09","0306","000002480 - PUCYURA                                                                                             "]
[null,null,null,null,null,null,null,null,null,null,null,null,null,null,"000002481","CCARCCO                                                                                             ","03","06","09",11,"0306","000002481 - CCARCCO                                                                                             "]
[null,null,null,null,null,null,null,null,null,null,null,null,null,null,"000002482","INCAHUASI                                                                                           ","03","06","09",11,"0306","000002482 - INCAHUASI                                                                                           "]
[null,null,null,null,null,null,null,null,null,null,null,null,null,null,"000002484","OYARA                                                                                               ","03","06","09","09","0306","000002484 - OYARA                                                                                               "]
[null,null,null,null,null,null,null,null,null,null,null,null,null,null,"000002485","PACCAYBAMBA                                                                                         ","03","06","09",11,"0306","000002485 - PACCAYBAMBA                                                                                         "]
[null,null,null,null,null,null,null,null,null,null,null,null,null,null,"000002486","PAMPACONAS                                                                                          ","03","06","09","09","0306","000002486 - PAMPACONAS                                                                                          "]
[null,null,null,null,null,null,null,null,null,null,null,null,null,null,"000002487","CHOQUETIRA                                                                                          ","03","06","09",11,"0306","000002487 - CHOQUETIRA                                                                                          "]
[null,null,null,null,null,null,null,null,null,null,null,null,null,null,"000002490","ARMA                                                                                                ","03","06","09","09","0306","000002490 - ARMA                                                                                                "]
[null,null,null,null,null,null,null,null,null,null,null,null,null,null,"000002491","LUCMAHUAYCO                                                                                         ","03","06","09",11,"0306","000002491 - LUCMAHUAYCO                                                                                         "]
[null,null,null,null,null,null,null,null,null,null,null,null,null,null,"000002492","PALTAYBAMBA                                                                                         ","03","06","09","09","0306","000002492 - PALTAYBAMBA                                                                                         "]
[null,null,null,null,null,null,null,null,null,null,null,null,null,null,"000013070","CHANCAVINE                                                                                          ","03","06","09",12,"0306","000013070 - CHANCAVINE                                                                                          "]
[null,null,null,null,null,null,null,null,null,null,null,null,null,null,"000024637","EJERCITO-INCAHUASI 331                                                                                       ","03","06","09",11,"0306","000024637 - EJERCITO-INCAHUASI 331                                                                                       "]
[null,null,null,null,null,null,null,null,null,null,null,null,null,null,"999999999","(All)","03","99",null,null,"0399","999999999 - (All)"]
[null,null,null,null,null,null,null,null,null,null,null,null,null,null,"000002378","HOSPITAL SICUANI","04","00","06","01","0400","000002378 - HOSPITAL SICUANI"]
[null,null,null,null,null,null,null,null,null,null,null,null,null,null,"000007135","HOSPITAL ESPINAR","04","00","08","01","0400","000007135 - HOSPITAL ESPINAR"]
[null,null,null,null,null,null,null,null,null,null,null,null,null,null,"000000000","(All)","04","01",null,null,"0401","000000000 - (All)"]
[null,null,null,null,null,null,null,null,null,null,null,null,null,null,"000002364","YANAOCA                                                                                             ","04","01","05","01","0401","000002364 - YANAOCA                                                                                             "]
[null,null,null,null,null,null,null,null,null,null,null,null,null,null,"000002365","PONGOÑA                                                                                             ","04","01","05","01","0401","000002365 - PONGOÑA                                                                                             "]
[null,null,null,null,null,null,null,null,null,null,null,null,null,null,"000002372","PAMPAMARCA                                                                                          ","04","01","05","06","0401","000002372 - PAMPAMARCA                                                                                          "]
[null,null,null,null,null,null,null,null,null,null,null,null,null,null,"000002373","QUEHUE                                                                                              ","04","01","05","07","0401","000002373 - QUEHUE                                                                                              "]
[null,null,null,null,null,null,null,null,null,null,null,null,null,null,"000002374","HUINCHIRI                                                                                           ","04","01","05","07","0401","000002374 - HUINCHIRI                                                                                           "]
[null,null,null,null,null,null,null,null,null,null,null,null,null,null,"000002375","SURIMANA                                                                                            ","04","01","05","08","0401","000002375 - SURIMANA                                                                                            "]
[null,null,null,null,null,null,null,null,null,null,null,null,null,null,"000002376","TUNGASUCA                                                                                           ","04","01","05","08","0401","000002376 - TUNGASUCA                                                                                           "]
[null,null,null,null,null,null,null,null,null,null,null,null,null,null,"000002377","TOCCOCCORI                                                                                          ","04","01","05","08","0401","000002377 - TOCCOCCORI                                                                                          "]
[null,null,null,null,null,null,null,null,null,null,null,null,null,null,"000018241","HAMPATURA                                                                                           ","04","01","05","01","0401","000018241 - HAMPATURA                                                                                           "]
[null,null,null,null,null,null,null,null,null,null,null,null,null,null,"000032339","CCOCHAPATA                                                                                     ","04","01","05","08","0401","000032339 - CCOCHAPATA                                                                                     "]
[null,null,null,null,null,null,null,null,null,null,null,null,null,null,"000034449","CHAUPIBANDA","04","01","05","08","0401","000034449 - CHAUPIBANDA"]
[null,null,null,null,null,null,null,null,null,null,null,null,null,null,"000000000","(All)","04","02",null,null,"0402","000000000 - (All)"]
[null,null,null,null,null,null,null,null,null,null,null,null,null,null,"000002366","CHECCA                                                                                              ","04","02","05","02","0402","000002366 - CHECCA                                                                                              "]
[null,null,null,null,null,null,null,null,null,null,null,null,null,null,"000002367","CHITIBAMBA                                                                                          ","04","02","05","02","0402","000002367 - CHITIBAMBA                                                                                          "]
[null,null,null,null,null,null,null,null,null,null,null,null,null,null,"000007700","EL DESCANSO                                                                                         ","04","02","05","03","0402","000007700 - EL DESCANSO                                                                                         "]
[null,null,null,null,null,null,null,null,null,null,null,null,null,null,"000000000","(All)","04","03",null,null,"0403","000000000 - (All)"]
[null,null,null,null,null,null,null,null,null,null,null,null,null,null,"000002320","MOSOCLLACTA                                                                                         ","04","03","02","04","0403","000002320 - MOSOCLLACTA                                                                                         "]
[null,null,null,null,null,null,null,null,null,null,null,null,null,null,"000002385","CHECACUPE                                                                                           ","04","03","06","02","0403","000002385 - CHECACUPE                                                                                           "]
[null,null,null,null,null,null,null,null,null,null,null,null,null,null,"000002386","COMBAPATA CANCHIS                                                                                   ","04","03","06","03","0403","000002386 - COMBAPATA CANCHIS                                                                                   "]
[null,null,null,null,null,null,null,null,null,null,null,null,null,null,"000002387","CHIARA                                                                                              ","04","03","06","03","0403","000002387 - CHIARA                                                                                              "]
[null,null,null,null,null,null,null,null,null,null,null,null,null,null,"000002392","PITUMARCA                                                                                           ","04","03","06","05","0403","000002392 - PITUMARCA                                                                                           "]
[null,null,null,null,null,null,null,null,null,null,null,null,null,null,"000002397","TINTA                                                                                               ","04","03","06","08","0403","000002397 - TINTA                                                                                               "]
[null,null,null,null,null,null,null,null,null,null,null,null,null,null,"000000000","(All)","04","04",null,null,"0404","000000000 - (All)"]
[null,null,null,null,null,null,null,null,null,null,null,null,null,null,"000002369","LANGUI                                                                                              ","04","04","05","04","0404","000002369 - LANGUI                                                                                              "]
[null,null,null,null,null,null,null,null,null,null,null,null,null,null,"000002370","CONDEVILUYO                                                                                         ","04","04","05","04","0404","000002370 - CONDEVILUYO                                                                                         "]
[null,null,null,null,null,null,null,null,null,null,null,null,null,null,"000002371","LAYO                                                                                                ","04","04","05","05","0404","000002371 - LAYO                                                                                                "]
[null,null,null,null,null,null,null,null,null,null,null,null,null,null,"000002379","HERCCA                                                                                              ","04","04","06","01","0404","000002379 - HERCCA                                                                                              "]
[null,null,null,null,null,null,null,null,null,null,null,null,null,null,"000002380","TECHO OBRERO                                                                                        ","04","04","06","01","0404","000002380 - TECHO OBRERO                                                                                        "]
[null,null,null,null,null,null,null,null,null,null,null,null,null,null,"000002388","MARANGANI                                                                                           ","04","04","06","04","0404","000002388 - MARANGANI                                                                                           "]
[null,null,null,null,null,null,null,null,null,null,null,null,null,null,"000002389","CHECTUYOC                                                                                           ","04","04","06","04","0404","000002389 - CHECTUYOC                                                                                           "]
[null,null,null,null,null,null,null,null,null,null,null,null,null,null,"000002390","CCUYO                                                                                               ","04","04","06","04","0404","000002390 - CCUYO                                                                                               "]
[null,null,null,null,null,null,null,null,null,null,null,null,null,null,"000002391","OCCOBAMBA MARANGANI                                                                                 ","04","04","06","04","0404","000002391 - OCCOBAMBA MARANGANI                                                                                 "]
[null,null,null,null,null,null,null,null,null,null,null,null,null,null,"000010063","ESSALUD-SICUANI","04","04","06","01","0404","000010063 - ESSALUD-SICUANI"]
[null,null,null,null,null,null,null,null,null,null,null,null,null,null,"000024663","SANIDAD-SICUANI PNP","04","04","06","01","0404","000024663 - SANIDAD-SICUANI PNP"]
[null,null,null,null,null,null,null,null,null,null,null,null,null,null,"000000000","(All)","04","05",null,null,{"$f":"CONCATENATE(Q333,R333)","v":"0405"},"000000000 - (All)"]
[null,null,null,null,null,null,null,null,null,null,null,null,null,null,"000002381","QUEHUAR                                                                                             ","04","05","06","01","0405","000002381 - QUEHUAR                                                                                             "]
[null,null,null,null,null,null,null,null,null,null,null,null,null,null,"000002382","UZCUPATA                                                                                            ","04","05","06","01","0405",{"$f":"CONCATENATE(O335,\" - \",P335)","v":"000002382 - UZCUPATA                                                                                            "}]
[null,null,null,null,null,null,null,null,null,null,null,null,null,null,"000002383","LA FLORIDA                                                                                          ","04","05","06","01","0405","000002383 - LA FLORIDA                                                                                          "]
[null,null,null,null,null,null,null,null,null,null,null,null,null,null,"000002384","PAMPAPHALLA                                                                                         ","04","05","06","01","0405","000002384 - PAMPAPHALLA                                                                                         "]
[null,null,null,null,null,null,null,null,null,null,null,null,null,null,"000002393","PHINAYA                                                                                             ","04","05","06","05","0405","000002393 - PHINAYA                                                                                             "]
[null,null,null,null,null,null,null,null,null,null,null,null,null,null,"000002394","SAN PABLO CANCHIS                                                                                   ","04","05","06","06","0405","000002394 - SAN PABLO CANCHIS                                                                                   "]
[null,null,null,null,null,null,null,null,null,null,null,null,null,null,"000002395","SANTA BARBARA                                                                                       ","04","05","06","06","0405","000002395 - SANTA BARBARA                                                                                       "]
[null,null,null,null,null,null,null,null,null,null,null,null,null,null,"000002396","SAN PEDRO CANCHIS                                                                                   ","04","05","06","07","0405","000002396 - SAN PEDRO CANCHIS                                                                                   "]
[null,null,null,null,null,null,null,null,null,null,null,null,null,null,"000026387","MENTAL COMUNITARIO SICUANI","04","05","06","01","0405","000026387 - MENTAL COMUNITARIO SICUANI"]
[null,null,null,null,null,null,null,null,null,null,null,null,null,null,"000000000","(All)","04","06",null,null,"0406","000000000 - (All)"]
[null,null,null,null,null,null,null,null,null,null,null,null,null,null,"000002410","YAURI                                                                                               ","04","06","08","01","0406","000002410 - YAURI                                                                                               "]
[null,null,null,null,null,null,null,null,null,null,null,null,null,null,"000002411","CONDOROMA                                                                                           ","04","06","08","02","0406","000002411 - CONDOROMA                                                                                           "]
[null,null,null,null,null,null,null,null,null,null,null,null,null,null,"000002412","COPORAQUE                                                                                           ","04","06","08","03","0406","000002412 - COPORAQUE                                                                                           "]
[null,null,null,null,null,null,null,null,null,null,null,null,null,null,"000002413","URINSAYA                                                                                            ","04","06","08","03","0406","000002413 - URINSAYA                                                                                            "]
[null,null,null,null,null,null,null,null,null,null,null,null,null,null,"000002414","HUAYHUAHUASI                                                                                        ","04","06","08","03","0406","000002414 - HUAYHUAHUASI                                                                                        "]
[null,null,null,null,null,null,null,null,null,null,null,null,null,null,"000002415","OCCORURO                                                                                            ","04","06","08","04","0406","000002415 - OCCORURO                                                                                            "]
[null,null,null,null,null,null,null,null,null,null,null,null,null,null,"000002416","PALLPATA                                                                                            ","04","06","08","05","0406","000002416 - PALLPATA                                                                                            "]
[null,null,null,null,null,null,null,null,null,null,null,null,null,null,"000002417","PICHIGUA ESPINAR                                                                                    ","04","06","08","06","0406","000002417 - PICHIGUA ESPINAR                                                                                    "]
[null,null,null,null,null,null,null,null,null,null,null,null,null,null,"000002418","SAN MIGUEL                                                                                          ","04","06","08","06","0406","000002418 - SAN MIGUEL                                                                                          "]
[null,null,null,null,null,null,null,null,null,null,null,null,null,null,"000002419","SUYKUTAMBO                                                                                          ","04","06","08","07","0406","000002419 - SUYKUTAMBO                                                                                          "]
[null,null,null,null,null,null,null,null,null,null,null,null,null,null,"000002420","ACCOCUNCA                                                                                           ","04","06","08","08","0406","000002420 - ACCOCUNCA                                                                                           "]
[null,null,null,null,null,null,null,null,null,null,null,null,null,null,"000006745","TINTAYA MARQUIRI                                                                                    ","04","06","08","01","0406","000006745 - TINTAYA MARQUIRI                                                                                    "]
[null,null,null,null,null,null,null,null,null,null,null,null,null,null,"000010061","ESSALUD-ESPINAR","04","06","08","01","0406","000010061 - ESSALUD-ESPINAR"]
[null,null,null,null,null,null,null,null,null,null,null,null,null,null,"000030366","MENTAL COMUNITARIO ESPINAR","04","06","08","01","0406","000030366 - MENTAL COMUNITARIO ESPINAR"]
[null,null,null,null,null,null,null,null,null,null,null,null,null,null,"999999999","(All)","04","99",null,null,"0499","999999999 - (All)"]
[null,null,null,null,null,null,null,null,null,null,null,null,null,null,"000002469","SAN JUAN DE KIMBIRI-VRAEM                                                                           ","05","00","09","07","0500","000002469 - SAN JUAN DE KIMBIRI-VRAEM                                                                           "]
[null,null,null,null,null,null,null,null,null,null,null,null,null,null,"000000000","(All)","05","01",null,null,"0501","000000000 - (All)"]
[null,null,null,null,null,null,null,null,null,null,null,null,null,null,"000002470","CHIRUMPIARI                                                                                         ","05","01","09","16","0501","000002470 - CHIRUMPIARI                                                                                         "]
[null,null,null,null,null,null,null,null,null,null,null,null,null,null,"000002471","LOBO TAHUANTINSUYO                                                                                  ","05","01","09","17","0501","000002471 - LOBO TAHUANTINSUYO                                                                                  "]
[null,null,null,null,null,null,null,null,null,null,null,null,null,null,"000002472","MAPITUNARI                                                                                          ","05","01","09","07","0501","000002472 - MAPITUNARI                                                                                          "]
[null,null,null,null,null,null,null,null,null,null,null,null,null,null,"000002473","UNION ROSALES                                                                                       ","05","01","09","17","0501","000002473 - UNION ROSALES                                                                                       "]
[null,null,null,null,null,null,null,null,null,null,null,null,null,null,"000002474","SAMANIATO                                                                                           ","05","01","09","07","0501","000002474 - SAMANIATO                                                                                           "]
[null,null,null,null,null,null,null,null,null,null,null,null,null,null,"000002475","KIMBIRI ALTO                                                                                        ","05","01","09","07","0501","000002475 - KIMBIRI ALTO                                                                                        "]
[null,null,null,null,null,null,null,null,null,null,null,null,null,null,"000002479","VILLA VIRGEN                                                                                        ","05","01","09",12,"0501","000002479 - VILLA VIRGEN                                                                                        "]
[null,null,null,null,null,null,null,null,null,null,null,null,null,null,"000002488","VILLA QUINTIARINA                                                                                   ","05","01","09",13,"0501","000002488 - VILLA QUINTIARINA                                                                                   "]
[null,null,null,null,null,null,null,null,null,null,null,null,null,null,"000008283","PUEBLO LIBRE                                                                                        ","05","01","09","07","0501","000008283 - PUEBLO LIBRE                                                                                        "]
[null,null,null,null,null,null,null,null,null,null,null,null,null,null,"000008284","MANITEA ALTA                                                                                        ","05","01","09","17","0501","000008284 - MANITEA ALTA                                                                                        "]
[null,null,null,null,null,null,null,null,null,null,null,null,null,null,"000008285","ANGELES                                                                                             ","05","01","09","07","0501","000008285 - ANGELES                                                                                             "]
[null,null,null,null,null,null,null,null,null,null,null,null,null,null,"000024957","EJERCITO-LA OROYA 34                                                                                 ","05","01","09",12,"0501","000024957 - EJERCITO-LA OROYA 34                                                                                 "]
[null,null,null,null,null,null,null,null,null,null,null,null,null,null,"000000000","(All)","05","02",null,null,"0502","000000000 - (All)"]
[null,null,null,null,null,null,null,null,null,null,null,null,null,null,"000002494","PICHARI                                                                                             ","05","02","09","10","0502","000002494 - PICHARI                                                                                             "]
[null,null,null,null,null,null,null,null,null,null,null,null,null,null,"000002495","MANTARO                                                                                             ","05","02","09","18","0502","000002495 - MANTARO                                                                                             "]
[null,null,null,null,null,null,null,null,null,null,null,null,null,null,"000002496","OMAYA                                                                                               ","05","02","09","10","0502","000002496 - OMAYA                                                                                               "]
[null,null,null,null,null,null,null,null,null,null,null,null,null,null,"000002497","OTARI                                                                                               ","05","02","09","10","0502","000002497 - OTARI                                                                                               "]
[null,null,null,null,null,null,null,null,null,null,null,null,null,null,"000002498","PUERTO MAYO                                                                                         ","05","02","09","10","0502","000002498 - PUERTO MAYO                                                                                         "]
[null,null,null,null,null,null,null,null,null,null,null,null,null,null,"000007113","NATIVIDAD                                                                                           ","05","02","09","10","0502","000007113 - NATIVIDAD                                                                                           "]
[null,null,null,null,null,null,null,null,null,null,null,null,null,null,"000007114","QUISTO CENTRAL                                                                                      ","05","02","09","10","0502","000007114 - QUISTO CENTRAL                                                                                      "]
[null,null,null,null,null,null,null,null,null,null,null,null,null,null,"000015104","TAMBO DEL ENE                                                                                       ","05","02","09","10","0502","000015104 - TAMBO DEL ENE                                                                                       "]
[null,null,null,null,null,null,null,null,null,null,null,null,null,null,"000015169","PITIRINQUINI                                                                                        ","05","02","09","10","0502","000015169 - PITIRINQUINI                                                                                        "]
[null,null,null,null,null,null,null,null,null,null,null,null,null,null,"000015170","PICHARI BAJA                                                                                        ","05","02","09","10","0502","000015170 - PICHARI BAJA                                                                                        "]
[null,null,null,null,null,null,null,null,null,null,null,null,null,null,"000024638","EJERCITO-MILITAR PICHARI                                                                    ","05","02","09","10","0502","000024638 - EJERCITO-MILITAR PICHARI                                                                    "]
[null,null,null,null,null,null,null,null,null,null,null,null,null,null,"000027230","SANIDAD-PICHARI PNP                                                                            ","05","02","09","10","0502","000027230 - SANIDAD-PICHARI PNP                                                                            "]
[null,null,null,null,null,null,null,null,null,null,null,null,null,null,"000027948","ESSALUD-PICHARI                                                                       ","05","02","09","10","0502","000027948 - ESSALUD-PICHARI                                                                       "]
[null,null,null,null,null,null,null,null,null,null,null,null,null,null,"000032211","NUEVO PROGRESO                                                          ","05","02","09","10","0502","000032211 - NUEVO PROGRESO                                                          "]
[null,null,null,null,null,null,null,null,null,null,null,null,null,null,"000033988","MENTAL COMUNITARIO PICHARI","05","02","09","10","0502","000033988 - MENTAL COMUNITARIO PICHARI"]
[null,null,null,null,null,null,null,null,null,null,null,null,null,null,"999999999","(All)","05","99",null,null,"0599","999999999 - (All)"]
[null,null,null,null,null,null,null,null,null,null,null,null,null,null,"000002398","HOSPITAL SANTO TOMAS","06","00","07","01","0600","000002398 - HOSPITAL SANTO TOMAS"]
[null,null,null,null,null,null,null,null,null,null,null,null,null,null,"000000000","(All)","06","09",null,null,"0609","000000000 - (All)"]
[null,null,null,null,null,null,null,null,null,null,null,null,null,null,"000002399","PULPERA                                                                                             ","06","09","07","01","0609","000002399 - PULPERA                                                                                             "]
[null,null,null,null,null,null,null,null,null,null,null,null,null,null,"000002400","ALHUACCHULLO                                                                                        ","06","09","07","01","0609","000002400 - ALHUACCHULLO                                                                                        "]
[null,null,null,null,null,null,null,null,null,null,null,null,null,null,"000002401","CCAPACMARCA                                                                                         ","06","09","07","02","0609","000002401 - CCAPACMARCA                                                                                         "]
[null,null,null,null,null,null,null,null,null,null,null,null,null,null,"000002404","COLQUEMARCA                                                                                         ","06","09","07","04","0609","000002404 - COLQUEMARCA                                                                                         "]
[null,null,null,null,null,null,null,null,null,null,null,null,null,null,"000002405","CHARAMURAY                                                                                          ","06","09","07","04","0609","000002405 - CHARAMURAY                                                                                          "]
[null,null,null,null,null,null,null,null,null,null,null,null,null,null,"000002407","LLUSCO                                                                                              ","06","09","07","06",{"$f":"CONCATENATE(Q397,R397)","v":"0609"},"000002407 - LLUSCO                                                                                              "]
[null,null,null,null,null,null,null,null,null,null,null,null,null,null,"000002408","QUIÑOTA                                                                                             ","06","09","07","07","0609","000002408 - QUIÑOTA                                                                                             "]
[null,null,null,null,null,null,null,null,null,null,null,null,null,null,"000002409","VELILLE                                                                                             ","06","09","07","08","0609",{"$f":"CONCATENATE(O399,\" - \",P399)","v":"000002409 - VELILLE                                                                                             "}]
[null,null,null,null,null,null,null,null,null,null,null,null,null,null,"000006746","LLIQUE                                                                                              ","06","09","07","01","0609","000006746 - LLIQUE                                                                                              "]
[null,null,null,null,null,null,null,null,null,null,null,null,null,null,"000006747","LUTTO                                                                                               ","06","09","07","06","0609","000006747 - LUTTO                                                                                               "]
[null,null,null,null,null,null,null,null,null,null,null,null,null,null,"000006748","COLLPA                                                                                              ","06","09","07","06","0609","000006748 - COLLPA                                                                                              "]
[null,null,null,null,null,null,null,null,null,null,null,null,null,null,"000006981","CCOYO                                                                                               ","06","09","07","01","0609","000006981 - CCOYO                                                                                               "]
[null,null,null,null,null,null,null,null,null,null,null,null,null,null,"000006982","MELLOTOTORA                                                                                         ","06","09","07","01","0609","000006982 - MELLOTOTORA                                                                                         "]
[null,null,null,null,null,null,null,null,null,null,null,null,null,null,"000006983","ORCCOMA                                                                                             ","06","09","07","01","0609","000006983 - ORCCOMA                                                                                             "]
[null,null,null,null,null,null,null,null,null,null,null,null,null,null,"000006984","CCOLLANA                                                                                            ","06","09","07","07","0609","000006984 - CCOLLANA                                                                                            "]
[null,null,null,null,null,null,null,null,null,null,null,null,null,null,"000006985","TOTORAPALLCA                                                                                        ","06","09","07","06","0609","000006985 - TOTORAPALLCA                                                                                        "]
[null,null,null,null,null,null,null,null,null,null,null,null,null,null,"000007111","YAVINA                                                                                              ","06","09","07","01","0609","000007111 - YAVINA                                                                                              "]
[null,null,null,null,null,null,null,null,null,null,null,null,null,null,"000007112","YORENCCA                                                                                            ","06","09","07","07","0609","000007112 - YORENCCA                                                                                            "]
[null,null,null,null,null,null,null,null,null,null,null,null,null,null,"000008912","ALCCA VICTORIA                                                                                      ","06","09","07","08","0609","000008912 - ALCCA VICTORIA                                                                                      "]
[null,null,null,null,null,null,null,null,null,null,null,null,null,null,"000008913","HUARACO                                                                                             ","06","09","07","04","0609","000008913 - HUARACO                                                                                             "]
[null,null,null,null,null,null,null,null,null,null,null,null,null,null,"000008914","HUAYLLANI                                                                                           ","06","09","07","04","0609","000008914 - HUAYLLANI                                                                                           "]
[null,null,null,null,null,null,null,null,null,null,null,null,null,null,"000008915","PFULLPURI CONDEPAMPA                                                                                ","06","09","07","01","0609","000008915 - PFULLPURI CONDEPAMPA                                                                                "]
[null,null,null,null,null,null,null,null,null,null,null,null,null,null,"000009963","CANCAHUANI                                                                                          ","06","09","07","02","0609","000009963 - CANCAHUANI                                                                                          "]
[null,null,null,null,null,null,null,null,null,null,null,null,null,null,"000012932","YANQUE                                                                                              ","06","09","07","04","0609","000012932 - YANQUE                                                                                              "]
[null,null,null,null,null,null,null,null,null,null,null,null,null,null,"000013185","ESSALUD-SANTO TOMAS","06","09","07","01","0609","000013185 - ESSALUD-SANTO TOMAS"]
[null,null,null,null,null,null,null,null,null,null,null,null,null,null,"000025369","PUMALLACTA","06","09","07","07","0609","000025369 - PUMALLACTA"]
[null,null,null,null,null,null,null,null,null,null,null,null,null,null,"000025371","TUNTUMA","06","09","07","08","0609","000025371 - TUNTUMA"]
[null,null,null,null,null,null,null,null,null,null,null,null,null,null,"000027008","ANTUYO","06","09","07","06","0609","000027008 - ANTUYO"]
[null,null,null,null,null,null,null,null,null,null,null,null,null,null,"000027009","TAHUAY","06","09","07","02","0609","000027009 - TAHUAY"]
[null,null,null,null,null,null,null,null,null,null,null,null,null,null,"000027011","AYACCASI","06","09","07","08","0609","000027011 - AYACCASI"]
[null,null,null,null,null,null,null,null,null,null,null,null,null,null,"000027016","HUAYCUÑUTA - URCURUTA","06","09","07","08","0609","000027016 - HUAYCUÑUTA - URCURUTA"]
[null,null,null,null,null,null,null,null,null,null,null,null,null,null,"000030940","ARCANGEL SAN MIGUEL DE ESQUINA CONGUNYA","06","09","07","01","0609","000030940 - ARCANGEL SAN MIGUEL DE ESQUINA CONGUNYA"]
[null,null,null,null,null,null,null,null,null,null,null,null,null,null,"000000000","(All)","06","01",null,null,"0601","000000000 - (All)"]
[null,null,null,null,null,null,null,null,null,null,null,null,null,null,"000002402","CHAMACA                                                                                             ","06","01","07","03","0601","000002402 - CHAMACA                                                                                             "]
[null,null,null,null,null,null,null,null,null,null,null,null,null,null,"000002403","AÑAHUICHI                                                                                           ","06","01","07","03","0601","000002403 - AÑAHUICHI                                                                                           "]
[null,null,null,null,null,null,null,null,null,null,null,null,null,null,"000002406","LIVITACA                                                                                            ","06","01","07","05","0601","000002406 - LIVITACA                                                                                            "]
[null,null,null,null,null,null,null,null,null,null,null,null,null,null,"000016325","CHILLOROYA - LIVITACA                                                                               ","06","01","07","05","0601","000016325 - CHILLOROYA - LIVITACA                                                                               "]
[null,null,null,null,null,null,null,null,null,null,null,null,null,null,"000016327","AUSANTA                                                                                             ","06","01","07","05","0601","000016327 - AUSANTA                                                                                             "]
[null,null,null,null,null,null,null,null,null,null,null,null,null,null,"000016328","UCCHUCCARCCO                                                                                        ","06","01","07","03","0601","000016328 - UCCHUCCARCCO                                                                                        "]
[null,null,null,null,null,null,null,null,null,null,null,null,null,null,"000016329","INGATA                                                                                              ","06","01","07","03","0601","000016329 - INGATA                                                                                              "]
[null,null,null,null,null,null,null,null,null,null,null,null,null,null,"000016330","CCONCHACCOLLO                                                                                       ","06","01","07","03","0601","000016330 - CCONCHACCOLLO                                                                                       "]
[null,null,null,null,null,null,null,null,null,null,null,null,null,null,"000016332","PATAQUEÑA - LIVITACA","06","01","07","05","0601","000016332 - PATAQUEÑA - LIVITACA"]
[null,null,null,null,null,null,null,null,null,null,null,null,null,null,"000016334","KISIO                                                                                               ","06","01","07","05","0601","000016334 - KISIO                                                                                               "]
[null,null,null,null,null,null,null,null,null,null,null,null,null,null,"000025739","PISQUICOCHA","06","01","07","05","0601","000025739 - PISQUICOCHA"]
[null,null,null,null,null,null,null,null,null,null,null,null,null,null,"000025740","TOTORA - REYNA DE LOS ANGELES","06","01","07","05","0601","000025740 - TOTORA - REYNA DE LOS ANGELES"]
[null,null,null,null,null,null,null,null,null,null,null,null,null,null,"999999999","(All)","06","99",null,null,"0699",{"$f":"CONCATENATE(O437,\" - \",P437)","v":"999999999 - (All)"}]
[null,null,null,null,null,null,null,null,null,null,null,null,null,null,"999999999","(All)","99","99",null,null,"9999",{"$f":"CONCATENATE(O438,\" - \",P438)","v":"999999999 - (All)"}]

{"sheet":"TD","index":1,"n_rows":74,"n_cols":212,"rows_kept":74,"cut":false,"hidden":true,"merged":[[1,1,1,3]]}
[]
[null,"Datos",null,null,null,"Tabla",{"$f":"IF(F3=\"(Todas)\",\"CUSCO \",\"\")","v":""}]
[null,"RED","03 - LA CONVENCION",null,null,{"$f":"TRIM(MID(C3,5,90))","v":"LA CONVENCION"},{"$f":"IF(F3=\"(All)\",\" \",F3)","v":"LA CONVENCION"}]
[null,"Micro Red","9999 - (All)",null,null,{"$f":"TRIM(MID(C4,7,90))","v":"(All)"}," "]
[null,"Establecimiento","999999999 - (All)",null,null,{"$f":"TRIM(MID(C5,12,90))","v":"(All)"}," "]
[null,"Provincia","00 - (All)",null,null,{"$f":"TRIM(MID(C6,6,90))","v":"(All)"}," "]
[null,"Distrito","0000 - (All)",null,null,{"$f":"TRIM(MID(C7,8,90))","v":"(All)"}," "]
[null,"UE","7777 - (All)",null,null,{"$f":"TRIM(MID(C8,8,90))","v":"(All)"}," "]
[]
[null,"AÑO","2024"]
[null,"MESES",1,2,3,4,5,6,7,8,9,10,11,0]
[null,"Mes_desc",{"$f":"IF(C11=1,\"ENERO\",\"\")","v":"ENERO"},{"$f":"IF(D11=2,\"FEBRERO\",\"\")","v":"FEBRERO"},{"$f":"IF(E11=3,\"MARZO\",\"\")","v":"MARZO"},{"$f":"IF(F11=4,\"ABRIL\",\"\")","v":"ABRIL"},{"$f":"IF(G11=5,\"MAYO\",\"\")","v":"MAYO"},{"$f":"IF(H11=6,\"JUNIO\",\"\")","v":"JUNIO"},{"$f":"IF(I11=7,\"JULIO\",\"\")","v":"JULIO"},{"$f":"IF(J11=8,\"AGOSTO\",\"\")","v":"AGOSTO"},{"$f":"IF(K11=9,\"SETIEMBRE\",\"\")","v":"SETIEMBRE"},{"$f":"IF(L11=10,\"OCTUBRE\",\"\")","v":"OCTUBRE"},{"$f":"IF(M11=11,\"NOVIEMBRE\",\"\")","v":"NOVIEMBRE"},{"$f":"IF(N11=12,\"DICIEMBRE\",\"\")","v":""},{"$f":"IF(C11=1,C12,IF(D11=2,D12,IF(E11=3,E12,IF(F11=4,F12,IF(G11=5,G12,IF(H11=6,H12,IF(I11=7,I12,IF(J11=8,J12,IF(K11=9,K12,IF(L11=10,L12,IF(M11=11,M12,IF(N11=12,N12,\"\"))))))))))))","v":"ENERO"}]
[]
[null,"ACUMULADO",20,22,24,26,28,30,32,34,36,38,40,null,{"$f":"MIN(C14:N14)","v":20},{"$f":"MAX(C14:N14)","v":40}]
[null,"Mes_desc_Acu",{"$f":"IF(C14=20,\"ENERO\",\"\")","v":"ENERO"},{"$f":"IF(D14=22,\"FEBRERO\",\"\")","v":"FEBRERO"},{"$f":"IF(E14=24,\"MARZO\",\"\")","v":"MARZO"},{"$f":"IF(F14=26,\"ABRIL\",\"\")","v":"ABRIL"},{"$f":"IF(G14=28,\"MAYO\",\"\")","v":"MAYO"},{"$f":"IF(H14=30,\"JUNIO\",\"\")","v":"JUNIO"},{"$f":"IF(I14=32,\"JULIO\",\"\")","v":"JULIO"},{"$f":"IF(J14=34,\"AGOSTO\",\"\")","v":"AGOSTO"},{"$f":"IF(K14=36,\"SETIEMBRE\",\"\")","v":"SETIEMBRE"},{"$f":"IF(L14=38,\"OCTUBRE\",\"\")","v":"OCTUBRE"},{"$f":"IF(M14=40,\"NOVIEMBRE\",\"\")","v":"NOVIEMBRE"},{"$f":"IF(N14=42,\"DICIEMBRE\",\"\")","v":""},{"$f":"IF(O14=C14,C15,IF(O14=D14,D15,IF(O14=E14,E15,IF(O14=F14,F15,IF(O14=G14,G15,IF(O14=H14,H15,IF(O14=I14,I15,IF(O14=J14,J15,IF(O14=K14,K15,IF(O14=L14,L15,IF(O14=M14,M15,IF(O14=N14,N15,\"\"))))))))))))","v":"ENERO"},{"$f":"IF(P14=D14,D15,IF(P14=E14,E15,IF(P14=F14,F15,IF(P14=G14,G15,IF(P14=H14,H15,IF(P14=I14,I15,IF(P14=J14,J15,IF(P14=K14,K15,IF(P14=L14,L15,IF(P14=M14,M15,IF(P14=N14,N15,IF(P14=O14,O15,\"\"))))))))))))","v":"NOVIEMBRE"}]
[null,null,null,null,null,null,null,null,null,null,null,null,null,null,{"$f":"CONCATENATE(O15,\" - \",P15)","v":"ENERO - NOVIEMBRE"}]
[null,null,null,null,null,null,null,null,null,null,null,null,null,null,{"$f":"IF(O14=P14,O12,O16)","v":"ENERO - NOVIEMBRE"}]
[]
[]
[]
[]
[]
[]
[]
[]
[]
[]
["Salud Ocular 1"]
[]
["Anio",2024]
["UE","(Todas)"]
["Red","LA CONVENCION"]
["MicroRed","(Todas)"]
["EESS","(Todas)"]
["Provincia","(Todas)"]
["Distrito","(Todas)"]
[]
["Etiquetas de fila","Suma de O_TamRN_FR_N_0_29d","Suma de O_TamRN_FR_N_1m","Suma de O_TamRN_FR_N_2m","Suma de O_TamRN_FR_N_Total","Suma de O_Dx_retinoPrema_C_0_29d","Suma de O_Dx_retinoPrema_C_1m","Suma de O_Dx_retinoPrema_C_2m","Suma de O_Dx_retinoPrema_C_Total","Suma de O_tto_retinoPrema_CT_0_29d","Suma de O_tto_retinoPrema_CT_1m","Suma de O_tto_retinoPrema_CT_2m","Suma de O_tto_retinoPrema_CT_Total","Suma de O_ctto_retinoPrema_C_0_29d","Suma de O_ctto_retinoPrema_C_1m","Suma de O_ctto_retinoPrema_C_2m","Suma de O_ctto_retinoPrema_C_Total","Suma de O_ctrl_PosOpe_0_29d","Suma de O_ctrl_PosOpe_1m","Suma de O_ctrl_PosOpe_2m","Suma de O_ctrl_PosOpe_Total","Suma de O_Ex_Ojo_Vis_N_0_11m","Suma de O_Ex_Ojo_Vis_N_1a","Suma de O_Ex_Ojo_Vis_N_2a","Suma de O_Ex_Ojo_Vis_N_0_2a_Total","Suma de O_Ex_Ojo_Vis_A_0_11m","Suma de O_Ex_Ojo_Vis_A_1a","Suma de O_Ex_Ojo_Vis_A_2a","Suma de O_Ex_Ojo_Vis_A_0_2a_Total","Suma de O_Ex_Ojo_Vis_RF_0_11m","Suma de O_Ex_Ojo_Vis_RF_1a","Suma de O_Ex_Ojo_Vis_RF_2a","Suma de O_Ex_Ojo_Vis_RF_0_2a_Total","Suma de O_Determ_Agudeza_Visual_3a","Suma de O_Determ_Agudeza_Visual_4a","Suma de O_Determ_Agudeza_Visual_5_11a","Suma de O_Determ_Agudeza_Visual_Total","Suma de O_Ex_Ojo_Vis_N_3a","Suma de O_Ex_Ojo_Vis_N_4a","Suma de O_Ex_Ojo_Vis_N_5_11a","Suma de O_Ex_Ojo_Vis_N_3_11a_Total","Suma de O_Ex_Ojo_Vis_A_3a","Suma de O_Ex_Ojo_Vis_A_4a","Suma de O_Ex_Ojo_Vis_A_5_11a","Suma de O_Ex_Ojo_Vis_A_3_11a_Total","Suma de O_Determ_Agudeza_Visual_eva_3a","Suma de O_Determ_Agudeza_Visual_eva_4a","Suma de O_Determ_Agudeza_Visual_eva_5_11a","Suma de O_Determ_Agudeza_Visual_eva_Total","Suma de O_Determ_Agudeza_Visual_consej_3a","Suma de O_Determ_Agudeza_Visual_consej_4a","Suma de O_Determ_Agudeza_Visual_consej_5_11a","Suma de O_Determ_Agudeza_Visual_consej_Total","Suma de O_Determ_Agudeza_Visual_ref_3a","Suma de O_Determ_Agudeza_Visual_ref_4a","Suma de O_Determ_Agudeza_Visual_ref_5_11a","Suma de O_Determ_Agudeza_Visual_ref_Total","Suma de O_Dx_ErrR_Ast_3a","Suma de O_Dx_ErrR_Ast_4a","Suma de O_Dx_ErrR_Ast_5_11a","Suma de O_Dx_ErrR_Ast_Total","Suma de O_Dx_ErrR_Hip_3a","Suma de O_Dx_ErrR_Hip_4a","Suma de O_Dx_ErrR_Hip_5_11a","Suma de O_Dx_ErrR_Hip_Total","Suma de O_Dx_ErrR_Mio_3a","Suma de O_Dx_ErrR_Mio_4a","Suma de O_Dx_ErrR_Mio_5_11a","Suma de O_Dx_ErrR_Mio_Total","Suma de O_Dx_ErrR_Refr_3a","Suma de O_Dx_ErrR_Refr_4a","Suma de O_Dx_ErrR_Refr_5_11a","Suma de O_Dx_ErrR_Refr_Total","Suma de O_tto_Prov_anteo_3a","Suma de O_tto_Prov_anteo_4a","Suma de O_tto_Prov_anteo_5_11a","Suma de O_tto_Prov_anteo_Total","Suma de O_Prueb_aju_anteo_3a","Suma de O_Prueb_aju_anteo_4a","Suma de O_Prueb_aju_anteo_5_11a","Suma de O_Prueb_aju_anteo_Total","Suma de O_Ex_Ojo_Vis40_N_40_49a","Suma de O_Ex_Ojo_Vis40_N_50_59a","Suma de O_Ex_Ojo_Vis40_N_60a","Suma de O_Ex_Ojo_Vis40_N_40a_Total","Suma de O_Ex_Ojo_Vis40_A_40_49a","Suma de O_Ex_Ojo_Vis40_A_50_59a","Suma de O_Ex_Ojo_Vis40_A_60a","Suma de O_Ex_Ojo_Vis40_A_40a_Total","Suma de O_Det_Pres_Into_N_40_49a","Suma de O_Det_Pres_Into_N_50_59a","Suma de O_Det_Pres_Into_N_60a","Suma de O_Det_Pres_Into_N_40a_Total","Suma de O_Det_Pres_Into_A_40_49a","Suma de O_Det_Pres_Into_A_50_59a","Suma de O_Det_Pres_Into_A_60a","Suma de O_Det_Pres_Into_A_40a_Total","Suma de O_Eva_glaucoma_consej_40_49a","Suma de O_Eva_glaucoma_consej_50_59a","Suma de O_Eva_glaucoma_consej_60a","Suma de O_Eva_glaucoma_consej_40a_Total","Suma de O_Eva_glaucoma_rf_40_49a","Suma de O_Eva_glaucoma_rf_50_59a","Suma de O_Eva_glaucoma_rf_60a","Suma de O_Eva_glaucoma_rf_40a_Total","Suma de O_Dx_glaucoma_40_49a","Suma de O_Dx_glaucoma_50_59a","Suma de O_Dx_glaucoma_60a","Suma de O_Dx_glaucoma_40a_Total","Suma de O_R_tto_laser_40_49a","Suma de O_R_tto_laser_50_59a","Suma de O_R_tto_laser_60a","Suma de O_R_tto_laser_40a_Total","Suma de O_R_tto_quiru_40_49a","Suma de O_R_tto_quiru_50_59a","Suma de O_R_tto_quiru_60a","Suma de O_R_tto_quiru_40a_Total","Suma de O_atc_ctrl_40_49a","Suma de O_atc_ctrl_50_59a","Suma de O_atc_ctrl_60a","Suma de O_atc_ctrl_40a_Total","Suma de O_Det_Agud_Visual_Cat_50_59a","Suma de O_Det_Agud_Visual_Cat_60a","Suma de O_Det_Agud_Visual_Cat_50a_Total","Suma de O_Evalua_Cat_50_59a","Suma de O_Evalua_Cat_60a","Suma de O_Evalua_Cat_50a_Total","Suma de O_Evalua_Cat_consej_50_59a","Suma de O_Evalua_Cat_consej_60a","Suma de O_Evalua_Cat_consej_50a_Total","Suma de O_Evalua_Cat_rf_50_59a","Suma de O_Evalua_Cat_rf_60a","Suma de O_Evalua_Cat_rf_50a_Total","Suma de O_dx_c_catarata_50_59a","Suma de O_dx_c_catarata_60a","Suma de O_dx_c_catarata_50a_Total","Suma de O_dx_c_cata_conge_50_59a","Suma de O_dx_c_cata_conge_60a","Suma de O_dx_c_cata_conge_50a_Total","Suma de O_dx_c_o_catarata_50_59a","Suma de O_dx_c_o_catarata_60a","Suma de O_dx_c_o_catarata_50a_Total","Suma de O_tto_cata_faco_50_59a","Suma de O_tto_cata_faco_60a","Suma de O_tto_cata_faco_50a_Total","Suma de O_tto_cata_extra_il_50_59a","Suma de O_tto_cata_extra_il_60a","Suma de O_tto_cata_extra_il_50a_Total","Suma de O_tto_cata_mininuc_50_59a","Suma de O_tto_cata_mininuc_60a","Suma de O_tto_cata_mininuc_50a_Total","Suma de O_ctrl_cata_pp1_50_59a","Suma de O_ctrl_cata_pp1_60a","Suma de O_ctrl_cata_pp1_Total","Suma de O_ctrl_cata_pp2_50_59a","Suma de O_ctrl_cata_pp2_60a","Suma de O_ctrl_cata_pp2_Total","Suma de O_ctrl_cata_pp3_50_59a","Suma de O_ctrl_cata_pp3_60a","Suma de O_ctrl_cata_pp3_Total","Suma de O_ctrl_cata_pp4_50_59a","Suma de O_ctrl_cata_pp4_60a","Suma de O_ctrl_cata_pp4_Total","Suma de O_comp_cata_pp_50_59a","Suma de O_comp_cata_pp_60a","Suma de O_comp_cata_pp_50a_Total","Suma de O_TamRN_FR_N_3m","Suma de O_TamRN_FR_N_4m","Suma de O_TamRN_FR_N_5m","Suma de O_TamRN_FR_N_6m","Suma de O_TamRN_FR_N_m1a","Suma de O_TamRN_FR_N_1a","Suma de O_TamRN_FR_N_2_3a","Suma de O_TamRN_FR_A_0_29d","Suma de O_TamRN_FR_A_1m","Suma de O_TamRN_FR_A_2m","Suma de O_TamRN_FR_A_3m","Suma de O_TamRN_FR_A_4m","Suma de O_TamRN_FR_A_5m","Suma de O_TamRN_FR_A_6m","Suma de O_TamRN_FR_A_m1a","Suma de O_TamRN_FR_A_1a","Suma de O_TamRN_FR_A_2_3a","Suma de O_TamRN_FR_A_Total","Suma de O_Dx_retinoPrema_C_3m","Suma de O_Dx_retinoPrema_C_4m","Suma de O_Dx_retinoPrema_C_5m","Suma de O_Dx_retinoPrema_C_6m","Suma de O_Dx_retinoPrema_C_m1a","Suma de O_Dx_retinoPrema_C_1a","Suma de O_Dx_retinoPrema_C_2_3a","Suma de O_tto_retinoPrema_CT_3m","Suma de O_tto_retinoPrema_CT_4m","Suma de O_tto_retinoPrema_CT_5m","Suma de O_tto_retinoPrema_CT_6m","Suma de O_tto_retinoPrema_CT_m1a","Suma de O_tto_retinoPrema_CT_1a","Suma de O_tto_retinoPrema_CT_2_3a","Suma de O_ctto_retinoPrema_C_3m","Suma de O_ctto_retinoPrema_C_4m","Suma de O_ctto_retinoPrema_C_5m","Suma de O_ctto_retinoPrema_C_6m","Suma de O_ctto_retinoPrema_C_m1a","Suma de O_ctto_retinoPrema_C_1a","Suma de O_ctto_retinoPrema_C_2_3a","Suma de O_ctrl_PosOpe_3m","Suma de O_ctrl_PosOpe_4m","Suma de O_ctrl_PosOpe_5m","Suma de O_ctrl_PosOpe_6m","Suma de O_ctrl_PosOpe_m1a","Suma de O_ctrl_PosOpe_1a","Suma de O_ctrl_PosOpe_2_3a"]
[1,0,0,0,0,0,0,0,0,0,0,0,0,0,0,0,0,0,0,0,0,127,101,84,312,0,0,0,0,0,0,0,0,58,56,94,208,92,95,72,259,1,0,1,2,0,1,1,2,0,0,0,0,0,0,0,0,0,0,0,0,0,0,0,0,0,0,0,0,0,0,0,0,0,0,0,0,0,0,0,0,22,25,12,59,6,12,47,65,5,7,26,38,0,0,13,13,0,0,0,0,0,0,0,0,1,0,9,10,0,0,0,0,0,0,0,0,0,0,8,8,54,125,179,2,30,32,1,23,24,1,25,26,2,24,26,0,0,0,0,1,1,0,0,0,0,0,0,0,0,0,0,0,0,0,0,0,0,0,0,0,0,0,0,0,0,0,0,0,0,0,0,0,0,0,0,0,0,0,0,0,0,0,0,0,0,0,0,0,0,0,0,0,0,0,0,0,0,0,0,0,0,0,0,0,0,0,0,0,0,0,0]
[2,0,0,0,0,0,0,0,0,0,0,0,0,0,0,0,0,0,0,0,0,116,84,73,273,0,0,0,0,0,0,0,0,61,52,157,270,76,74,140,290,0,0,3,3,0,0,0,0,0,0,0,0,0,0,0,0,0,0,0,0,0,0,0,0,0,0,0,0,0,0,0,0,0,0,0,0,0,0,0,0,19,14,10,43,4,5,45,54,0,0,0,0,0,0,0,0,0,0,0,0,0,0,0,0,0,0,4,4,0,0,0,0,0,0,0,0,0,0,0,0,37,106,143,1,10,11,1,9,10,1,8,9,0,4,4,0,0,0,2,5,7,0,0,0,0,0,0,0,0,0,0,0,0,0,0,0,0,0,0,0,0,0,0,0,0,0,0,0,0,0,0,0,0,0,0,0,0,0,0,0,0,0,0,0,0,0,0,0,0,0,0,0,0,0,0,0,0,0,0,0,0,0,0,0,0,0,0,0,0,0,0]
[3,0,0,0,0,0,0,0,0,0,0,0,0,0,0,0,0,0,0,0,0,93,77,90,260,0,0,0,0,0,0,0,0,48,50,100,198,77,63,78,218,0,0,4,4,0,0,1,1,0,0,0,0,0,0,0,0,0,0,1,1,0,0,0,0,0,0,1,1,0,0,0,0,0,0,0,0,0,0,0,0,20,50,52,122,3,19,53,75,4,5,37,46,1,0,7,8,0,0,0,0,0,0,0,0,1,1,10,12,0,0,0,0,0,0,0,0,0,0,6,6,88,183,271,0,8,8,0,6,6,0,6,6,2,44,46,0,0,0,0,3,3,0,0,0,0,0,0,0,0,0,0,0,0,0,0,0,0,0,0,0,0,0,0,0,0,0,0,0,0,0,0,0,0,0,0,0,0,0,0,0,0,0,0,0,0,0,0,0,0,0,0,0,0,0,0,0,0,0,0,0,0,0,0,0,0,0,0,0,0,0,0]
[4,0,0,0,0,0,0,0,0,0,0,0,0,0,0,0,0,0,0,0,0,139,97,98,334,0,0,0,0,1,1,1,3,100,100,1015,1215,114,134,674,922,0,0,58,58,0,0,5,5,0,0,0,0,0,0,0,0,0,1,1,2,0,0,0,0,0,1,2,3,0,0,1,1,0,0,0,0,0,0,0,0,12,25,36,73,8,20,83,111,5,7,50,62,0,0,11,11,0,0,0,0,0,0,0,0,0,1,14,15,0,0,0,0,0,0,0,0,0,1,12,13,71,194,265,1,8,9,1,3,4,1,6,7,1,21,22,0,0,0,2,2,4,0,0,0,0,0,0,0,0,0,0,0,0,0,0,0,0,0,0,0,0,0,0,0,0,0,0,0,0,0,0,0,0,0,0,0,0,0,0,0,0,0,0,0,0,0,0,0,0,0,0,0,0,0,0,0,0,0,0,0,0,0,0,0,0,0,0,0,0,0,0]
[5,0,0,0,0,0,0,0,0,0,0,0,0,0,0,0,0,0,0,0,0,127,102,74,303,0,0,0,0,0,0,0,0,65,67,199,331,86,75,162,323,0,0,0,0,0,0,1,1,0,0,0,0,0,0,0,0,0,0,3,3,0,0,3,3,0,0,1,1,0,0,3,3,0,0,0,0,0,0,0,0,20,16,26,62,5,7,40,52,5,10,28,43,0,0,7,7,0,0,0,0,0,0,1,1,0,0,9,9,0,0,0,0,0,0,0,0,0,1,10,11,37,117,154,1,16,17,1,10,11,1,13,14,0,18,18,0,0,0,2,2,4,0,0,0,0,0,0,0,0,0,0,0,0,0,0,0,0,0,0,0,0,0,0,0,0,0,0,0,0,0,0,0,0,0,0,0,0,0,0,0,0,0,0,0,0,0,0,0,0,0,0,0,0,0,0,0,0,0,0,0,0,0,0,0,0,0,0,0,0,0,0]
[6,0,0,0,0,0,0,0,0,0,0,0,0,0,0,0,0,0,0,0,0,129,101,90,320,0,0,0,0,0,0,0,0,58,65,406,529,65,74,342,481,0,0,29,29,0,0,1,1,0,0,1,1,0,0,0,0,0,1,0,1,0,0,0,0,0,1,0,1,0,1,0,1,0,0,0,0,0,0,0,0,9,10,9,28,1,4,11,16,3,9,40,52,0,1,13,14,0,0,0,0,0,0,0,0,0,1,11,12,0,0,0,0,0,0,0,0,0,0,10,10,34,75,109,0,0,0,0,0,0,0,0,0,3,25,28,0,0,0,0,1,1,0,0,0,0,0,0,0,0,0,0,0,0,0,0,0,0,0,0,0,0,0,0,0,0,0,0,0,0,0,0,0,0,0,0,0,0,0,0,0,0,0,0,0,0,0,0,0,0,0,0,0,0,0,0,0,0,0,0,0,0,0,0,0,0,0,0,0,0,0,0]
[7,0,0,0,0,0,0,0,0,0,0,0,0,0,0,0,0,0,0,0,0,124,96,77,297,0,0,0,0,0,0,0,0,48,64,256,368,61,81,235,377,0,0,25,25,0,0,4,4,0,0,4,4,0,0,0,0,0,0,0,0,0,0,0,0,0,0,0,0,0,0,0,0,0,0,0,0,0,0,0,0,9,5,11,25,2,9,18,29,8,14,17,39,0,1,3,4,0,0,0,0,0,0,0,0,2,2,5,9,0,0,0,0,0,0,0,0,0,0,4,4,41,71,112,0,2,2,0,0,0,0,2,2,2,12,14,0,0,0,1,1,2,0,0,0,0,0,0,0,0,0,0,0,0,0,0,0,0,0,0,0,0,0,0,0,0,0,0,0,0,0,0,0,0,0,0,0,0,0,0,0,0,0,0,0,0,0,0,0,0,0,0,0,0,0,0,0,0,0,0,0,0,0,0,0,0,0,0,0,0,0,0]
[8,0,0,0,0,0,0,0,0,0,0,0,0,0,0,0,0,0,0,0,0,115,84,80,279,1,1,0,2,0,0,0,0,51,61,89,201,71,72,62,205,2,0,4,6,0,0,3,3,0,0,2,2,0,0,0,0,0,0,3,3,0,0,1,1,0,0,3,3,0,0,3,3,0,0,0,0,0,0,0,0,17,22,22,61,4,14,47,65,10,7,29,46,0,0,10,10,0,0,0,0,0,0,0,0,0,1,8,9,0,0,0,0,0,0,0,0,0,0,9,9,56,118,174,0,7,7,0,1,1,0,7,7,1,23,24,0,0,0,2,0,2,0,0,0,0,0,0,0,0,0,0,0,0,0,0,0,0,0,0,0,0,0,0,0,0,0,0,0,0,0,0,0,0,0,0,0,0,0,0,0,0,0,0,0,0,0,0,0,0,0,0,0,0,0,0,0,0,0,0,0,0,0,0,0,0,0,0,0,0,0,0]
[9,0,0,0,0,0,0,0,0,0,0,0,0,0,0,0,0,0,0,0,0,85,100,83,268,0,0,0,0,0,0,0,0,50,64,181,295,80,94,154,328,0,1,11,12,0,0,1,1,0,0,0,0,0,0,0,0,0,0,1,1,0,0,0,0,0,0,0,0,0,0,1,1,0,0,0,0,0,0,0,0,22,46,47,115,5,24,95,124,10,8,29,47,1,0,11,12,0,0,0,0,0,0,0,0,1,0,7,8,0,0,0,0,0,0,0,0,0,1,6,7,90,181,271,1,5,6,0,0,0,0,1,1,0,17,17,0,0,0,0,2,2,0,0,0,0,0,0,0,0,0,0,0,0,0,0,0,0,0,0,0,0,0,0,0,0,0,0,0,0,0,0,0,0,0,0,0,0,0,0,0,0,0,0,0,0,0,0,0,0,0,0,0,0,0,0,0,0,0,0,0,0,0,0,0,0,0,0,0,0,0,0]
[10,0,0,0,0,0,0,0,0,0,0,0,0,0,0,0,0,0,0,0,0,131,98,74,303,0,0,0,0,0,0,0,0,64,56,444,564,92,86,332,510,0,0,96,96,0,0,1,1,0,0,0,0,0,0,0,0,0,0,3,3,0,0,0,0,0,0,2,2,0,0,2,2,0,0,0,0,0,0,0,0,5,29,37,71,3,38,66,107,10,4,26,40,0,1,9,10,0,0,0,0,0,0,0,0,0,0,5,5,0,0,0,0,0,0,0,0,0,1,10,11,84,161,245,0,7,7,0,3,3,0,3,3,2,19,21,0,0,0,0,4,4,0,0,0,0,0,0,0,0,0,0,0,0,0,0,0,0,0,0,0,0,0,0,0,0,0,0,0,0,0,0,0,0,0,0,0,0,0,0,0,0,0,0,0,0,0,0,0,0,0,0,0,0,0,0,0,0,0,0,0,0,0,0,0,0,0,0,0,0,0,0]
[11,0,0,0,0,0,0,0,0,0,0,0,0,0,0,0,0,0,0,0,0,120,87,69,276,0,0,0,0,0,0,0,0,43,66,86,195,67,89,80,236,0,0,1,1,0,0,0,0,0,0,0,0,0,0,0,0,0,0,0,0,0,0,0,0,0,0,1,1,0,0,0,0,0,0,0,0,0,0,0,0,9,20,50,79,2,8,39,49,2,5,20,27,0,0,9,9,0,0,0,0,0,0,0,0,0,1,8,9,0,0,0,0,0,0,0,0,0,0,7,7,42,126,168,3,11,14,0,2,2,1,4,5,1,22,23,0,0,0,1,0,1,0,0,0,0,0,0,0,0,0,0,0,0,0,0,0,0,0,0,0,0,0,0,0,0,0,0,0,0,0,0,0,0,0,0,0,0,0,0,0,0,0,0,0,0,0,0,0,0,0,0,0,0,0,0,0,0,0,0,0,0,0,0,0,0,0,0,0,0,0,0]
["Total general",0,0,0,0,0,0,0,0,0,0,0,0,0,0,0,0,0,0,0,0,1306,1027,892,3225,1,1,0,2,1,1,1,3,646,701,3027,4374,881,937,2331,4149,3,1,232,236,0,1,18,19,0,0,7,7,0,0,0,0,0,2,12,14,0,0,4,4,0,2,10,12,0,1,10,11,0,0,0,0,0,0,0,0,164,262,312,738,43,160,544,747,62,76,302,440,2,3,93,98,0,0,0,0,0,0,1,1,5,7,90,102,0,0,0,0,0,0,0,0,0,4,82,86,634,1457,2091,9,104,113,4,57,61,5,75,80,14,229,243,0,0,0,10,21,31,0,0,0,0,0,0,0,0,0,0,0,0,0,0,0,0,0,0,0,0,0,0,0,0,0,0,0,0,0,0,0,0,0,0,0,0,0,0,0,0,0,0,0,0,0,0,0,0,0,0,0,0,0,0,0,0,0,0,0,0,0,0,0,0,0,0,0,0,0,0]
[]
[]
["Salud Ocular 2"]
["Anio",2024]
["UE","(Todas)"]
["Red","LA CONVENCION"]
["MicroRed","(Todas)"]
["EESS","(Todas)"]
["Provincia","(Todas)"]
["Distrito","(Todas)"]
[]
["Etiquetas de fila","Suma de O_Ex_Ojo_Vis18_Diab_N_18_29a","Suma de O_Ex_Ojo_Vis18_Diab_N_30_59a","Suma de O_Ex_Ojo_Vis18_Diab_N_60a","Suma de O_Ex_Ojo_Vis18_Diab_N_Diab_18a_Total","Suma de O_Ex_Ojo_Vis18_Diab_A_18_29a","Suma de O_Ex_Ojo_Vis18_Diab_A_30_59a","Suma de O_Ex_Ojo_Vis18_Diab_A_60a","Suma de O_Ex_Ojo_Vis18_Diab_A_18a_Total","Suma de O_Det_AgudVisual_Diab_18_29a","Suma de O_Det_AgudVisual_Diab_30_59a","Suma de O_Det_AgudVisual_Diab_60a","Suma de O_Det_AgudVisual_Diab_18a_Total","Suma de O_Cons_AgudVisual_Diab_18_29a","Suma de O_Cons_AgudVisual_Diab_30_59a","Suma de O_Cons_AgudVisual_Diab_60a","Suma de O_Cons_AgudVisual_Diab_18a_Total","Suma de O_Ref_AgudVisual_Diab_18_29a","Suma de O_Ref_AgudVisual_Diab_30_59a","Suma de O_Ref_AgudVisual_Diab_60a","Suma de O_Ref_AgudVisual_Diab_18a_Total","Suma de O_Retinografia_N_18_29a","Suma de O_Retinografia_N_30_59a","Suma de O_Retinografia_N_60a","Suma de O_Retinografia_N_Total","Suma de O_c_retinopatiaD_18_29a","Suma de O_c_retinopatiaD_30_59a","Suma de O_c_retinopatiaD_60a","Suma de O_c_retinopatiaD_Total","Suma de O_tto_Terap_LaserD_18_29a","Suma de O_tto_Terap_LaserD_30_59a","Suma de O_tto_Terap_LaserD_60a","Suma de O_tto_Terap_LaserD_Total","Suma de O_tto_Terap_intravD_18_29a","Suma de O_tto_Terap_intravD_30_59a","Suma de O_tto_Terap_intravD_60a","Suma de O_tto_Terap_intravD_Total","Suma de O_tto_Cirugia_vitreaD_18_29a","Suma de O_tto_Cirugia_vitreaD_30_59a","Suma de O_tto_Cirugia_vitreaD_60a","Suma de O_tto_Cirugia_vitreaD_Total","Suma de O_ctrl_atc_diab_18_29a","Suma de O_ctrl_atc_diab_30_59a","Suma de O_ctrl_atc_diab_60a","Suma de O_ctrl_atc_diab_Total","Suma de O_Eva_tracoma_1_11a","Suma de O_Eva_tracoma_12_17a","Suma de O_Eva_tracoma_18_29a","Suma de O_Eva_tracoma_Total","Suma de O_Consej_tracoma_1_11a","Suma de O_Consej_tracoma_12_17a","Suma de O_Consej_tracoma_18_29a","Suma de O_Consej_tracoma_Total","Suma de O_c_tracoma_1_11a","Suma de O_c_tracoma_12_17a","Suma de O_c_tracoma_18_29a","Suma de O_c_tracoma_Total","Suma de O_tto_quiru_tracoma_1_11a","Suma de O_tto_quiru_tracoma_12_17a","Suma de O_tto_quiru_tracoma_18_29a","Suma de O_tto_quiru_tracoma_Total","Suma de O_f_tracoma_1_11a","Suma de O_f_tracoma_12_17a","Suma de O_f_tracoma_18_29a","Suma de O_f_tracoma_Total","Suma de O_atc_c_tracoma_1_11a","Suma de O_atc_c_tracoma_12_17a","Suma de O_atc_c_tracoma_18_29a","Suma de O_atc_c_tracoma_Total","Suma de O_ee_orzuelo_1_11a","Suma de O_ee_orzuelo_12_17a","Suma de O_ee_orzuelo_18_29a","Suma de O_ee_orzuelo_Total","Suma de O_ee_chalazion_1_11a","Suma de O_ee_chalazion_12_17a","Suma de O_ee_chalazion_18_29a","Suma de O_ee_chalazion_Total","Suma de O_ee_Blefaritis_1_11a","Suma de O_ee_Blefaritis_12_17a","Suma de O_ee_Blefaritis_18_29a","Suma de O_ee_Blefaritis_Total","Suma de O_ee_Conjuntivitis_1_11a","Suma de O_ee_Conjuntivitis_12_17a","Suma de O_ee_Conjuntivitis_18_29a","Suma de O_ee_Conjuntivitis_Total","Suma de O_ee_Conjuntivitis_tto_1_11a","Suma de O_ee_Conjuntivitis_tto_12_17a","Suma de O_ee_Conjuntivitis_tto_18_29a","Suma de O_ee_Conjuntivitis_tto_Total","Suma de O_Eva_tracoma_30_59a","Suma de O_Eva_tracoma_60a","Suma de O_Consej_tracoma_30_59a","Suma de O_Consej_tracoma_60a","Suma de O_c_tracoma_30_59a","Suma de O_c_tracoma_60a","Suma de O_tto_quiru_tracoma_30_59a","Suma de O_tto_quiru_tracoma_60a","Suma de O_f_tracoma_30_59a","Suma de O_f_tracoma_60a","Suma de O_atc_c_tracoma_30_59a","Suma de O_atc_c_tracoma_60a","Suma de O_ee_orzuelo_30_59a","Suma de O_ee_orzuelo_60a","Suma de O_ee_chalazion_30_59a","Suma de O_ee_chalazion_60a","Suma de O_ee_Blefaritis_30_59a","Suma de O_ee_Blefaritis_60a","Suma de O_ee_Conjuntivitis_30_59a","Suma de O_ee_Conjuntivitis_60a","Suma de O_ee_Consejeria_tto_1_11a","Suma de O_ee_Consejeria_tto_12_17a","Suma de O_ee_Consejeria_tto_18_29a","Suma de O_ee_Consejeria_tto_30_59a","Suma de O_ee_Consejeria_tto_60a","Suma de O_ee_Consejeria_tto_Total","Suma de O_ee_Conjuntivitis_tto_30_59a","Suma de O_ee_Conjuntivitis_tto_60a"]
[1,0,0,0,0,0,0,0,0,0,0,0,0,0,0,0,0,0,0,0,0,0,0,0,0,0,1,1,2,0,0,0,0,0,0,0,0,0,0,0,0,0,0,0,0,0,0,0,0,0,0,0,0,0,0,0,1,0,0,0,0,0,0,0,0,0,0,0,0,3,1,1,7,4,0,3,7,3,0,1,12,77,7,22,209,0,0,0,0,0,0,0,0,0,1,0,0,0,0,0,0,2,0,0,0,1,7,68,35,2,0,0,0,0,2,0,0]
[2,0,0,0,0,0,0,0,0,0,0,0,0,0,0,0,0,0,0,0,0,0,0,0,0,0,0,2,2,0,0,0,0,0,0,0,0,0,0,0,0,0,0,0,0,0,0,0,0,0,0,0,0,0,0,0,0,0,0,0,0,0,0,0,0,0,0,0,0,1,0,0,4,3,0,1,6,2,2,0,7,55,9,16,169,1,0,0,1,0,0,0,0,0,0,0,0,0,0,0,0,2,1,2,0,0,3,47,42,0,0,0,0,0,0,0,0]
[3,0,0,0,0,0,0,0,0,0,0,0,0,0,0,0,0,0,0,0,0,0,0,0,0,0,0,2,2,0,0,0,0,0,0,0,0,0,0,0,0,0,0,0,0,0,0,0,0,0,0,0,0,0,0,0,2,0,0,0,0,0,0,0,0,0,0,0,0,5,0,1,6,1,1,2,4,2,1,2,12,69,8,17,199,1,0,0,1,0,0,0,0,0,2,0,0,0,0,0,0,0,0,0,0,1,6,64,41,0,0,0,0,0,0,0,0]
[4,0,0,1,1,0,0,1,1,0,0,4,4,0,0,1,1,0,0,1,1,0,0,0,0,0,1,1,2,0,0,0,0,0,0,0,0,0,0,0,0,0,0,0,0,0,0,0,0,0,0,0,0,0,0,0,0,0,0,0,0,0,0,0,0,0,0,0,0,8,1,4,15,7,1,4,17,3,1,1,9,98,10,19,226,0,0,0,0,0,0,0,0,0,0,0,0,0,0,0,0,2,0,5,0,0,4,60,39,5,1,1,8,3,18,0,0]
[5,0,0,1,1,0,0,0,0,0,1,1,2,0,1,0,1,0,0,0,0,0,0,0,0,0,0,1,1,0,0,0,0,0,0,0,0,0,0,0,0,0,0,0,0,0,0,0,0,0,0,0,0,0,0,0,0,0,0,0,0,0,0,0,0,0,0,0,0,1,1,2,10,1,2,0,3,2,0,1,11,58,9,10,168,0,0,0,0,0,0,0,0,0,0,0,0,0,0,0,0,3,3,0,0,2,6,48,43,0,0,0,2,2,4,0,0]
[6,0,0,0,0,0,0,0,0,0,0,2,2,0,0,2,2,0,0,0,0,0,0,0,0,0,0,2,2,0,0,0,0,0,0,0,0,0,0,0,0,0,0,0,0,0,0,0,0,0,0,0,2,0,0,0,2,0,0,0,0,0,0,0,0,0,0,0,0,0,3,1,5,3,1,3,8,3,2,3,13,44,4,18,138,0,2,0,2,0,0,0,2,0,2,0,0,0,0,0,0,1,0,1,0,1,4,45,27,1,0,1,1,2,5,0,0]
[7,0,0,0,0,0,0,0,0,0,1,1,2,0,0,0,0,0,0,0,0,0,0,0,0,0,1,1,2,0,0,0,0,0,0,0,0,0,0,0,0,0,0,0,0,0,0,0,0,0,0,0,0,0,0,0,0,0,0,0,0,0,0,0,0,0,0,0,0,3,1,0,5,4,2,0,8,3,1,0,11,31,7,15,118,0,0,0,0,0,0,0,0,0,0,0,0,0,0,0,0,1,0,2,0,5,2,45,20,0,1,1,1,0,3,0,0]
[8,0,0,0,0,0,2,1,3,0,3,1,4,0,2,1,3,0,0,0,0,0,0,0,0,0,2,0,2,0,0,0,0,0,0,0,0,0,0,0,0,0,0,0,0,0,0,0,0,0,0,0,0,0,0,0,1,0,0,0,0,0,0,0,0,0,0,0,0,4,1,2,10,2,1,2,5,3,2,2,16,46,10,13,143,0,0,0,1,0,0,0,0,0,1,0,0,0,0,0,0,2,1,0,0,4,5,43,31,0,1,1,0,3,5,0,1]
[9,0,0,0,0,0,0,1,1,0,2,0,2,0,0,0,0,0,0,0,0,0,0,0,0,0,0,2,2,0,0,0,0,0,0,0,0,0,0,0,0,0,0,0,0,0,0,0,0,0,0,0,0,0,0,0,1,0,0,0,0,0,0,0,0,0,0,0,0,5,3,1,11,3,0,0,3,1,2,2,10,71,7,22,193,0,0,0,0,0,0,0,0,0,1,0,0,0,0,0,0,2,0,0,0,1,4,47,46,0,0,0,0,0,0,0,0]
[10,0,0,0,0,0,0,0,0,0,1,2,3,0,0,0,0,0,0,0,0,0,0,0,0,0,1,3,4,0,0,0,0,0,0,0,0,0,0,0,0,0,0,0,0,0,0,0,0,0,0,0,0,0,0,0,1,0,0,0,0,0,0,0,0,0,0,0,0,4,0,1,8,0,1,0,6,1,1,0,4,75,12,23,221,0,0,0,0,0,0,0,0,0,1,0,0,0,0,0,0,3,0,5,0,1,1,68,43,0,0,0,0,0,0,0,0]
[11,0,0,0,0,0,0,0,0,0,0,0,0,0,0,0,0,0,0,0,0,0,0,0,0,0,0,0,0,0,0,0,0,0,0,0,0,0,0,0,0,0,0,0,0,0,0,0,0,0,0,0,0,0,0,0,0,0,0,0,0,0,0,0,0,0,0,0,0,6,3,0,12,3,2,1,6,1,1,1,7,59,10,22,197,0,0,0,2,0,0,0,0,0,0,0,0,0,0,0,0,3,0,0,0,1,3,64,42,0,0,0,0,0,0,2,0]
["Total general",0,0,2,2,0,2,3,5,0,8,11,19,0,3,4,7,0,0,1,1,0,0,0,0,0,6,15,21,0,0,0,0,0,0,0,0,0,0,0,0,0,0,0,0,0,0,0,0,0,0,0,2,0,0,0,8,0,0,0,0,0,0,0,0,0,0,0,0,40,14,13,93,31,11,16,73,24,13,13,112,683,93,197,1981,2,2,0,7,0,0,0,2,0,8,0,0,0,0,0,0,21,5,15,0,17,45,599,409,8,3,4,12,10,37,2,1]

{"sheet":"Menu","index":2,"n_rows":31,"n_cols":9,"rows_kept":31,"cut":false,"hidden":false,"merged":[[1,4,1,16],[3,4,3,16],[2,4,2,16],[30,8,30,9],[30,5,30,7]]}
[]
[null,null,null,null,"GERESA CUSCO"]
[null,null,null,null,"REPORTE HISMINSA 2024"]
[null,null,null,null,"SALUD OCULAR"]
[]
[]
[]
[]
[]
[]
[]
[]
[]
[]
[]
[]
[]
[]
[]
[]
[]
[]
[]
[]
[]
[]
[]
[]
[]
[]
[null,null,null,null,null,"Fecha Actualización DATA",null,null,"30/11/2024"]

{"sheet":"INFORME","index":3,"n_rows":130,"n_cols":24,"rows_kept":130,"cut":false,"hidden":false,"merged":[[129,13,129,14],[129,15,129,16],[128,13,128,14],[128,15,128,16],[125,13,125,14],[125,15,125,16],[126,13,126,14],[126,15,126,16],[124,13,124,14],[124,15,124,16],[16,17,16,18],[17,17,17,18],[19,17,19,18],[20,17,20,18],[21,17,21,18],[22,17,22,18],[113,13,113,14],[113,15,113,16],[114,13,114,14],[114,15,114,16],[110,13,110,14],[110,15,110,16],[111,13,111,14],[111,15,111,16],[17,19,17,20],[19,19,19,20],[20,19,20,20],[21,19,21,20],[22,19,22,20],[122,13,122,14],[122,15,122,16],[123,13,123,14],[123,15,123,16],[17,15,17,16],[19,15,19,16],[20,15,20,16],[116,13,116,14],[116,15,116,16],[115,13,115,14],[115,15,115,16],[88,11,88,12],[85,11,85,12],[86,11,86,12],[87,11,87,12],[84,11,84,12],[112,13,112,14],[112,15,112,16],[21,15,21,16],[22,15,22,16],[82,11,82,12],[74,11,74,12],[75,11,75,12],[76,11,76,12],[77,11,77,12],[78,11,78,12],[65,2,65,7],[66,2,66,7],[41,2,41,7],[63,2,63,7],[64,2,64,7],[61,2,61,7],[62,2,62,7],[73,11,73,12],[81,2,81,7],[79,11,79,12],[80,11,80,12],[81,11,81,12],[82,2,82,7],[73,2,73,7],[57,2,58,7],[79,2,79,7],[80,2,80,7],[83,11,83,12],[0,0,0,20],[1,0,1,20],[2,0,2,20],[3,0,3,20],[4,0,4,20],[8,4,8,7],[6,4,6,7],[45,2,45,7],[30,2,31,7],[16,2,16,7],[38,2,38,7],[25,2,25,12],[29,2,29,7],[10,10,10,14],[16,13,16,14],[21,13,21,14],[22,13,22,14],[10,4,10,7],[6,18,6,20],[8,18,8,20],[56,2,56,7],[46,2,46,7],[47,2,47,7],[49,2,49,7],[6,10,6,14],[8,10,8,14],[32,2,32,7],[19,2,19,7],[20,2,20,7],[21,2,21,7],[22,2,22,7],[18,13,18,14],[18,15,18,16],[18,17,18,18],[18,19,18,20],[17,2,18,7],[39,2,40,7],[16,15,16,16],[16,19,16,20],[17,13,17,14],[19,13,19,14],[20,13,20,14],[85,2,85,7],[86,2,86,7],[87,2,87,7],[88,2,88,7],[93,2,93,7],[59,2,60,7],[122,2,122,7],[104,2,104,7],[110,2,110,7],[111,2,111,7],[113,2,113,7],[94,2,95,7],[114,2,114,7],[115,2,115,7],[116,2,116,7],[100,2,100,7],[101,2,101,7],[102,2,102,7],[103,2,103,7],[96,2,96,7],[83,2,83,7],[84,2,84,7],[74,2,74,7],[78,2,78,7]]}
["DIRECCION REGIONAL DE SALUD CUSCO"]
["DIRECCION EJECUTIVA DE INTELIGENCIA SANITARIA"]
["DIRECCION DE ESTADISTICA Y TELECOMUNICACIONES"]
["SALUD OCULAR"]
["INFORME OPERACIONAL MENSUAL"]
[]
[null,null,"RED DE SALUD",null,{"$f":"TD!F3","v":"LA CONVENCION"},null,null,null,null,"PROVINCIA",{"$f":"TD!F6","v":"(All)"},null,null,null,null,null,"AÑO :",null,{"$f":"TD!C10","v":"2024"}]
[]
[null,null,"MICRO RED",null,{"$f":"TD!F4","v":"(All)"},null,null,null,null,"DISTRITO",{"$f":"TD!F7","v":"(All)"},null,null,null,null,null,"MES :",null,{"$f":"TD!O17","v":"ENERO - NOVIEMBRE"}]
[]
[null,null,"ESTABLECIMIENTO",null,{"$f":"TD!F5","v":"(All)"},null,null,null,null,"U.E.",{"$f":"TD!F8","v":"(All)"}]
[]
[null,null,"SEGUIMIENTO DEL RECIÉN NACIDO CON FACTORES DE RIESGO PARA RETINOPATÍA DE LA PREMATURIDAD"]
[null,null,"Hospitales 2°- 3° Nivel Atc"]
[]
[]
[null,null,"Actividad",null,null,null,null,null,"UM","TOTAL","< 1m","1m","2m","3m",null,"4m",null,"5m",null,"6m",null,"<1a","1a","2-3a"]
[null,null,"Tamizaje de recien nacidos con factores de riesgo",null,null,null,null,null,"Normal",{"$f":"SUM(GETPIVOTDATA(\"Suma de O_TamRN_FR_N_Total\",TD!$A$38))","v":0},{"$f":"SUM(GETPIVOTDATA(\"Suma de O_TamRN_FR_N_0_29d\",TD!$A$38))","v":0},{"$f":"SUM(GETPIVOTDATA(\"Suma de O_TamRN_FR_N_1m\",TD!$A$38))","v":0},{"$f":"SUM(GETPIVOTDATA(\"Suma de O_TamRN_FR_N_2m\",TD!$A$38))","v":0},{"$f":"SUM(GETPIVOTDATA(\"Suma de O_TamRN_FR_N_3m\",TD!$A$38))","v":0},null,{"$f":"SUM(GETPIVOTDATA(\"Suma de O_TamRN_FR_N_4m\",TD!$A$38))","v":0},null,{"$f":"SUM(GETPIVOTDATA(\"Suma de O_TamRN_FR_N_5m\",TD!$A$38))","v":0},null,{"$f":"SUM(GETPIVOTDATA(\"Suma de O_TamRN_FR_N_6m\",TD!$A$38))","v":0},null,{"$f":"SUM(GETPIVOTDATA(\"Suma de O_TamRN_FR_N_m1a\",TD!$A$38))","v":0},{"$f":"SUM(GETPIVOTDATA(\"Suma de O_TamRN_FR_N_1a\",TD!$A$38))","v":0},{"$f":"SUM(GETPIVOTDATA(\"Suma de O_TamRN_FR_N_2_3a\",TD!$A$38))","v":0}]
[null,null,null,null,null,null,null,null,"Anormal",{"$f":"SUM(GETPIVOTDATA(\"Suma de O_TamRN_FR_A_Total\",TD!$A$38))","v":0},{"$f":"SUM(GETPIVOTDATA(\"Suma de O_TamRN_FR_A_0_29d\",TD!$A$38))","v":0},{"$f":"SUM(GETPIVOTDATA(\"Suma de O_TamRN_FR_A_1m\",TD!$A$38))","v":0},{"$f":"SUM(GETPIVOTDATA(\"Suma de O_TamRN_FR_A_2m\",TD!$A$38))","v":0},{"$f":"SUM(GETPIVOTDATA(\"Suma de O_TamRN_FR_A_3m\",TD!$A$38))","v":0},null,{"$f":"SUM(GETPIVOTDATA(\"Suma de O_TamRN_FR_A_4m\",TD!$A$38))","v":0},null,{"$f":"SUM(GETPIVOTDATA(\"Suma de O_TamRN_FR_A_5m\",TD!$A$38))","v":0},null,{"$f":"SUM(GETPIVOTDATA(\"Suma de O_TamRN_FR_A_6m\",TD!$A$38))","v":0},null,{"$f":"SUM(GETPIVOTDATA(\"Suma de O_TamRN_FR_A_m1a\",TD!$A$38))","v":0},{"$f":"SUM(GETPIVOTDATA(\"Suma de O_TamRN_FR_A_1a\",TD!$A$38))","v":0},{"$f":"SUM(GETPIVOTDATA(\"Suma de O_TamRN_FR_A_2_3a\",TD!$A$38))","v":0}]
[null,null,"Diagnostico de casos de retinopatía de la prematuridad",null,null,null,null,null,"Caso",{"$f":"SUM(GETPIVOTDATA(\"Suma de O_Dx_retinoPrema_C_Total\",TD!$A$38))","v":0},{"$f":"SUM(GETPIVOTDATA(\"Suma de O_Dx_retinoPrema_C_0_29d\",TD!$A$38))","v":0},{"$f":"SUM(GETPIVOTDATA(\"Suma de O_Dx_retinoPrema_C_1m\",TD!$A$38))","v":0},{"$f":"SUM(GETPIVOTDATA(\"Suma de O_Dx_retinoPrema_C_2m\",TD!$A$38))","v":0},{"$f":"SUM(GETPIVOTDATA(\"Suma de O_Dx_retinoPrema_C_3m\",TD!$A$38))","v":0},null,{"$f":"SUM(GETPIVOTDATA(\"Suma de O_Dx_retinoPrema_C_4m\",TD!$A$38))","v":0},null,{"$f":"SUM(GETPIVOTDATA(\"Suma de O_Dx_retinoPrema_C_5m\",TD!$A$38))","v":0},null,{"$f":"SUM(GETPIVOTDATA(\"Suma de O_Dx_retinoPrema_C_6m\",TD!$A$38))","v":0},null,{"$f":"SUM(GETPIVOTDATA(\"Suma de O_Dx_retinoPrema_C_m1a\",TD!$A$38))","v":0},{"$f":"SUM(GETPIVOTDATA(\"Suma de O_Dx_retinoPrema_C_1a\",TD!$A$38))","v":0},{"$f":"SUM(GETPIVOTDATA(\"Suma de O_Dx_retinoPrema_C_2_3a\",TD!$A$38))","v":0}]
[null,null,"Tratamiento de casos",null,null,null,null,null,"Caso tratado",{"$f":"SUM(GETPIVOTDATA(\"Suma de O_tto_retinoPrema_CT_Total\",TD!$A$38))","v":0},{"$f":"SUM(GETPIVOTDATA(\"Suma de O_tto_retinoPrema_CT_0_29d\",TD!$A$38))","v":0},{"$f":"SUM(GETPIVOTDATA(\"Suma de O_tto_retinoPrema_CT_1m\",TD!$A$38))","v":0},{"$f":"SUM(GETPIVOTDATA(\"Suma de O_tto_retinoPrema_CT_2m\",TD!$A$38))","v":0},{"$f":"SUM(GETPIVOTDATA(\"Suma de O_tto_retinoPrema_CT_3m\",TD!$A$38))","v":0},null,{"$f":"SUM(GETPIVOTDATA(\"Suma de O_tto_retinoPrema_CT_4m\",TD!$A$38))","v":0},null,{"$f":"SUM(GETPIVOTDATA(\"Suma de O_tto_retinoPrema_CT_5m\",TD!$A$38))","v":0},null,{"$f":"SUM(GETPIVOTDATA(\"Suma de O_tto_retinoPrema_CT_6m\",TD!$A$38))","v":0},null,{"$f":"SUM(GETPIVOTDATA(\"Suma de O_tto_retinoPrema_CT_m1a\",TD!$A$38))","v":0},{"$f":"SUM(GETPIVOTDATA(\"Suma de O_tto_retinoPrema_CT_1a\",TD!$A$38))","v":0},{"$f":"SUM(GETPIVOTDATA(\"Suma de O_tto_retinoPrema_CT_2_3a\",TD!$A$38))","v":0}]
[null,null,"Complicaciones de tratamiento",null,null,null,null,null,"Caso",{"$f":"SUM(GETPIVOTDATA(\"Suma de O_ctto_retinoPrema_C_Total\",TD!$A$38))","v":0},{"$f":"SUM(GETPIVOTDATA(\"Suma de O_ctto_retinoPrema_C_0_29d\",TD!$A$38))","v":0},{"$f":"SUM(GETPIVOTDATA(\"Suma de O_ctto_retinoPrema_C_1m\",TD!$A$38))","v":0},{"$f":"SUM(GETPIVOTDATA(\"Suma de O_ctto_retinoPrema_C_2m\",TD!$A$38))","v":0},{"$f":"SUM(GETPIVOTDATA(\"Suma de O_ctto_retinoPrema_C_3m\",TD!$A$38))","v":0},null,{"$f":"SUM(GETPIVOTDATA(\"Suma de O_ctto_retinoPrema_C_4m\",TD!$A$38))","v":0},null,{"$f":"SUM(GETPIVOTDATA(\"Suma de O_ctto_retinoPrema_C_5m\",TD!$A$38))","v":0},null,{"$f":"SUM(GETPIVOTDATA(\"Suma de O_ctto_retinoPrema_C_6m\",TD!$A$38))","v":0},null,{"$f":"SUM(GETPIVOTDATA(\"Suma de O_ctto_retinoPrema_C_m1a\",TD!$A$38))","v":0},{"$f":"SUM(GETPIVOTDATA(\"Suma de O_ctto_retinoPrema_C_1a\",TD!$A$38))","v":0},{"$f":"SUM(GETPIVOTDATA(\"Suma de O_ctto_retinoPrema_C_2_3a\",TD!$A$38))","v":0}]
[null,null,"Control Post Operatorio de recién nacidos",null,null,null,null,null,"Control",{"$f":"SUM(GETPIVOTDATA(\"Suma de O_ctrl_PosOpe_Total\",TD!$A$38))","v":0},{"$f":"SUM(GETPIVOTDATA(\"Suma de O_ctrl_PosOpe_0_29d\",TD!$A$38))","v":0},{"$f":"SUM(GETPIVOTDATA(\"Suma de O_ctrl_PosOpe_1m\",TD!$A$38))","v":0},{"$f":"SUM(GETPIVOTDATA(\"Suma de O_ctrl_PosOpe_2m\",TD!$A$38))","v":0},{"$f":"SUM(GETPIVOTDATA(\"Suma de O_ctrl_PosOpe_3m\",TD!$A$38))","v":0},null,{"$f":"SUM(GETPIVOTDATA(\"Suma de O_ctrl_PosOpe_4m\",TD!$A$38))","v":0},null,{"$f":"SUM(GETPIVOTDATA(\"Suma de O_ctrl_PosOpe_5m\",TD!$A$38))","v":0},null,{"$f":"SUM(GETPIVOTDATA(\"Suma de O_ctrl_PosOpe_6m\",TD!$A$38))","v":0},null,{"$f":"SUM(GETPIVOTDATA(\"Suma de O_ctrl_PosOpe_m1a\",TD!$A$38))","v":0},{"$f":"SUM(GETPIVOTDATA(\"Suma de O_ctrl_PosOpe_1a\",TD!$A$38))","v":0},{"$f":"SUM(GETPIVOTDATA(\"Suma de O_ctrl_PosOpe_2_3a\",TD!$A$38))","v":0}]
[]
[]
[null,null,"EVALUACIÓN VISUAL DE NIÑOS (AS) MENORES DE 3 AÑOS"]
[null,null,"Todos los EESS que realizan CRED"]
[]
[]
[null,null,"Actividad",null,null,null,null,null,"UM","TOTAL","< 1a","1a","2a"]
[null,null,"Examen de los Ojos y de la Visión",null,null,null,null,null,"Normal",{"$f":"SUM(GETPIVOTDATA(\"Suma de O_Ex_Ojo_Vis_N_0_2a_Total\",TD!$A$38))","v":3225},{"$f":"SUM(GETPIVOTDATA(\"Suma de O_Ex_Ojo_Vis_N_0_11m\",TD!$A$38))","v":1306},{"$f":"SUM(GETPIVOTDATA(\"Suma de O_Ex_Ojo_Vis_N_1a\",TD!$A$38))","v":1027},{"$f":"SUM(GETPIVOTDATA(\"Suma de O_Ex_Ojo_Vis_N_2a\",TD!$A$38))","v":892}]
[null,null,null,null,null,null,null,null,"Anormal",{"$f":"SUM(GETPIVOTDATA(\"Suma de O_Ex_Ojo_Vis_A_0_2a_Total\",TD!$A$38))","v":2},{"$f":"SUM(GETPIVOTDATA(\"Suma de O_Ex_Ojo_Vis_A_0_11m\",TD!$A$38))","v":1},{"$f":"SUM(GETPIVOTDATA(\"Suma de O_Ex_Ojo_Vis_A_1a\",TD!$A$38))","v":1},{"$f":"SUM(GETPIVOTDATA(\"Suma de O_Ex_Ojo_Vis_A_2a\",TD!$A$38))","v":0}]
[null,null,"Referencia por Transtorno del Ojo",null,null,null,null,null,"Número",{"$f":"SUM(GETPIVOTDATA(\"Suma de O_Ex_Ojo_Vis_RF_0_2a_Total\",TD!$A$38))","v":3},{"$f":"SUM(GETPIVOTDATA(\"Suma de O_Ex_Ojo_Vis_RF_0_11m\",TD!$A$38))","v":1},{"$f":"SUM(GETPIVOTDATA(\"Suma de O_Ex_Ojo_Vis_RF_1a\",TD!$A$38))","v":1},{"$f":"SUM(GETPIVOTDATA(\"Suma de O_Ex_Ojo_Vis_RF_2a\",TD!$A$38))","v":1}]
[]
[]
[null,null,"TAMIZAJE, DIAGNOSTICO,TRATAMIENTO Y CONTROL DE NIÑOS (AS) 3-11 AÑOS CON ERRORES REFRACTIVOS"]
[]
[]
[null,null,"Actividad",null,null,null,null,null,"UM","TOTAL","3 años","4 años","5 - 11a"]
[null,null,"Examen de los Ojos y de la Visión",null,null,null,null,null,"Normal",{"$f":"SUM(GETPIVOTDATA(\"Suma de O_Ex_Ojo_Vis_N_3_11a_Total\",TD!$A$38))","v":4149},{"$f":"SUM(GETPIVOTDATA(\"Suma de O_Ex_Ojo_Vis_N_3a\",TD!$A$38))","v":881},{"$f":"SUM(GETPIVOTDATA(\"Suma de O_Ex_Ojo_Vis_N_4a\",TD!$A$38))","v":937},{"$f":"SUM(GETPIVOTDATA(\"Suma de O_Ex_Ojo_Vis_N_5_11a\",TD!$A$38))","v":2331}]
[null,null,null,null,null,null,null,null,"Anormal",{"$f":"SUM(GETPIVOTDATA(\"Suma de O_Ex_Ojo_Vis_A_3_11a_Total\",TD!$A$38))","v":236},{"$f":"SUM(GETPIVOTDATA(\"Suma de O_Ex_Ojo_Vis_A_3a\",TD!$A$38))","v":3},{"$f":"SUM(GETPIVOTDATA(\"Suma de O_Ex_Ojo_Vis_A_4a\",TD!$A$38))","v":1},{"$f":"SUM(GETPIVOTDATA(\"Suma de O_Ex_Ojo_Vis_A_5_11a\",TD!$A$38))","v":232}]
[null,null,"Tamizaje y detección de errores refractivos",null,null,null,null,null,"Número",{"$f":"SUM(GETPIVOTDATA(\"Suma de O_Determ_Agudeza_Visual_Total\",TD!$A$38))","v":4374},{"$f":"SUM(GETPIVOTDATA(\"Suma de O_Determ_Agudeza_Visual_3a\",TD!$A$38))","v":646},{"$f":"SUM(GETPIVOTDATA(\"Suma de O_Determ_Agudeza_Visual_4a\",TD!$A$38))","v":701},{"$f":"SUM(GETPIVOTDATA(\"Suma de O_Determ_Agudeza_Visual_5_11a\",TD!$A$38))","v":3027}]
[null,null,"Evaluacion y despistaje  de errores refractivos (médico capacitado)",null,null,null,null,null,"Número",{"$f":"SUM(GETPIVOTDATA(\"Suma de O_Determ_Agudeza_Visual_EVA_Total\",TD!$A$38))","v":19},{"$f":"SUM(GETPIVOTDATA(\"Suma de O_Determ_Agudeza_Visual_EVA_3a\",TD!$A$38))","v":0},{"$f":"SUM(GETPIVOTDATA(\"Suma de O_Determ_Agudeza_Visual_EVA_4a\",TD!$A$38))","v":1},{"$f":"SUM(GETPIVOTDATA(\"Suma de O_Determ_Agudeza_Visual_EVA_5_11a\",TD!$A$38))","v":18}]
[null,null,"Consejeria medidas preventivas a los padres o apoderados",null,null,null,null,null,"Número",{"$f":"SUM(GETPIVOTDATA(\"Suma de O_Determ_Agudeza_Visual_consej_Total\",TD!$A$38))","v":7},{"$f":"SUM(GETPIVOTDATA(\"Suma de O_Determ_Agudeza_Visual_consej_3a\",TD!$A$38))","v":0},{"$f":"SUM(GETPIVOTDATA(\"Suma de O_Determ_Agudeza_Visual_consej_4a\",TD!$A$38))","v":0},{"$f":"SUM(GETPIVOTDATA(\"Suma de O_Determ_Agudeza_Visual_consej_5_11a\",TD!$A$38))","v":7}]
[null,null,"Referencias  de pacientes con errores refractivos",null,null,null,null,null,"Número",{"$f":"SUM(GETPIVOTDATA(\"Suma de O_Determ_Agudeza_Visual_ref_Total\",TD!$A$38))","v":0},{"$f":"SUM(GETPIVOTDATA(\"Suma de O_Determ_Agudeza_Visual_ref_3a\",TD!$A$38))","v":0},{"$f":"SUM(GETPIVOTDATA(\"Suma de O_Determ_Agudeza_Visual_ref_4a\",TD!$A$38))","v":0},{"$f":"SUM(GETPIVOTDATA(\"Suma de O_Determ_Agudeza_Visual_ref_5_11a\",TD!$A$38))","v":0}]
[null,null,"Diagnóstico de  errores refractivos - Astigmatismo",null,null,null,null,null,"Caso",{"$f":"SUM(GETPIVOTDATA(\"Suma de O_Dx_ErrR_Ast_Total\",TD!$A$38))","v":14},{"$f":"SUM(GETPIVOTDATA(\"Suma de O_Dx_ErrR_Ast_3a\",TD!$A$38))","v":0},{"$f":"SUM(GETPIVOTDATA(\"Suma de O_Dx_ErrR_Ast_4a\",TD!$A$38))","v":2},{"$f":"SUM(GETPIVOTDATA(\"Suma de O_Dx_ErrR_Ast_5_11a\",TD!$A$38))","v":12}]
[null,null,"Diagnóstico de  errores refractivos - Hipermetropía",null,null,null,null,null,"Caso",{"$f":"SUM(GETPIVOTDATA(\"Suma de O_Dx_ErrR_Hip_Total\",TD!$A$38))","v":4},{"$f":"SUM(GETPIVOTDATA(\"Suma de O_Dx_ErrR_Hip_3a\",TD!$A$38))","v":0},{"$f":"SUM(GETPIVOTDATA(\"Suma de O_Dx_ErrR_Hip_4a\",TD!$A$38))","v":0},{"$f":"SUM(GETPIVOTDATA(\"Suma de O_Dx_ErrR_Hip_5_11a\",TD!$A$38))","v":4}]
[null,null,"Diagnóstico de  errores refractivos - Miopía",null,null,null,null,null,"Caso",{"$f":"SUM(GETPIVOTDATA(\"Suma de O_Dx_ErrR_Mio_Total\",TD!$A$38))","v":12},{"$f":"SUM(GETPIVOTDATA(\"Suma de O_Dx_ErrR_Mio_3a\",TD!$A$38))","v":0},{"$f":"SUM(GETPIVOTDATA(\"Suma de O_Dx_ErrR_Mio_4a\",TD!$A$38))","v":2},{"$f":"SUM(GETPIVOTDATA(\"Suma de O_Dx_ErrR_Mio_5_11a\",TD!$A$38))","v":10}]
[null,null,"Diagnóstico de  errores refractivos - Refracción (subjetiva o cicloplégica)",null,null,null,null,null,"Caso",{"$f":"SUM(GETPIVOTDATA(\"Suma de O_Dx_ErrR_Refr_Total\",TD!$A$38))","v":11},{"$f":"SUM(GETPIVOTDATA(\"Suma de O_Dx_ErrR_Refr_3a\",TD!$A$38))","v":0},{"$f":"SUM(GETPIVOTDATA(\"Suma de O_Dx_ErrR_Refr_4a\",TD!$A$38))","v":1},{"$f":"SUM(GETPIVOTDATA(\"Suma de O_Dx_ErrR_Refr_5_11a\",TD!$A$38))","v":10}]
[null,null,"Tratamiento de errores refractivos (Provisión de anteojos)",null,null,null,null,null,"Caso",{"$f":"SUM(GETPIVOTDATA(\"Suma de O_tto_Prov_anteo_Total\",TD!$A$38))","v":0},{"$f":"SUM(GETPIVOTDATA(\"Suma de O_tto_Prov_anteo_3a\",TD!$A$38))","v":0},{"$f":"SUM(GETPIVOTDATA(\"Suma de O_tto_Prov_anteo_4a\",TD!$A$38))","v":0},{"$f":"SUM(GETPIVOTDATA(\"Suma de O_tto_Prov_anteo_5_11a\",TD!$A$38))","v":0}]
[null,null,"Controles de Paciente con errores refractivos  (Prueba de anteojos)",null,null,null,null,null,"Control",{"$f":"SUM(GETPIVOTDATA(\"Suma de O_Prueb_aju_anteo_Total\",TD!$A$38))","v":0},{"$f":"SUM(GETPIVOTDATA(\"Suma de O_Prueb_aju_anteo_3a\",TD!$A$38))","v":0},{"$f":"SUM(GETPIVOTDATA(\"Suma de O_Prueb_aju_anteo_4a\",TD!$A$38))","v":0},{"$f":"SUM(GETPIVOTDATA(\"Suma de O_Prueb_aju_anteo_5_11a\",TD!$A$38))","v":0}]
[]
[]
[null,null,"TAMIZAJE, DIAGNOSTICO,TRATAMIENTO Y CONTROL DE PACIENTES 40 AÑOS A MAS CON  GLAUCOMA "]
[]
[]
[null,null,"Actividad",null,null,null,null,null,"UM","TOTAL","40 - 49a","50-+ 59a","60a y más"]
[null,null,"Examen de los Ojos y de la Visión",null,null,null,null,null,"Normal",{"$f":"SUM(GETPIVOTDATA(\"Suma de O_Ex_Ojo_Vis40_N_40a_Total\",TD!$A$38))","v":738},{"$f":"SUM(GETPIVOTDATA(\"Suma de O_Ex_Ojo_Vis40_N_40_49a\",TD!$A$38))","v":164},{"$f":"SUM(GETPIVOTDATA(\"Suma de O_Ex_Ojo_Vis40_N_50_59a\",TD!$A$38))","v":262},{"$f":"SUM(GETPIVOTDATA(\"Suma de O_Ex_Ojo_Vis40_N_60a\",TD!$A$38))","v":312}]
[null,null,null,null,null,null,null,null,"Anormal",{"$f":"SUM(GETPIVOTDATA(\"Suma de O_Ex_Ojo_Vis40_A_40a_Total\",TD!$A$38))","v":747},{"$f":"SUM(GETPIVOTDATA(\"Suma de O_Ex_Ojo_Vis40_A_40_49a\",TD!$A$38))","v":43},{"$f":"SUM(GETPIVOTDATA(\"Suma de O_Ex_Ojo_Vis40_A_50_59a\",TD!$A$38))","v":160},{"$f":"SUM(GETPIVOTDATA(\"Suma de O_Ex_Ojo_Vis40_A_60a\",TD!$A$38))","v":544}]
[null,null,"Tamizaje de Glaucoma en personas de 40 a mas años (Determinación de la Presión Intraocular)",null,null,null,null,null,"Normal",{"$f":"SUM(GETPIVOTDATA(\"Suma de O_Det_Pres_Into_N_40a_Total\",TD!$A$38))","v":440},{"$f":"SUM(GETPIVOTDATA(\"Suma de O_Det_Pres_Into_N_40_49a\",TD!$A$38))","v":62},{"$f":"SUM(GETPIVOTDATA(\"Suma de O_Det_Pres_Into_N_50_59a\",TD!$A$38))","v":76},{"$f":"SUM(GETPIVOTDATA(\"Suma de O_Det_Pres_Into_N_60a\",TD!$A$38))","v":302}]
[null,null,null,null,null,null,null,null,"Anormal",{"$f":"SUM(GETPIVOTDATA(\"Suma de O_Det_Pres_Into_A_40a_Total\",TD!$A$38))","v":98},{"$f":"SUM(GETPIVOTDATA(\"Suma de O_Det_Pres_Into_A_40_49a\",TD!$A$38))","v":2},{"$f":"SUM(GETPIVOTDATA(\"Suma de O_Det_Pres_Into_A_50_59a\",TD!$A$38))","v":3},{"$f":"SUM(GETPIVOTDATA(\"Suma de O_Det_Pres_Into_A_60a\",TD!$A$38))","v":93}]
[null,null,"Consejeria medidas preventivas en salud ocular",null,null,null,null,null,"Número",{"$f":"SUM(GETPIVOTDATA(\"Suma de O_Eva_glaucoma_consej_40a_Total\",TD!$A$38))","v":0},{"$f":"SUM(GETPIVOTDATA(\"Suma de O_Eva_glaucoma_consej_40_49a\",TD!$A$38))","v":0},{"$f":"SUM(GETPIVOTDATA(\"Suma de O_Eva_glaucoma_consej_50_59a\",TD!$A$38))","v":0},{"$f":"SUM(GETPIVOTDATA(\"Suma de O_Eva_glaucoma_consej_60a\",TD!$A$38))","v":0}]
[null,null,"Referencias  de pacientes con diagnsotico presuntivo de glaucoma",null,null,null,null,null,"Número",{"$f":"SUM(GETPIVOTDATA(\"Suma de O_Eva_glaucoma_rf_40a_Total\",TD!$A$38))","v":1},{"$f":"SUM(GETPIVOTDATA(\"Suma de O_Eva_glaucoma_rf_40_49a\",TD!$A$38))","v":0},{"$f":"SUM(GETPIVOTDATA(\"Suma de O_Eva_glaucoma_rf_50_59a\",TD!$A$38))","v":0},{"$f":"SUM(GETPIVOTDATA(\"Suma de O_Eva_glaucoma_rf_60a\",TD!$A$38))","v":1}]
[null,null,"Diagnóstico de Glaucoma (espcialista en oftalmólogia)",null,null,null,null,null,"Caso",{"$f":"SUM(GETPIVOTDATA(\"Suma de O_Dx_glaucoma_40a_Total\",TD!$A$38))","v":102},{"$f":"SUM(GETPIVOTDATA(\"Suma de O_Dx_glaucoma_40_49a\",TD!$A$38))","v":5},{"$f":"SUM(GETPIVOTDATA(\"Suma de O_Dx_glaucoma_50_59a\",TD!$A$38))","v":7},{"$f":"SUM(GETPIVOTDATA(\"Suma de O_Dx_glaucoma_60a\",TD!$A$38))","v":90}]
[null,null,"Tratamiento Laser de Glaucoma (espcialista en oftalmólogia)",null,null,null,null,null,"Caso",{"$f":"SUM(GETPIVOTDATA(\"Suma de O_R_tto_laser_40a_Total\",TD!$A$38))","v":0},{"$f":"SUM(GETPIVOTDATA(\"Suma de O_R_tto_laser_40_49a\",TD!$A$38))","v":0},{"$f":"SUM(GETPIVOTDATA(\"Suma de O_R_tto_laser_50_59a\",TD!$A$38))","v":0},{"$f":"SUM(GETPIVOTDATA(\"Suma de O_R_tto_laser_60a\",TD!$A$38))","v":0}]
[null,null,"Tratamiento Quirúrgico de Glaucoma (espcialista en oftalmólogia)",null,null,null,null,null,"Caso",{"$f":"SUM(GETPIVOTDATA(\"Suma de O_R_tto_quiru_40a_Total\",TD!$A$38))","v":0},{"$f":"SUM(GETPIVOTDATA(\"Suma de O_R_tto_quiru_40_49a\",TD!$A$38))","v":0},{"$f":"SUM(GETPIVOTDATA(\"Suma de O_R_tto_quiru_50_59a\",TD!$A$38))","v":0},{"$f":"SUM(GETPIVOTDATA(\"Suma de O_R_tto_quiru_60a\",TD!$A$38))","v":0}]
[null,null,"Control de Personas con Glaucoma",null,null,null,null,null,"Atención",{"$f":"SUM(GETPIVOTDATA(\"Suma de O_atc_ctrl_40a_Total\",TD!$A$38))","v":86},{"$f":"SUM(GETPIVOTDATA(\"Suma de O_atc_ctrl_40_49a\",TD!$A$38))","v":0},{"$f":"SUM(GETPIVOTDATA(\"Suma de O_atc_ctrl_50_59a\",TD!$A$38))","v":4},{"$f":"SUM(GETPIVOTDATA(\"Suma de O_atc_ctrl_60a\",TD!$A$38))","v":82}]
[]
[]
[]
[null,null,"TAMIZAJE, DIAGNOSTICO,TRATAMIENTO Y CONTROL DE PACIENTES 50 AÑOS A MAS CON CATARATA"]
[]
[]
[null,null,"Actividad",null,null,null,null,null,"UM","TOTAL","50-+ 59a","60a y más"]
[null,null,"Tamizaje y deteccion  de catarata mediante agudeza Visual (I,II nivel)",null,null,null,null,null,"Número",{"$f":"SUM(GETPIVOTDATA(\"Suma de O_Det_Agud_Visual_Cat_50a_total\",TD!$A$38))","v":2091},{"$f":"SUM(GETPIVOTDATA(\"Suma de O_Det_Agud_Visual_Cat_50_59a\",TD!$A$38))","v":634},{"$f":"SUM(GETPIVOTDATA(\"Suma de O_Det_Agud_Visual_Cat_60a\",TD!$A$38))","v":1457}]
[null,null,"Evaluacion y despistaje  de catarata (realizada por personal médico)",null,null,null,null,null,"Número",{"$f":"SUM(GETPIVOTDATA(\"Suma de O_Evalua_Cat_50a_total\",TD!$A$38))","v":113},{"$f":"SUM(GETPIVOTDATA(\"Suma de O_Evalua_Cat_50_59a\",TD!$A$38))","v":9},{"$f":"SUM(GETPIVOTDATA(\"Suma de O_Evalua_Cat_60a\",TD!$A$38))","v":104}]
[null,null,"Consejeria medidas preventivas y beneficio en tratamiento en catarata",null,null,null,null,null,"Número",{"$f":"SUM(GETPIVOTDATA(\"Suma de O_Evalua_Cat_consej_50a_total\",TD!$A$38))","v":61},{"$f":"SUM(GETPIVOTDATA(\"Suma de O_Evalua_Cat_consej_50_59a\",TD!$A$38))","v":4},{"$f":"SUM(GETPIVOTDATA(\"Suma de O_Evalua_Cat_consej_60a\",TD!$A$38))","v":57}]
[null,null,"Referencias de pacientes para el diagnostico y tratamiento en catarata",null,null,null,null,null,"Número",{"$f":"SUM(GETPIVOTDATA(\"Suma de O_Evalua_Cat_rf_50a_total\",TD!$A$38))","v":80},{"$f":"SUM(GETPIVOTDATA(\"Suma de O_Evalua_Cat_rf_50_59a\",TD!$A$38))","v":5},{"$f":"SUM(GETPIVOTDATA(\"Suma de O_Evalua_Cat_rf_60a\",TD!$A$38))","v":75}]
[null,null,"Diagnostico de casos de Catarata Senil",null,null,null,null,null,"Caso",{"$f":"SUM(GETPIVOTDATA(\"Suma de O_dx_c_catarata_50a_total\",TD!$A$38))","v":243},{"$f":"SUM(GETPIVOTDATA(\"Suma de O_dx_c_catarata_50_59a\",TD!$A$38))","v":14},{"$f":"SUM(GETPIVOTDATA(\"Suma de O_dx_c_catarata_60a\",TD!$A$38))","v":229}]
[null,null,"Diagnostico de casos de Catarata Congénita",null,null,null,null,null,"Caso",{"$f":"SUM(GETPIVOTDATA(\"Suma de O_dx_c_cata_conge_50a_total\",TD!$A$38))","v":0},{"$f":"SUM(GETPIVOTDATA(\"Suma de O_dx_c_cata_conge_50_59a\",TD!$A$38))","v":0},{"$f":"SUM(GETPIVOTDATA(\"Suma de O_dx_c_cata_conge_60a\",TD!$A$38))","v":0}]
[null,null,"Diagnostico de casos de Otras Cataratas",null,null,null,null,null,"Caso",{"$f":"SUM(GETPIVOTDATA(\"Suma de O_dx_c_o_catarata_50a_total\",TD!$A$38))","v":31},{"$f":"SUM(GETPIVOTDATA(\"Suma de O_dx_c_o_catarata_50_59a\",TD!$A$38))","v":10},{"$f":"SUM(GETPIVOTDATA(\"Suma de O_dx_c_o_catarata_60a\",TD!$A$38))","v":21}]
[null,null,"Tratamiento de Facofragmentación (facoemulsificación) con aspiración",null,null,null,null,null,"Procedimiento",{"$f":"SUM(GETPIVOTDATA(\"Suma de O_tto_cata_faco_50a_total\",TD!$A$38))","v":0},{"$f":"SUM(GETPIVOTDATA(\"Suma de O_tto_cata_faco_50_59a\",TD!$A$38))","v":0},{"$f":"SUM(GETPIVOTDATA(\"Suma de O_tto_cata_faco_60a\",TD!$A$38))","v":0}]
[null,null,"Tratamiento de Extracción extracapsular de Catarata con implente de lente intraocular",null,null,null,null,null,"Procedimiento",{"$f":"SUM(GETPIVOTDATA(\"Suma de O_tto_cata_extra_il_50a_total\",TD!$A$38))","v":0},{"$f":"SUM(GETPIVOTDATA(\"Suma de O_tto_cata_extra_il_50_59a\",TD!$A$38))","v":0},{"$f":"SUM(GETPIVOTDATA(\"Suma de O_tto_cata_extra_il_60a\",TD!$A$38))","v":0}]
[null,null,"Tratamiento de Mininuc con implante de lente intraocular (LIO)",null,null,null,null,null,"Procedimiento",{"$f":"SUM(GETPIVOTDATA(\"Suma de O_tto_cata_mininuc_50a_total\",TD!$A$38))","v":0},{"$f":"SUM(GETPIVOTDATA(\"Suma de O_tto_cata_mininuc_50_59a\",TD!$A$38))","v":0},{"$f":"SUM(GETPIVOTDATA(\"Suma de O_tto_cata_mininuc_60a\",TD!$A$38))","v":0}]
[null,null,"1º Control Post Operatorio (Oftalmólogo al día siguiente de la operación)",null,null,null,null,null,"Control",{"$f":"SUM(GETPIVOTDATA(\"Suma de O_ctrl_cata_pp1_total\",TD!$A$38))","v":0},{"$f":"SUM(GETPIVOTDATA(\"Suma de O_ctrl_cata_pp1_50_59a\",TD!$A$38))","v":0},{"$f":"SUM(GETPIVOTDATA(\"Suma de O_ctrl_cata_pp1_60a\",TD!$A$38))","v":0}]
[null,null,"2º Control Post Operatorio (Oftalmólogo sino por Médico  capacitado, a la semana)",null,null,null,null,null,"Control",{"$f":"SUM(GETPIVOTDATA(\"Suma de O_ctrl_cata_pp2_total\",TD!$A$38))","v":0},{"$f":"SUM(GETPIVOTDATA(\"Suma de O_ctrl_cata_pp2_50_59a\",TD!$A$38))","v":0},{"$f":"SUM(GETPIVOTDATA(\"Suma de O_ctrl_cata_pp2_60a\",TD!$A$38))","v":0}]
[null,null,"3º Control Post Operatorio (Oftalmólogo sino por Médico  capacitado, al mes)",null,null,null,null,null,"Control",{"$f":"SUM(GETPIVOTDATA(\"Suma de O_ctrl_cata_pp3_total\",TD!$A$38))","v":0},{"$f":"SUM(GETPIVOTDATA(\"Suma de O_ctrl_cata_pp3_50_59a\",TD!$A$38))","v":0},{"$f":"SUM(GETPIVOTDATA(\"Suma de O_ctrl_cata_pp3_60a\",TD!$A$38))","v":0}]
[null,null,"4º Control Post Operatorio (Oftalmólogo sino por Médico  capacitado, a los 2 meses)",null,null,null,null,null,"Control",{"$f":"SUM(GETPIVOTDATA(\"Suma de O_ctrl_cata_pp4_total\",TD!$A$38))","v":0},{"$f":"SUM(GETPIVOTDATA(\"Suma de O_ctrl_cata_pp4_50_59a\",TD!$A$38))","v":0},{"$f":"SUM(GETPIVOTDATA(\"Suma de O_ctrl_cata_pp4_60a\",TD!$A$38))","v":0}]
[null,null,"Complicaciones post quirúrgicas de Catarata",null,null,null,null,null,"Caso",{"$f":"SUM(GETPIVOTDATA(\"Suma de O_comp_cata_pp_50a_total\",TD!$A$38))","v":0},{"$f":"SUM(GETPIVOTDATA(\"Suma de O_comp_cata_pp_50_59a\",TD!$A$38))","v":0},{"$f":"SUM(GETPIVOTDATA(\"Suma de O_comp_cata_pp_60a\",TD!$A$38))","v":0}]
[]
[null,null,"DETECCIÓN DE PERSONAS CON DIABETES MELLITUS CON RIESGO DE RETINOPATÍA DIABÉTICA"]
[]
[]
[null,null,"Actividad",null,null,null,null,null,"UM","TOTAL","18 - 29a","30 - 59a","60a y más"]
[null,null,"Examen de los Ojos y de la Visión",null,null,null,null,null,"Normal",{"$f":"SUM(GETPIVOTDATA(\"Suma de O_Ex_Ojo_Vis18_Diab_N_Diab_18a_Total\",TD!$A$62))","v":2},{"$f":"SUM(GETPIVOTDATA(\"Suma de O_Ex_Ojo_Vis18_Diab_N_18_29a\",TD!$A$62))","v":0},{"$f":"SUM(GETPIVOTDATA(\"Suma de O_Ex_Ojo_Vis18_Diab_N_30_59a\",TD!$A$62))","v":0},{"$f":"SUM(GETPIVOTDATA(\"Suma de O_Ex_Ojo_Vis18_Diab_N_60a\",TD!$A$62))","v":2}]
[null,null,null,null,null,null,null,null,"Anormal",{"$f":"SUM(GETPIVOTDATA(\"O_Ex_Ojo_Vis18_Diab_A_18a_Total\",TD!$A$62))","v":5},{"$f":"SUM(GETPIVOTDATA(\"Suma de O_Ex_Ojo_Vis18_Diab_A_18_29a\",TD!$A$62))","v":0},{"$f":"SUM(GETPIVOTDATA(\"Suma de O_Ex_Ojo_Vis18_Diab_A_30_59a\",TD!$A$62))","v":2},{"$f":"SUM(GETPIVOTDATA(\"Suma de O_Ex_Ojo_Vis18_Diab_A_60a\",TD!$A$62))","v":3}]
[null,null,"Tamizaje y deteccion  de agudeza Visual (I,II nivel)",null,null,null,null,null,"Número",{"$f":"SUM(GETPIVOTDATA(\"Suma de O_Det_AgudVisual_Diab_18a_Total\",TD!$A$62))","v":19},{"$f":"SUM(GETPIVOTDATA(\"Suma de O_Det_AgudVisual_Diab_18_29a\",TD!$A$62))","v":0},{"$f":"SUM(GETPIVOTDATA(\"Suma de O_Det_AgudVisual_Diab_30_59a\",TD!$A$62))","v":8},{"$f":"SUM(GETPIVOTDATA(\"Suma de O_Det_AgudVisual_Diab_60a\",TD!$A$62))","v":11}]
[null,null,"Consejeria de Paciente con Retinopaia Diabetica",null,null,null,null,null,"Número",{"$f":"SUM(GETPIVOTDATA(\"Suma de O_Cons_AgudVisual_Diab_18a_Total\",TD!$A$62))","v":7},{"$f":"SUM(GETPIVOTDATA(\"Suma de O_Cons_AgudVisual_Diab_18_29a\",TD!$A$62))","v":0},{"$f":"SUM(GETPIVOTDATA(\"Suma de O_Cons_AgudVisual_Diab_30_59a\",TD!$A$62))","v":3},{"$f":"SUM(GETPIVOTDATA(\"Suma de O_Cons_AgudVisual_Diab_60a\",TD!$A$62))","v":4}]
[null,null,"Referencias de pacientes con Retinopaia Diabetica",null,null,null,null,null,"Número",{"$f":"SUM(GETPIVOTDATA(\"Suma de O_ref_AgudVisual_Diab_18a_Total\",TD!$A$62))","v":1},{"$f":"SUM(GETPIVOTDATA(\"Suma de O_ref_AgudVisual_Diab_18_29a\",TD!$A$62))","v":0},{"$f":"SUM(GETPIVOTDATA(\"Suma de O_ref_AgudVisual_Diab_30_59a\",TD!$A$62))","v":0},{"$f":"SUM(GETPIVOTDATA(\"Suma de O_ref_AgudVisual_Diab_60a\",TD!$A$62))","v":1}]
[null,null,"Retinografia",null,null,null,null,null,"Número",{"$f":"SUM(GETPIVOTDATA(\"Suma de O_Retinografia_N_Total\",TD!$A$62))","v":0},{"$f":"SUM(GETPIVOTDATA(\"Suma de O_Retinografia_N_18_29a\",TD!$A$62))","v":0},{"$f":"SUM(GETPIVOTDATA(\"Suma de O_Retinografia_N_30_59a\",TD!$A$62))","v":0},{"$f":"SUM(GETPIVOTDATA(\"Suma de O_Retinografia_N_60a\",TD!$A$62))","v":0}]
[null,null,"Diagnostico de Casos de retinopatía diabética",null,null,null,null,null,"Caso",{"$f":"SUM(GETPIVOTDATA(\"O_c_retinopatiaD_Total\",TD!$A$62))","v":21},{"$f":"SUM(GETPIVOTDATA(\"O_c_retinopatiaD_18_29a\",TD!$A$62))","v":0},{"$f":"SUM(GETPIVOTDATA(\"O_c_retinopatiaD_30_59a\",TD!$A$62))","v":6},{"$f":"SUM(GETPIVOTDATA(\"O_c_retinopatiaD_60a\",TD!$A$62))","v":15}]
[null,null,"Tratamiento Terapia Laser",null,null,null,null,null,"Procedimiento",{"$f":"SUM(GETPIVOTDATA(\"Suma de O_tto_Terap_LaserD_Total\",TD!$A$62))","v":0},{"$f":"SUM(GETPIVOTDATA(\"Suma de O_tto_Terap_LaserD_18_29a\",TD!$A$62))","v":0},{"$f":"SUM(GETPIVOTDATA(\"Suma de O_tto_Terap_LaserD_30_59a\",TD!$A$62))","v":0},{"$f":"SUM(GETPIVOTDATA(\"Suma de O_tto_Terap_LaserD_60a\",TD!$A$62))","v":0}]
[null,null,"TratamientoTerapia intravítrea",null,null,null,null,null,"Procedimiento",{"$f":"SUM(GETPIVOTDATA(\"Suma de O_tto_Terap_intravD_Total\",TD!$A$62))","v":0},{"$f":"SUM(GETPIVOTDATA(\"Suma de O_tto_Terap_intravD_18_29a\",TD!$A$62))","v":0},{"$f":"SUM(GETPIVOTDATA(\"Suma de O_tto_Terap_intravD_30_59a\",TD!$A$62))","v":0},{"$f":"SUM(GETPIVOTDATA(\"Suma de O_tto_Terap_intravD_60a\",TD!$A$62))","v":0}]
[null,null,"Tratamiento Cirugía vítrea",null,null,null,null,null,"Procedimiento",{"$f":"SUM(GETPIVOTDATA(\"Suma de O_tto_Cirugia_vitreaD_Total\",TD!$A$62))","v":0},{"$f":"SUM(GETPIVOTDATA(\"Suma de O_tto_Cirugia_vitreaD_18_29a\",TD!$A$62))","v":0},{"$f":"SUM(GETPIVOTDATA(\"Suma de O_tto_Cirugia_vitreaD_30_59a\",TD!$A$62))","v":0},{"$f":"SUM(GETPIVOTDATA(\"Suma de O_tto_Cirugia_vitreaD_60a\",TD!$A$62))","v":0}]
[null,null,"Control de Personas con Diabetes Mellitus riesgo RD",null,null,null,null,null,"Atención",{"$f":"SUM(GETPIVOTDATA(\"Suma de O_ctrl_atc_diab_Total\",TD!$A$62))","v":0},{"$f":"SUM(GETPIVOTDATA(\"Suma de O_ctrl_atc_diab_18_29a\",TD!$A$62))","v":0},{"$f":"SUM(GETPIVOTDATA(\"Suma de O_ctrl_atc_diab_30_59a\",TD!$A$62))","v":0},{"$f":"SUM(GETPIVOTDATA(\"Suma de O_ctrl_atc_diab_60a\",TD!$A$62))","v":0}]
[]
[]
[null,null,"DETECCIÓN DE PERSONAS CON TRACOMA EN EL PRIMER Y SEGUNDO NIVEL DE ATENCIÓN"]
[]
[]
[null,null,"Actividad",null,null,null,null,null,"UM","TOTAL","0 - 11a","12 - 17a","18 - 29a","30 - 59a",null,"60a y más"]
[null,null,"Evaluación de Tracoma",null,null,null,null,null,"Número",{"$f":"SUM(GETPIVOTDATA(\"Suma de O_Eva_tracoma_Total\",TD!$A$62))","v":0},{"$f":"SUM(GETPIVOTDATA(\"Suma de O_Eva_tracoma_1_11a\",TD!$A$62))","v":0},{"$f":"SUM(GETPIVOTDATA(\"Suma de O_Eva_tracoma_12_17a\",TD!$A$62))","v":0},{"$f":"SUM(GETPIVOTDATA(\"Suma de O_Eva_tracoma_18_29a\",TD!$A$62))","v":0},{"$f":"SUM(GETPIVOTDATA(\"Suma de O_Eva_tracoma_30_59a\",TD!$A$62))","v":0},null,{"$f":"SUM(GETPIVOTDATA(\"Suma de O_Eva_tracoma_60a\",TD!$A$62))","v":0}]
[null,null,"Consejeria de Paciente Tracoma",null,null,null,null,null,"Número",{"$f":"SUM(GETPIVOTDATA(\"Suma de O_Consej_tracoma_Total\",TD!$A$62))","v":2},{"$f":"SUM(GETPIVOTDATA(\"Suma de O_Consej_tracoma_1_11a\",TD!$A$62))","v":0},{"$f":"SUM(GETPIVOTDATA(\"Suma de O_Consej_tracoma_12_17a\",TD!$A$62))","v":0},{"$f":"SUM(GETPIVOTDATA(\"Suma de O_Consej_tracoma_18_29a\",TD!$A$62))","v":0},{"$f":"SUM(GETPIVOTDATA(\"Suma de O_Consej_tracoma_30_59a\",TD!$A$62))","v":0},null,{"$f":"SUM(GETPIVOTDATA(\"Suma de O_Consej_tracoma_60a\",TD!$A$62))","v":2}]
[null,null,"Diagnóstico Casos de Tracoma",null,null,null,null,null,"Caso",{"$f":"SUM(GETPIVOTDATA(\"O_c_tracoma_Total\",TD!$A$62))","v":8},{"$f":"SUM(GETPIVOTDATA(\"O_c_tracoma_1_11a\",TD!$A$62))","v":0},{"$f":"SUM(GETPIVOTDATA(\"O_c_tracoma_12_17a\",TD!$A$62))","v":0},{"$f":"SUM(GETPIVOTDATA(\"O_c_tracoma_18_29a\",TD!$A$62))","v":0},{"$f":"SUM(GETPIVOTDATA(\"O_c_tracoma_30_59a\",TD!$A$62))","v":0},null,{"$f":"SUM(GETPIVOTDATA(\"O_c_tracoma_60a\",TD!$A$62))","v":8}]
[null,null,"Tratamiento quirúrgico Tracoma",null,null,null,null,null,"Caso Tratado",{"$f":"SUM(GETPIVOTDATA(\"Suma de O_tto_quiru_tracoma_Total\",TD!$A$62))","v":0},{"$f":"SUM(GETPIVOTDATA(\"Suma de O_tto_quiru_tracoma_1_11a\",TD!$A$62))","v":0},{"$f":"SUM(GETPIVOTDATA(\"Suma de O_tto_quiru_tracoma_12_17a\",TD!$A$62))","v":0},{"$f":"SUM(GETPIVOTDATA(\"Suma de O_tto_quiru_tracoma_18_29a\",TD!$A$62))","v":0},{"$f":"SUM(GETPIVOTDATA(\"Suma de O_tto_quiru_tracoma_30_59a\",TD!$A$62))","v":0},null,{"$f":"SUM(GETPIVOTDATA(\"Suma de O_tto_quiru_tracoma_60a\",TD!$A$62))","v":0}]
[null,null,"Tratamiento farmacológico Tramaco",null,null,null,null,null,"Caso Tratado",{"$f":"SUM(GETPIVOTDATA(\"Suma de O_f_tracoma_Total\",TD!$A$62))","v":0},{"$f":"SUM(GETPIVOTDATA(\"Suma de O_f_tracoma_1_11a\",TD!$A$62))","v":0},{"$f":"SUM(GETPIVOTDATA(\"Suma de O_f_tracoma_12_17a\",TD!$A$62))","v":0},{"$f":"SUM(GETPIVOTDATA(\"Suma de O_f_tracoma_18_29a\",TD!$A$62))","v":0},{"$f":"SUM(GETPIVOTDATA(\"Suma de O_f_tracoma_30_59a\",TD!$A$62))","v":0},null,{"$f":"SUM(GETPIVOTDATA(\"Suma de O_f_tracoma_60a\",TD!$A$62))","v":0}]
[null,null,"Control de Personas Tracoma",null,null,null,null,null,"Atención",{"$f":"SUM(GETPIVOTDATA(\"Suma de O_atc_c_tracoma_Total\",TD!$A$62))","v":0},{"$f":"SUM(GETPIVOTDATA(\"Suma de O_atc_c_tracoma_1_11a\",TD!$A$62))","v":0},{"$f":"SUM(GETPIVOTDATA(\"Suma de O_atc_c_tracoma_12_17a\",TD!$A$62))","v":0},{"$f":"SUM(GETPIVOTDATA(\"Suma de O_atc_c_tracoma_18_29a\",TD!$A$62))","v":0},{"$f":"SUM(GETPIVOTDATA(\"Suma de O_atc_c_tracoma_30_59a\",TD!$A$62))","v":0},null,{"$f":"SUM(GETPIVOTDATA(\"Suma de O_atc_c_tracoma_60a\",TD!$A$62))","v":0}]
[]
[]
[null,null,"ENFERMEDADES EXTERNAS DEL OJO"]
[]
[]
[null,null,"Actividad",null,null,null,null,null,"UM","TOTAL","0 - 11a","12 - 17a","18 - 29a","30 - 59a",null,"60a y más"]
[null,null,"Diagnóstico Orzuelo",null,null,null,null,null,"Caso",{"$f":"SUM(GETPIVOTDATA(\"Suma de O_ee_orzuelo_Total\",TD!$A$62))","v":93},{"$f":"SUM(GETPIVOTDATA(\"Suma de O_ee_orzuelo_1_11a\",TD!$A$62))","v":40},{"$f":"SUM(GETPIVOTDATA(\"Suma de O_ee_orzuelo_12_17a\",TD!$A$62))","v":14},{"$f":"SUM(GETPIVOTDATA(\"Suma de O_ee_orzuelo_18_29a\",TD!$A$62))","v":13},{"$f":"SUM(GETPIVOTDATA(\"Suma de O_ee_orzuelo_30_59a\",TD!$A$62))","v":21},null,{"$f":"SUM(GETPIVOTDATA(\"Suma de O_ee_orzuelo_60a\",TD!$A$62))","v":5}]
[null,null,"Diagnóstico Chalazión",null,null,null,null,null,"Caso",{"$f":"SUM(GETPIVOTDATA(\"Suma de O_ee_chalazion_Total\",TD!$A$62))","v":73},{"$f":"SUM(GETPIVOTDATA(\"Suma de O_ee_chalazion_1_11a\",TD!$A$62))","v":31},{"$f":"SUM(GETPIVOTDATA(\"Suma de O_ee_chalazion_12_17a\",TD!$A$62))","v":11},{"$f":"SUM(GETPIVOTDATA(\"Suma de O_ee_chalazion_18_29a\",TD!$A$62))","v":16},{"$f":"SUM(GETPIVOTDATA(\"Suma de O_ee_chalazion_30_59a\",TD!$A$62))","v":15},null,{"$f":"SUM(GETPIVOTDATA(\"Suma de O_ee_chalazion_60a\",TD!$A$62))","v":0}]
[null,null,"Diagnóstico Blefaritis",null,null,null,null,null,"Caso",{"$f":"SUM(GETPIVOTDATA(\"Suma de O_ee_Blefaritis_Total\",TD!$A$62))","v":112},{"$f":"SUM(GETPIVOTDATA(\"Suma de O_ee_Blefaritis_1_11a\",TD!$A$62))","v":24},{"$f":"SUM(GETPIVOTDATA(\"Suma de O_ee_Blefaritis_12_17a\",TD!$A$62))","v":13},{"$f":"SUM(GETPIVOTDATA(\"Suma de O_ee_Blefaritis_18_29a\",TD!$A$62))","v":13},{"$f":"SUM(GETPIVOTDATA(\"Suma de O_ee_Blefaritis_30_59a\",TD!$A$62))","v":17},null,{"$f":"SUM(GETPIVOTDATA(\"Suma de O_ee_Blefaritis_60a\",TD!$A$62))","v":45}]
[null,null,"Diagnóstico Conjuntivitis",null,null,null,null,null,"Caso",{"$f":"SUM(GETPIVOTDATA(\"Suma de O_ee_Conjuntivitis_Total\",TD!$A$62))","v":1981},{"$f":"SUM(GETPIVOTDATA(\"Suma de O_ee_Conjuntivitis_1_11a\",TD!$A$62))","v":683},{"$f":"SUM(GETPIVOTDATA(\"Suma de O_ee_Conjuntivitis_12_17a\",TD!$A$62))","v":93},{"$f":"SUM(GETPIVOTDATA(\"Suma de O_ee_Conjuntivitis_18_29a\",TD!$A$62))","v":197},{"$f":"SUM(GETPIVOTDATA(\"Suma de O_ee_Conjuntivitis_30_59a\",TD!$A$62))","v":599},null,{"$f":"SUM(GETPIVOTDATA(\"Suma de O_ee_Conjuntivitis_60a\",TD!$A$62))","v":409}]
[]
[null,null,"Consejeria en enfermedades externas del ojos",null,null,null,null,null,"Caso tratado",{"$f":"SUM(GETPIVOTDATA(\"Suma de O_ee_Consejeria_tto_Total\",TD!$A$62))","v":37},{"$f":"SUM(GETPIVOTDATA(\"Suma de O_ee_Consejeria_tto_1_11a\",TD!$A$62))","v":8},{"$f":"SUM(GETPIVOTDATA(\"Suma de O_ee_Consejeria_tto_12_17a\",TD!$A$62))","v":3},{"$f":"SUM(GETPIVOTDATA(\"Suma de O_ee_Consejeria_tto_18_29a\",TD!$A$62))","v":4},{"$f":"SUM(GETPIVOTDATA(\"Suma de O_ee_Consejeria_tto_30_59a\",TD!$A$62))","v":12},null,{"$f":"SUM(GETPIVOTDATA(\"Suma de O_ee_Consejeria_tto_60a\",TD!$A$62))","v":10}]
[null,null,"Tratamiento farmacológico de Conjuntivitis",null,null,null,null,null,"Caso tratado",{"$f":"SUM(GETPIVOTDATA(\"Suma de O_ee_Conjuntivitis_tto_Total\",TD!$A$62))","v":7},{"$f":"SUM(GETPIVOTDATA(\"Suma de O_ee_Conjuntivitis_tto_1_11a\",TD!$A$62))","v":2},{"$f":"SUM(GETPIVOTDATA(\"Suma de O_ee_Conjuntivitis_tto_12_17a\",TD!$A$62))","v":2},{"$f":"SUM(GETPIVOTDATA(\"Suma de O_ee_Conjuntivitis_tto_18_29a\",TD!$A$62))","v":0},{"$f":"SUM(GETPIVOTDATA(\"Suma de O_ee_Conjuntivitis_tto_30_59a\",TD!$A$62))","v":2},null,{"$f":"SUM(GETPIVOTDATA(\"Suma de O_ee_Conjuntivitis_tto_60a\",TD!$A$62))","v":1}]